account_party,address,code,date,document_number,expense_code_name,expense_code_name_short,id,party_cell,party_cell_code,party_cell_geoobject,purpose,source_bank_account_number,source_bank_account_type,sum,target_legal_personality,target_legal_personality_code,target_type
ОПЗЖ,"Київ, вулиця Андріївська, 4",70,2019-12-31,TR.29622094.92161.359,Банківські послуги,Інші витрати,274890,Дніпропетровська обласна організація Опозиційна платформа - За життя,41549539,Дніпропетровська область,"Договірне списання комісії по тарифному пакету за період з 01.12.19 по 31.12.19, договір № 272636160 от 2018-07-09 згідно тарифів ПУМБ",UA903348510000000002600948745,current,170.00,"ПАТ ""ПУМБ""",14282829,юридична особа
ОПЗЖ,"Київ, вулиця Єреванська, 1",70,2019-12-28,TR.8981501.699954.2667,Банківські послуги,Інші витрати,274978,Житомирська обласна організація Опозиційна платформа - За життя,42417904,Житомирська область,Плата за розрахункое обслуговування,UA643204780000026008924855733,current,60.00,"АБ ""Укргазбанк""",23697280,юридична особа
ОПЗЖ,"Житомирська область, Житомир, Смолянський майдан, 3",79,2019-12-27,5,"Оренда будинків і приміщень та експлуатаційні витрати (прибирання, страхування орендованих будинків, охорона, сигналізація, ремонт, вивіз сміття, тощо)",Оренда нерухомості,274977,Житомирська обласна організація Опозиційна платформа - За життя,42417904,Житомирська область,"Оплата за оренду приміщення за грудень 2019р., зг.Акту надання послуг № 35 від 2019-12-28р., в т.ч. ПДВ 166,67 ГРН.",UA643204780000026008924855733,current,1000.00,"ПП ""Подік""",32066937,юридична особа
ОПЗЖ,"Київ, вулиця Єреванська, 1",70,2019-12-27,TR.8981501.965878016,Банківські послуги,Інші витрати,274976,Житомирська обласна організація Опозиційна платформа - За життя,42417904,Житомирська область,Плата за розрахункое обслуговування,UA643204780000026008924855733,current,10.00,"АБ ""Укргазбанк""",23697280,юридична особа
ОПЗЖ,"Запорізька область, Запоріжжя, проспект Соборний, 111",79,2019-12-27,38,"Оренда будинків і приміщень та експлуатаційні витрати (прибирання, страхування орендованих будинків, охорона, сигналізація, ремонт, вивіз сміття, тощо)",Оренда нерухомості,274965,Запорізька обласна організація Опозиційна платформа - За життя,39400010,Запорізька область,"Оплата за оренду нежитлового приміщення у грудні 2019 року згідно Договору № 26 від 2019-06-01 року. В т.ч ПДВ 574,17 грн.",UA293139570000026008300696560,current,3445.00,"Спільне українсько-німецьке підприємство ""Саксонія ГМБХ""",19364710,юридична особа
ОПЗЖ,"Запорізька область, Запоріжжя, вулиця Олександрівська, 7",61,2019-12-27,36,Військовий збір,Податкові платежі,274964,Запорізька обласна організація Опозиційна платформа - За життя,39400010,Запорізька область,"*;101;39400010;11011000; Військовий збір 1,5%, утрим. із зар.плати за 2-гу половину грудня 2019 року. Перерах.повн. стр. 2019-12-27 р.; ; ;без ПДВ.",UA293139570000026008300696560,current,28.93,УДКСУ в Олександрівському районі м. Запоріжжя,38025440,юридична особа
ОПЗЖ,"Запорізька область, Запоріжжя, вулиця Олександрівська, 7",63,2019-12-27,35,Податок на доходи,Податкові платежі,274963,Запорізька обласна організація Опозиційна платформа - За життя,39400010,Запорізька область,"*;101;39400010;11010100; Податок з доходу фіз.осіб, утрим. із зар.плати за 2-гу половину грудня 2019 року. Перерах.повн. стр. 2019-12-27 р.; ; ;без ПДВ.",UA293139570000026008300696560,current,347.14,УДКСУ в Олександрівському районі м. Запоріжжя,38025440,юридична особа
ОПЗЖ,"Запорізька область, Запоріжжя, проспект Соборний, 168",62,2019-12-27,34,Сплата ЄСВ,Податкові платежі,274962,Запорізька обласна організація Опозиційна платформа - За життя,39400010,Запорізька область,*;101;39400010;Нарах.ЕСВ 22% на зар.плату за 2-гу половину грудня 2019 року. Перерах. повн. стр. 2019-12-27 р.; ; ; без ПДВ.,UA293139570000026008300696560,current,424.29,ГУ ДПС у Запорізькій області,43143945,юридична особа
ОПЗЖ,"Запорізька область, Запоріжжя",84,2019-12-27,37,"Заробітна плата, премії","Заробітна плата, лікарняні, вагітності, відрядження, компенсації",274935,Запорізька обласна організація Опозиційна платформа - За життя,39400010,Запорізька область,Заробітна плата за 2-гу половину грудня 2019 року. Без ПДВ.,UA293139570000026008300696560,current,1552.50,Матвієнко Павло Дмитрович,,фізична особа
ОПЗЖ,"Київ, вулиця Бульварно-Кудрявська, 6",70,2019-12-27,253663,Банківські послуги,Інші витрати,274910,Харківська обласна організація Опозиційна платформа - За життя,33900035,Харківська область,Комісія за рохрахункове обслуговування поточного рахунку за період 01.012.19-31.12.19 зг. Дог.№31935/РКО від 2019-06-21р. Без ПДВ,UA493225400000026003101031935,current,100.00,"АТ ""Комерційний індустріальний банк""",21580639,юридична особа
ОПЗЖ,"Київ, вулиця Бульварно-Кудрявська, 6",70,2019-12-27,255088,Банківські послуги,Інші витрати,274909,Харківська обласна організація Опозиційна платформа - За життя,33900035,Харківська область,"Оплата за переказ кошітв за ел. Банк. Док. Надіслано СДО ""PAY CIB"" зг. Дог.№31935/РКО від 2019-06-21р.",UA493225400000026003101031935,current,100.00,"АТ ""Комерційний індустріальний банк""",21580639,юридична особа
ОПЗЖ,"Дніпропетровська область, Дніпро́, вулиця Січеславська Набережна, 33",69,2019-12-26,15,Організація заходів та інші організаційні послуги,Організація заходів та інші організаційні послуги,274889,Дніпропетровська обласна організація Опозиційна платформа - За життя,41549539,Дніпропетровська область,"За послуги з організації та проведення заходу ""Ялинка в цирку"", згідно рахунку № СФ-0000244 від 2019-11-27, у т.ч ПДВ 20% = 16666,67 грн.",UA903348510000000002600948745,current,100000.00,"ДП ""Дніпровський державний цирк""",02174187,юридична особа
ОПЗЖ,"Київ, вулиця Генерала Вітрука, 8А",63,2019-12-26,160,Податок на доходи,Податкові платежі,274875,Центральний офіс,21709375,Україна,* ; 11010100 ; 21709375 ; ; ; Податок на доходи фізичних осіб із зарплати за IІ-у половину грудня 2019 р Без ПДВ.,UA603808380000026003700467179,current,1415.80,УДКСУ у Святошинському районі ГУ ДКСУ у м. Києві,37962074,юридична особа
ОПЗЖ,"Київ, вулиця Шолуденка, 33/19",62,2019-12-26,161,Сплата ЄСВ,Податкові платежі,274874,Центральний офіс,21709375,Україна,* ; 101 ; 21709375 ; ; ; 22% ЄСВ із зарплати за IІ-у половину грудня 2019 р Без ПДВ.,UA603808380000026003700467179,current,1730.42,ГУ ДФС у м. Києві,39439980,юридична особа
ОПЗЖ,"Київ, вулиця Генерала Вітрука, 8А",61,2019-12-26,162,Військовий збір,Податкові платежі,274873,Центральний офіс,21709375,Україна,* ; 11010100 ; 21709375 ; військовий збір із зарплати за ІІ-у половину грудня 2019 р Без ПДВ.,UA603808380000026003700467179,current,117.99,УДКСУ у Святошинському районі ГУ ДКСУ у м. Києві,37962074,юридична особа
ОПЗЖ,"Дніпропетровська область, Дніпро́, вулиця Канатна, 12А",53,2019-12-24,13,Витрати на розміщення зовнішньої реклами,Зовнішня реклама,274888,Дніпропетровська обласна організація Опозиційна платформа - За життя,41549539,Дніпропетровська область,"За послуги із розміщення зовнішньої реклами, згідно рах. № 02/19 від 2019-06-27, № 03/19 від 2019-06-27, № 01/19 від 2019-06-27, у т.ч ПДВ 20% = 6500,00 грн.",UA903348510000000002600948745,current,39000.00,"ТОВ ""Про.спект""",37539781,юридична особа
ОПЗЖ,"Дніпропетровська область, Дніпро́, вулиця Гоголя, 15",53,2019-12-24,14,Витрати на розміщення зовнішньої реклами,Зовнішня реклама,274887,Дніпропетровська обласна організація Опозиційна платформа - За життя,41549539,Дніпропетровська область,"За послуги із розміщенн зовнішньої реклами, згідно рах. № 155 від 2019-03-29, у т.ч ПДВ 20% = 4750,00 грн.",UA903348510000000002600948745,current,28500.00,"ТОВ ""Дніпровіжн""",38115518,юридична особа
ОПЗЖ,"Дніпропетровська область, Дніпро́, вулиця Гоголя, 15",53,2019-12-23,11,Витрати на розміщення зовнішньої реклами,Зовнішня реклама,274886,Дніпропетровська обласна організація Опозиційна платформа - За життя,41549539,Дніпропетровська область,"За послуги розміщення зовнішньої реклами, згідно рах. № 245 від 2019-06-27, у т.ч ПДВ 20% =14750,00 грн.",UA903348510000000002600948745,current,88500.00,"ТОВ ""Дніпровіжн""",38115518,юридична особа
ОПЗЖ,"Дніпропетровська область, Дніпро́, вулиця Гоголя, 15",53,2019-12-23,12,Витрати на розміщення зовнішньої реклами,Зовнішня реклама,274885,Дніпропетровська обласна організація Опозиційна платформа - За життя,41549539,Дніпропетровська область,"За послуги по розміщеню зовнішньої реклами, згідно рах. № 246 від 2019-06-27, у т.ч ПДВ 20% = 8250,00 грн.",UA903348510000000002600948745,current,49500.00,"ТОВ ""Дніпровіжн""",38115518,юридична особа
ОПЗЖ,Київ,66,2019-12-19,156,Повернення внесків приватних внесків (донорам),Повернення приватних внесків (донорам),274846,Центральний офіс,21709375,Україна,"Повернненя грошового внеску відповідно до п8 ч1 ч7 ст15 Закону України ""Про політичні партії в Україні"" Без ПДВ.",UA603808380000026003700467179,current,1600000.00,Мельніковська Валентина Миколаївна,,фізична особа
ОПЗЖ,"Київська обл., Вишгородський район, Вишгород",66,2019-12-18,155,Повернення внесків приватних внесків (донорам),Повернення приватних внесків (донорам),274845,Центральний офіс,21709375,Україна,"Повернненя грошового внеску відповідно до п8 ч1 ч7 ст15 Закону України ""Про політичні партії в Україні"" Без ПДВ.",UA603808380000026003700467179,current,1600000.00,Столар Вадим Михайлович,,фізична особа
ОПЗЖ,"Запорізька область, Запоріжжя, проспект Соборний, 168",62,2019-12-17,32,Сплата ЄСВ,Податкові платежі,274961,Запорізька обласна організація Опозиційна платформа - За життя,39400010,Запорізька область,*;101;39400010;Нарах.ЕСВ 22% на зар.плату за 1-шу половину грудня 2019 року. Перерах. повн. стр. 2019-12-17 р.; ; ; без ПДВ.,UA293139570000026008300696560,current,320.77,ГУ ДПС у Запорізькій області,43143945,юридична особа
ОПЗЖ,"Запорізька область, Запоріжжя, вулиця Олександрівська, 7",63,2019-12-17,31,Податок на доходи,Податкові платежі,274960,Запорізька обласна організація Опозиційна платформа - За життя,39400010,Запорізька область,"*;101;39400010;11010100; Податок з доходу фіз.осіб, утрим. із зар.плати за 1-шу половину грудня 2019 року. Перерах.повн. стр. 2019-12-17 р.; ; ;без ПДВ.",UA293139570000026008300696560,current,462.86,УДКСУ в Олександрівському районі м. Запоріжжя,38025440,юридична особа
ОПЗЖ,"Запорізька область, Запоріжжя, вулиця Олександрівська, 7",61,2019-12-17,30,Військовий збір,Податкові платежі,274959,Запорізька обласна організація Опозиційна платформа - За життя,39400010,Запорізька область,"*;101;39400010;11011000; Військовий збір 1,5%, утрим. із зар.плати за 1-шу половину грудня 2019 року. Перерах.повн. стр. 2019-12-17 р.; ; ;без ПДВ.",UA293139570000026008300696560,current,38.57,УДКСУ в Олександрівському районі м. Запоріжжя,38025440,юридична особа
ОПЗЖ,"Запорізька область, Запоріжжя",84,2019-12-17,33,"Заробітна плата, премії","Заробітна плата, лікарняні, вагітності, відрядження, компенсації",274934,Запорізька обласна організація Опозиційна платформа - За життя,39400010,Запорізька область,Заробітна плата за 1-шу половину грудня 2019 року. Без ПДВ.,UA293139570000026008300696560,current,2070.00,Матвієнко Павло Дмитрович,,фізична особа
ОПЗЖ,"Одеська область, Овідіопольський район, Великодолинське",57,2019-12-16,10,Виготовлення брендованої продукції,"Виготовлення брендованої продукції (футболки, кепки, парасольки)",274876,Дніпропетровська обласна організація Опозиційна платформа - За життя,41549539,Дніпропетровська область,"За комплекти футболок по рахунку б/№ від 2019-12-13, без ПДВ",UA903348510000000002600948745,current,15000.00,Сирота Руслан Петрович,,фізична особа
ОПЗЖ,"Київ, вулиця Генерала Вітрука, 8А",61,2019-12-16,152,Військовий збір,Податкові платежі,274872,Центральний офіс,21709375,Україна,"* ; 11010100 ; 21709375 ; 1,5% військовий збір із зарплати за I І-у половину листопада 2019 р Без ПДВ.",UA603808380000026003700467179,current,111.81,УДКСУ у Святошинському районі ГУ ДКСУ у м. Києві,37962074,юридична особа
ОПЗЖ,"Київ, вулиця Генерала Вітрука, 8А",63,2019-12-16,153,Податок на доходи,Податкові платежі,274871,Центральний офіс,21709375,Україна,* ; 11010100 ; 21709375 ; ; ; 18% Податок на доходи фізичних осіб із зарплати за І-у половину грудня 2019 р Без ПДВ.,UA603808380000026003700467179,current,1341.72,УДКСУ у Святошинському районі ГУ ДКСУ у м. Києві,37962074,юридична особа
ОПЗЖ,"Київ, вулиця Шолуденка, 33/19",62,2019-12-16,154,Сплата ЄСВ,Податкові платежі,274870,Центральний офіс,21709375,Україна,* ; 101 ; 21709375 ; ; ; 22% ЄСВ із зарплати за I-у половину грудня 2019 р Без ПДВ.,UA603808380000026003700467179,current,1639.88,ГУ ДФС у м. Києві,39439980,юридична особа
ОПЗЖ,"Київ, вулиця Бульварно-Кудрявська, 6",70,2019-12-13,125249,Банківські послуги,Інші витрати,274908,Харківська обласна організація Опозиційна платформа - За життя,33900035,Харківська область,Оплата за переказ кошітв за платіжним дорученням по системі КБ зг. Дог.№31935/РКО від 2019-06-21р.,UA493225400000026003101031935,current,25.00,"АТ ""Комерційний індустріальний банк""",21580639,юридична особа
ОПЗЖ,"Київ, вулиця Бульварно-Кудрявська, 6",70,2019-12-13,125254,Банківські послуги,Інші витрати,274907,Харківська обласна організація Опозиційна платформа - За життя,33900035,Харківська область,Оплата за переказ кошітв за платіжним дорученням по системі КБ зг. Дог.№31935/РКО від 2019-06-21р.,UA493225400000026003101031935,current,20.00,"АТ ""Комерційний індустріальний банк""",21580639,юридична особа
ОПЗЖ,"Харківська область, Харків",79,2019-12-13,14,"Оренда будинків і приміщень та експлуатаційні витрати (прибирання, страхування орендованих будинків, охорона, сигналізація, ремонт, вивіз сміття, тощо)",Оренда нерухомості,274897,Харківська обласна організація Опозиційна платформа - За життя,33900035,Харківська область,Сплата за комунальні послуги за листопад 2019р. згідно Акту про надання послуг № 10 від 2019-12-04 р. Без ПДВ,UA493225400000026003101031935,current,8558.74,Дорожко Ірина Миколаївна,,фізична особа
ОПЗЖ,"Харківська область, Харків",79,2019-12-13,13,"Оренда будинків і приміщень та експлуатаційні витрати (прибирання, страхування орендованих будинків, охорона, сигналізація, ремонт, вивіз сміття, тощо)",Оренда нерухомості,274896,Харківська обласна організація Опозиційна платформа - За життя,33900035,Харківська область,Сплата за оренду приміщення за грудень 2019р. згідно договору суборенди нежитлового приміщення б\н від 2019-07-05р. Без ПДВ.,UA493225400000026003101031935,current,25000.00,Дорожко Ірина Миколаївна,,фізична особа
ОПЗЖ,"Сумська область, Суми, Курський проспект, 6",79,2019-12-12,2,"Оренда будинків і приміщень та експлуатаційні витрати (прибирання, страхування орендованих будинків, охорона, сигналізація, ремонт, вивіз сміття, тощо)",Оренда нерухомості,274928,Сумська обласна організація Опозиційна платформа - За життя,40899474,Сумська область,Плата за оренду нежитлового приміщення,UA453375460000026006055026947,current,3138.00,ТОВ „СУМБУДТРАНС”,36334239,юридична особа
ОПЗЖ,"Київ, Кловський узвіз, 9/2",70,2019-12-10,223765086/ Дог № 2600370046717 9 від 2019-02-12р.,Банківські послуги,Інші витрати,274869,Центральний офіс,21709375,Україна,"Плата за РКО: фіксована плата по тарифному пакету ""Стандарт"", згідно з п. 4.1. договору № 26003700467179 від 2019-02-12 Без ПДВ.",UA603808380000026003700467179,current,90.86,"ПАТ КБ ""Правекс-банк""",14360920,юридична особа
ОПЗЖ,"Київ, бульвар Тараса Шевченка, 18",76,2019-12-10,148,Послуги зв’язку,Послуги зв’язку,274868,Центральний офіс,21709375,Україна,"За послуги міжміські та міжнародні розмови за листопад 2019 р згідно О/Р 8200004425510701. У т.р. ПДВ 54,98 грн.",UA603808380000026003700467179,current,329.87,"ПАТ ""Укртелеком""",21560766,юридична особа
ОПЗЖ,"Київ, вулиця Мечникова, 14/1",82,2019-12-09,147,"Гонорари, в тому числі за надані консультаційні послуги","Гонорари, в тому числі за надані консультаційні послуги",274867,Центральний офіс,21709375,Україна,Абонентська плата за жовтень-листопад- грудень 2019 р. згідно Договору №01/05-2017 від 2017-05-01р. Без ПДВ.,UA603808380000026003700467179,current,6000.00,"ТОВ ""Адвокатська компанія ""Золота середина""",37884206,юридична особа
ОПЗЖ,"Запорізька область, Запоріжжя, проспект Соборний, 111",79,2019-12-05,29,"Оренда будинків і приміщень та експлуатаційні витрати (прибирання, страхування орендованих будинків, охорона, сигналізація, ремонт, вивіз сміття, тощо)",Оренда нерухомості,274958,Запорізька обласна організація Опозиційна платформа - За життя,39400010,Запорізька область,"Оплата за оренду нежитлового приміщення у листопаді 2019 року згідно Договору № 26 від 2019-06-01 року. В т.ч ПДВ 574,17 грн.",UA293139570000026008300696560,current,3445.00,"Спільне українсько-німецьке підприємство ""Саксонія ГМБХ""",19364710,юридична особа
ОПЗЖ,"Сумська область, Путивльський район, Путивль",59,2019-12-04,1,Грошова застава,Грошова застава,274927,Сумська обласна організація Опозиційна платформа - За життя,40899474,Сумська область,Грошова застава місцевими організаціями політиних партій,UA453375460000026006055026947,current,2660.00,Путивльська міська виборча комісія,34025473,юридична особа
ОПЗЖ,"Київ, вулиця Михайла Грушевського, 1Д",70,2019-12-04,C4O2SJ18EY,Банківські послуги,Інші витрати,274926,Сумська обласна організація Опозиційна платформа - За життя,40899474,Сумська область,Комісія за виконання платежів в національній валюті,UA453375460000026006055026947,current,3.00,"ПАТ КБ ""Приватбанк""",14360570,юридична особа
ОПЗЖ,"Дніпропетровська область, Дніпровський район, Підгородне, Центральна вулиця, 46",59,2019-12-04,9,Грошова застава,Грошова застава,274884,Дніпропетровська обласна організація Опозиційна платформа - За життя,41549539,Дніпропетровська область,"Грошова застава для кандидата на посаду міського голови, без ПДВ",UA903348510000000002600948745,current,3286.00,Підгородненська міська виборча комісія,43354552,юридична особа
ОПЗЖ,"Дніпропетровська область, Дніпровський район, Підгородне, Центральна вулиця, 46",59,2019-12-04,7,Грошова застава,Грошова застава,274883,Дніпропетровська обласна організація Опозиційна платформа - За життя,41549539,Дніпропетровська область,"Грошова застава для кандидатів у депутати Підгородянської міської ради, без ПДВ",UA903348510000000002600948745,current,3286.00,Підгородненська міська виборча комісія,43354552,юридична особа
ОПЗЖ,"Київ, вулиця Андріївська, 4",70,2019-12-04,TR.29605239.6665087,Банківські послуги,Інші витрати,274882,Дніпропетровська обласна організація Опозиційна платформа - За життя,41549539,Дніпропетровська область,Договірне списаня комісії за платіж на користь клієнта іншого банка згідно п.2.15 тарифів ПУМБ по дог. № 272636160 від 2018-07-09,UA903348510000000002600948745,current,21.50,"ПАТ ""ПУМБ""",14282829,юридична особа
ОПЗЖ,"Київ, вулиця Андріївська, 4",70,2019-12-04,TR.29605239.220813825,Банківські послуги,Інші витрати,274881,Дніпропетровська обласна організація Опозиційна платформа - За життя,41549539,Дніпропетровська область,Договірне списаня комісії за платіж на користь клієнта іншого банка згідно п.2.15 тарифів ПУМБ по дог. № 272636160 від 2018-07-09,UA903348510000000002600948745,current,21.50,"ПАТ ""ПУМБ""",14282829,юридична особа
ОПЗЖ,"Київ, вулиця Госпітальна, 12Г",70,2019-12-02,6154358409,Банківські послуги,Інші витрати,274957,Запорізька обласна організація Опозиційна платформа - За життя,39400010,Запорізька область,Списання щомісячної плати за обслуговування ТП Мій бізнес за листопад 2019 року,UA293139570000026008300696560,current,149.00,"АТ ""Ощадбанк""",00032129,юридична особа
ОПЗЖ,"Запорізька область, Запоріжжя, проспект Соборний, 168",62,2019-12-02,27,Сплата ЄСВ,Податкові платежі,274956,Запорізька обласна організація Опозиційна платформа - За життя,39400010,Запорізька область,*;101;39400010;Нарах.ЕСВ 22% на зар.плату за 2-гу половину листопада 2019 року. Перерах. повн. стр. 2019-12-02 р.; ; ; без ПДВ.,UA293139570000026008300696560,current,471.43,ГУ ДПС у Запорізькій області,43143945,юридична особа
ОПЗЖ,"Запорізька область, Запоріжжя, вулиця Олександрівська, 7",63,2019-12-02,26,Податок на доходи,Податкові платежі,274955,Запорізька обласна організація Опозиційна платформа - За життя,39400010,Запорізька область,"*;101;39400010;11010100; Податок з доходу фіз.осіб, утрим. із зар.плати за 2-гу половину листопада 2019 року. Перерах.повн. стр. 2019-12-02 р.; ; ;без ПДВ.",UA293139570000026008300696560,current,385.71,УДКСУ в Олександрівському районі м. Запоріжжя,38025440,юридична особа
ОПЗЖ,"Запорізька область, Запоріжжя, вулиця Олександрівська, 7",61,2019-12-02,25,Військовий збір,Податкові платежі,274954,Запорізька обласна організація Опозиційна платформа - За життя,39400010,Запорізька область,"*;101;39400010;11011000; Військовий збір 1,5%, утрим. із зар.плати за 2-гу половину листопада 2019 року. Перерах.повн. стр. 2019-12-02 р.; ; ;без ПДВ.",UA293139570000026008300696560,current,32.14,УДКСУ в Олександрівському районі м. Запоріжжя,38025440,юридична особа
ОПЗЖ,"Запорізька область, Запоріжжя",84,2019-12-02,28,"Заробітна плата, премії","Заробітна плата, лікарняні, вагітності, відрядження, компенсації",274933,Запорізька обласна організація Опозиційна платформа - За життя,39400010,Запорізька область,Заробітна плата за 2-гу половину листопада 2019 року. Без ПДВ.,UA293139570000026008300696560,current,1725.01,Матвієнко Павло Дмитрович,,фізична особа
ОПЗЖ,"Київ, вулиця Михайла Грушевського, 1Д",70,2019-12-02,AN9BTO3L2P,Банківські послуги,Інші витрати,274925,Сумська обласна організація Опозиційна платформа - За життя,40899474,Сумська область,Комісія за обслуговування неактивного рахунку,UA453375460000026006055026947,current,100.00,"ПАТ КБ ""Приватбанк""",14360570,юридична особа
ОПЗЖ,"Київ, вулиця Михайла Грушевського, 1Д",70,2019-12-02,AS9BTI2BCP,Банківські послуги,Інші витрати,274920,Кіровоградська обласна організація Опозиційна платформа - За життя,41478573,Кіровоградська область,РКО згідно угоди РКО № б/н від 2019-07-03р.,UA393235830000026007052923685,current,100.00,"ПАТ КБ ""Приватбанк""",14360570,юридична особа
ОПЗЖ,"Київ, Кловський узвіз, 9/2",70,2019-12-02,223482191/ Дог № 2600370046717 9 від 2019-02-12р.,Банківські послуги,Інші витрати,274866,Центральний офіс,21709375,Україна,"Плата за РКО: фіксована плата по тарифному пакету ""Стандарт"", згідно з п. 4.1. договору № 26003700467179 від 2019-02-12 Без ПДВ.",UA603808380000026003700467179,current,59.14,"ПАТ КБ ""Правекс-банк""",14360920,юридична особа
ОПЗЖ,"Київ, вулиця Єреванська, 1",70,2019-11-29,TR.8981501.766979.2667,Банківські послуги,Інші витрати,274975,Житомирська обласна організація Опозиційна платформа - За життя,42417904,Житомирська область,Плата за розрахункое обслуговування,UA643204780000026008924855733,current,60.00,"АБ ""Укргазбанк""",23697280,юридична особа
ОПЗЖ,"Київ, вулиця Бульварно-Кудрявська, 6",70,2019-11-29,288346,Банківські послуги,Інші витрати,274906,Харківська обласна організація Опозиційна платформа - За життя,33900035,Харківська область,"Оплата за переказ кошітв за ел. Банк. Док. Надіслано СДО ""PAY CIB"" зг. Дог.№31935/РКО від 2019-06-21р.",UA493225400000026003101031935,current,100.00,"АТ ""Комерційний індустріальний банк""",21580639,юридична особа
ОПЗЖ,"Київ, вулиця Бульварно-Кудрявська, 6",70,2019-11-29,272947,Банківські послуги,Інші витрати,274905,Харківська обласна організація Опозиційна платформа - За життя,33900035,Харківська область,Комісія за рохрахункове обслуговування поточного рахунку за період 01.11.19-30.11.19 зг. Дог.№31935/РКО від 2019-06-21р. Без ПДВ,UA493225400000026003101031935,current,100.00,"АТ ""Комерційний індустріальний банк""",21580639,юридична особа
ОПЗЖ,"Київ, вулиця Андріївська, 4",70,2019-11-29,TR.29622094.650522.359,Банківські послуги,Інші витрати,274880,Дніпропетровська обласна організація Опозиційна платформа - За життя,41549539,Дніпропетровська область,"Договорное списание комиссии по тарифному пакету за период с 2019-11-01 по 2019-11-30, дог. № 272636160 от 2018-07-09 с-но тарифов ПУМБ",UA903348510000000002600948745,current,170.00,"ПАТ ""ПУМБ""",14282829,юридична особа
ОПЗЖ,"Київ, вулиця Генерала Вітрука, 8А",61,2019-11-29,141,Військовий збір,Податкові платежі,274865,Центральний офіс,21709375,Україна,* ; 11010100 ; 21709375 ; військовий збір із зарплати за I І-у половину листопада 2019 р Без ПДВ.,UA603808380000026003700467179,current,117.77,УДКСУ у Святошинському районі ГУ ДКСУ у м. Києві,37962074,юридична особа
ОПЗЖ,"Київ, вулиця Генерала Вітрука, 8А",63,2019-11-29,142,Податок на доходи,Податкові платежі,274864,Центральний офіс,21709375,Україна,* ; 11010100 ; 21709375 ; ; ; Податок на доходи фізичних осіб із зарплати за IІ-у половину листопада 2019 р Без ПДВ.,UA603808380000026003700467179,current,1413.20,УДКСУ у Святошинському районі ГУ ДКСУ у м. Києві,37962074,юридична особа
ОПЗЖ,"Київ, вулиця Шолуденка, 33/19",62,2019-11-29,143,Сплата ЄСВ,Податкові платежі,274863,Центральний офіс,21709375,Україна,* ; 101 ; 21709375 ; ; ; 22% ЄСВ із зарплати за IІ-у половину листопада 2019 р Без ПДВ.,UA603808380000026003700467179,current,1727.27,ГУ ДФС у м. Києві,39439980,юридична особа
ОПЗЖ,"Житомирська область, Житомир, Смолянський майдан, 3",79,2019-11-28,4,"Оренда будинків і приміщень та експлуатаційні витрати (прибирання, страхування орендованих будинків, охорона, сигналізація, ремонт, вивіз сміття, тощо)",Оренда нерухомості,274974,Житомирська обласна організація Опозиційна платформа - За життя,42417904,Житомирська область,"Оплата за оренду приміщення за листопад 2019р., зг.Акту надання послуг № 22 від 2019-11-28р., в т.ч. ПДВ 166,67 ГРН.",UA643204780000026008924855733,current,1000.00,"ПП ""Подік""",32066937,юридична особа
ОПЗЖ,"Київ, вулиця Єреванська, 1",70,2019-11-28,TR.8981501.900837360,Банківські послуги,Інші витрати,274973,Житомирська обласна організація Опозиційна платформа - За життя,42417904,Житомирська область,Плата за розрахункое обслуговування,UA643204780000026008924855733,current,10.00,"АБ ""Укргазбанк""",23697280,юридична особа
ОПЗЖ,"Київ, бульвар Тараса Шевченка, 18",76,2019-11-26,24,Послуги зв’язку,Послуги зв’язку,274953,Запорізька обласна організація Опозиційна платформа - За життя,39400010,Запорізька область,"Оплата пені,зг.рах.№234000030003242019-10-30 від 31.10.19р.до Договору №2340000300032430. Без ПДВ",UA293139570000026008300696560,current,9.54,"ПАТ ""Укртелеком""",21560766,юридична особа
ОПЗЖ,"Київ, вулиця Михайла Грушевського, 1Д",70,2019-11-19,BJO2QNII1Y,Банківські послуги,Інші витрати,274919,Кіровоградська обласна організація Опозиційна платформа - За життя,41478573,Кіровоградська область,РКО згідно угоди РКО № б/н від 2019-07-03р.,UA393235830000026007052923685,current,3.00,"ПАТ КБ ""Приватбанк""",14360570,юридична особа
ОПЗЖ,"Кіровоградська область, Кропивницький",60,2019-11-19,1,Інші податки,Податкові платежі,274918,Кіровоградська обласна організація Опозиційна платформа - За життя,41478573,Кіровоградська область,Адміністративний збір,UA393235830000026007052923685,current,580.00,УДКСУ у м. Кропивницькому,38037409,юридична особа
ОПЗЖ,м. Кропивницький,82,2019-11-19,2,"Гонорари, в тому числі за надані консультаційні послуги","Гонорари, в тому числі за надані консультаційні послуги",274911,Кіровоградська обласна організація Опозиційна платформа - За життя,41478573,Кіровоградська область,Послуги нотаріуса,UA393235830000026007052923685,current,500.00,Драна Ірина Валентинівна,,фізична особа
ОПЗЖ,"Дніпропетровська область, Дніпро́, проспект Дмитра Яворницького, 18",49,2019-11-19,6,Публікування матеріалів у друкованих ЗМІ,Реклама в друкованих ЗМІ,274879,Дніпропетровська обласна організація Опозиційна платформа - За життя,41549539,Дніпропетровська область,"За інформаційний бюлетень-лістівку по рах. № 901 від 2019-11-01, у т.ч. ПДВ 20% -433,33 грн",UA903348510000000002600948745,current,2600.00,"ТОВ ""Редакція газети ""Зоря""",35497923,юридична особа
ОПЗЖ,"Запорізька область, Запоріжжя, вулиця Олександрівська, 7",61,2019-11-18,22,Військовий збір,Податкові платежі,274952,Запорізька обласна організація Опозиційна платформа - За життя,39400010,Запорізька область,"*;101;39400010;11011000; Військовий збір 1,5%, утрим. із зар.плати за 1-шу половину листопада 2019 року. Перерах.повн. стр. 2019-11-18 р.; ; ;без ПДВ.",UA293139570000026008300696560,current,35.36,УДКСУ в Олександрівському районі м. Запоріжжя,38025440,юридична особа
ОПЗЖ,"Запорізька область, Запоріжжя, вулиця Олександрівська, 7",63,2019-11-18,21,Податок на доходи,Податкові платежі,274951,Запорізька обласна організація Опозиційна платформа - За життя,39400010,Запорізька область,"*;101;39400010;11010100; Податок з доходу фіз.осіб, утрим. із зар.плати за 1-шу половину листопада 2019 року. Перерах.повн. стр. 2019-11-18 р.; ; ;без ПДВ.",UA293139570000026008300696560,current,424.29,УДКСУ в Олександрівському районі м. Запоріжжя,38025440,юридична особа
ОПЗЖ,"Запорізька область, Запоріжжя",84,2019-11-18,23,"Заробітна плата, премії","Заробітна плата, лікарняні, вагітності, відрядження, компенсації",274932,Запорізька обласна організація Опозиційна платформа - За життя,39400010,Запорізька область,Заробітна плата за 1-шу половину листопада 2019 року. Без ПДВ.,UA293139570000026008300696560,current,1897.49,Матвієнко Павло Дмитрович,,фізична особа
ОПЗЖ,"Київ, вулиця Генерала Вітрука, 8А",61,2019-11-15,131,Військовий збір,Податкові платежі,274862,Центральний офіс,21709375,Україна,* ; 11010100 ; 21709375 ; військовий збір із зарплати за І-у половину листопада 2019 р Без ПДВ.,UA603808380000026003700467179,current,111.81,УДКСУ у Святошинському районі ГУ ДКСУ у м. Києві,37962074,юридична особа
ОПЗЖ,"Київ, вулиця Генерала Вітрука, 8А",63,2019-11-15,132,Податок на доходи,Податкові платежі,274861,Центральний офіс,21709375,Україна,* ; 11010100 ; 21709375 ; ; ; Податок на доходи фізичних осіб із зарплати за І-у половину листопада 2019 р Без ПДВ.,UA603808380000026003700467179,current,1341.72,УДКСУ у Святошинському районі ГУ ДКСУ у м. Києві,37962074,юридична особа
ОПЗЖ,"Київ, вулиця Шолуденка, 33/19",62,2019-11-15,133,Сплата ЄСВ,Податкові платежі,274860,Центральний офіс,21709375,Україна,* ; 101 ; 21709375 ; ; ; 22% ЄСВ із зарплати за І-у половину листопада 2019 р Без ПДВ.,UA603808380000026003700467179,current,1639.88,ГУ ДФС у м. Києві,39439980,юридична особа
ОПЗЖ,"Київ, вулиця Предславинська, 28, 1003",78,2019-11-12,138,Оренда обладнання та технічних засобів,Оренда обладнання та технічних засобів,274859,Центральний офіс,21709375,Україна,"Абонентська плата за оренду сервера за жовтень-листопад-грудень 2019р згідно Договору № ППЗЖ-С від 2017-10-01 р. В т.ч. ПДВ – 202,00 грн..",UA603808380000026003700467179,current,1212.00,"ТОВ ""Дрім лайн холдінг""",34981026,юридична особа
ОПЗЖ,"Київ, вулиця Предславинська, 28, 1003",76,2019-11-12,139,Послуги зв’язку,Послуги зв’язку,274858,Центральний офіс,21709375,Україна,"Оплата за необмежений доступ до мережі Інтернет за жовтень-листопад-грудень 2019 р згідно Договору № ППЗЖ від 2017-10-01 р. В т.ч. ПДВ – 50,00 грн..",UA603808380000026003700467179,current,300.00,"ТОВ ""Дрім лайн холдінг""",34981026,юридична особа
ОПЗЖ,"Київ, бульвар Тараса Шевченка, 18",76,2019-11-12,137,Послуги зв’язку,Послуги зв’язку,274857,Центральний офіс,21709375,Україна,"За послуги міжміські та міжнародні розмови за жовтень 2019 р згідно О/Р 8200004425510701. У т.р. ПДВ 51,20 грн.",UA603808380000026003700467179,current,307.20,"ПАТ ""Укртелеком""",21560766,юридична особа
ОПЗЖ,"Київ, вулиця Мечникова, 14/1",79,2019-11-12,140,"Оренда будинків і приміщень та експлуатаційні витрати (прибирання, страхування орендованих будинків, охорона, сигналізація, ремонт, вивіз сміття, тощо)",Оренда нерухомості,274856,Центральний офіс,21709375,Україна,"Оренда приміщення за жовтень-листопад- грудень 2019 р згідно Договору № ДГ-54/1 від 03.10.16г в т.ч. ПДВ – 400,00 грн.",UA603808380000026003700467179,current,2400.00,"Асоціація ""Українсько-Ізраїльська торгова палата""",23153841,юридична особа
ОПЗЖ,"Київ, вулиця Бульварно-Кудрявська, 6",70,2019-11-11,82197,Банківські послуги,Інші витрати,274904,Харківська обласна організація Опозиційна платформа - За життя,33900035,Харківська область,Оплата за переказ кошітв за платіжним дорученням по системі КБ зг. Дог.№31935/РКО від 2019-06-21р.,UA493225400000026003101031935,current,3.00,"АТ ""Комерційний індустріальний банк""",21580639,юридична особа
ОПЗЖ,"Київ, вулиця Бульварно-Кудрявська, 6",70,2019-11-11,82189,Банківські послуги,Інші витрати,274903,Харківська обласна організація Опозиційна платформа - За життя,33900035,Харківська область,Оплата за переказ кошітв за платіжним дорученням по системі КБ зг. Дог.№31935/РКО від 2019-06-21р.,UA493225400000026003101031935,current,3.00,"АТ ""Комерційний індустріальний банк""",21580639,юридична особа
ОПЗЖ,"Харківська область, Харків",79,2019-11-11,12,"Оренда будинків і приміщень та експлуатаційні витрати (прибирання, страхування орендованих будинків, охорона, сигналізація, ремонт, вивіз сміття, тощо)",Оренда нерухомості,274895,Харківська обласна організація Опозиційна платформа - За життя,33900035,Харківська область,Сплата за комунальні послуги за жовтень 2019р. згідно Акту про надання послуг № 9 від 2019-11-08 р. Без ПДВ,UA493225400000026003101031935,current,2931.20,Дорожко Ірина Миколаївна,,фізична особа
ОПЗЖ,"Харківська область, Харків",79,2019-11-11,11,"Оренда будинків і приміщень та експлуатаційні витрати (прибирання, страхування орендованих будинків, охорона, сигналізація, ремонт, вивіз сміття, тощо)",Оренда нерухомості,274894,Харківська обласна організація Опозиційна платформа - За життя,33900035,Харківська область,Сплата за оренду приміщення за листопад 2019р. згідно договору суборенди нежитлового приміщення б\н від 2019-07-05р. Без ПДВ.,UA493225400000026003101031935,current,25000.00,Дорожко Ірина Миколаївна,,фізична особа
ОПЗЖ,"Кіровоградська область, Кропивницький",69,2019-11-05,6,Організація заходів та інші організаційні послуги,Організація заходів та інші організаційні послуги,274917,Кіровоградська обласна організація Опозиційна платформа - За життя,41478573,Кіровоградська область,Оренда конференц-зали,UA393235830000026007052923685,current,1000.00,"ПАТ ""Піраміс""",35189545,юридична особа
ОПЗЖ,"Львівська область, Львів, вулиця Академіка Андрія Сахарова, 78",70,2019-11-05,26740726,Банківські послуги,Інші витрати,274694,Запорізька обласна організація Опозиційна платформа - За життя,39400010,Запорізька область,Комісія за переказ коштів з поточного рах.ЮО за межі с-ми банку по с-мі Клієнт Банк згідно угоди 26004011204599 від 2018-10-05 по документах від 2019-05-11 без ПДВ.,26004011204599,current,1.00,"ПАТ ""Кредобанк""",09807862,юридична особа
ОПЗЖ,"Запорізька область, Мелітополь",52,2019-11-05,127,Інша реклама (без класифікації),Реклама (без класифікації),274651,Запорізька обласна організація Опозиційна платформа - За життя,39400010,Запорізька область,"Оплата за рекламну продукцію, згід. Рах.№ 2304 від 2019-04-23 р.Без ПДВ .",26004011204599,current,5000.00,Цветанський Ігор Сергійович,,фізична особа
ОПЗЖ,"Запорізька область, Запоріжжя, проспект Соборний, 111",79,2019-11-04,20,"Оренда будинків і приміщень та експлуатаційні витрати (прибирання, страхування орендованих будинків, охорона, сигналізація, ремонт, вивіз сміття, тощо)",Оренда нерухомості,274950,Запорізька обласна організація Опозиційна платформа - За життя,39400010,Запорізька область,"Оплата за оренду нежитлового приміщення у жовтні 2019 року згідно Договору № 26 від 2019-06-01 року. В т.ч ПДВ 574,17 грн.",UA293139570000026008300696560,current,3445.00,"Спільне українсько-німецьке підприємство ""Саксонія ГМБХ""",19364710,юридична особа
ОПЗЖ,"Київ, вулиця Михайла Грушевського, 1Д",70,2019-11-04,AN9АV03LUP,Банківські послуги,Інші витрати,274924,Сумська обласна організація Опозиційна платформа - За життя,40899474,Сумська область,Комісія за обслуговування неактивного рахунку,UA453375460000026006055026947,current,100.00,"ПАТ КБ ""Приватбанк""",14360570,юридична особа
ОПЗЖ,"Київ, вулиця Госпітальна, 12Г",70,2019-11-01,848754009,Банківські послуги,Інші витрати,274949,Запорізька обласна організація Опозиційна платформа - За життя,39400010,Запорізька область,Списання щомісячної плати за обслуговування ТП Мій бізнес за жовтень 2019 року,UA293139570000026008300696560,current,149.00,"АТ ""Ощадбанк""",00032129,юридична особа
ОПЗЖ,"Запорізька область, Запоріжжя, вулиця Олександрівська, 7",61,2019-11-01,19,Військовий збір,Податкові платежі,274948,Запорізька обласна організація Опозиційна платформа - За життя,39400010,Запорізька область,"*;101;39400010;11011000; Військовий збір 1,5%, утрим. із зар.плати за 2-гу половину жовтня 2019 року. Перерах.повн. стр. 2019-11-01 р.; ; ;без ПДВ.",UA293139570000026008300696560,current,36.82,УДКСУ в Олександрівському районі м. Запоріжжя,38025440,юридична особа
ОПЗЖ,"Запорізька область, Запоріжжя, вулиця Олександрівська, 7",63,2019-11-01,18,Податок на доходи,Податкові платежі,274947,Запорізька обласна організація Опозиційна платформа - За життя,39400010,Запорізька область,"*;101;39400010;11010100; Податок з доходу фіз.осіб, утрим. із зар.плати за 2-гу половину жовтня 2019 року. Перерах.повн. стр. 2019-11-01 р.; ; ;без ПДВ.",UA293139570000026008300696560,current,441.82,УДКСУ в Олександрівському районі м. Запоріжжя,38025440,юридична особа
ОПЗЖ,"Запорізька область, Запоріжжя, проспект Соборний, 168",62,2019-11-01,16,Сплата ЄСВ,Податкові платежі,274946,Запорізька обласна організація Опозиційна платформа - За життя,39400010,Запорізька область,*;101;39400010;Нарах.ЕСВ 22% на зар.плату за 2-гу половину жовтня 2019 року. Перерах. Повн. Стр. 2019-11-01 р.; ; ; без ПДВ.,UA293139570000026008300696560,current,540.00,ГУ ДПС у Запорізькій області,43143945,юридична особа
ОПЗЖ,"Запорізька область, Запоріжжя",84,2019-11-01,17,"Заробітна плата, премії","Заробітна плата, лікарняні, вагітності, відрядження, компенсації",274931,Запорізька обласна організація Опозиційна платформа - За життя,39400010,Запорізька область,Заробітна плата за 2-гу половину жовтня 2019 року. Без ПДВ.,UA293139570000026008300696560,current,1975.91,Матвієнко Павло Дмитрович,,фізична особа
ОПЗЖ,"Київ, вулиця Михайла Грушевського, 1Д",70,2019-11-01,AS9AVFK9CP,Банківські послуги,Інші витрати,274923,Криворізька міська організація Опозиційна платформа - За життя,42121077,Дніпропетровська область,Комісія за обслуговування за жовтень 2019р. згідно договору банківського рахунку від 2018-05-22 без ПДВ,UA79305700000026000053519207,current,100.00,"ПАТ КБ ""Приватбанк""",14360570,юридична особа
ОПЗЖ,"Київ, вулиця Михайла Грушевського, 1Д",70,2019-11-01,AS9AVHY8QP,Банківські послуги,Інші витрати,274916,Кіровоградська обласна організація Опозиційна платформа - За життя,41478573,Кіровоградська область,РКО згідно угоди РКО № б/н від 2019-07-03р.,UA393235830000026007052923685,current,100.00,"ПАТ КБ ""Приватбанк""",14360570,юридична особа
ОПЗЖ,"Київ, Кловський узвіз, 9/2",70,2019-11-01,222549306/ Дог № 2600370046717 9 від 2019-02-12р.,Банківські послуги,Інші витрати,274855,Центральний офіс,21709375,Україна,"Плата за РКО: фіксована плата по тарифному пакету ""Стандарт"", згідно з п. 4.1. договору № 26003700467179 від 2019-02-12 Без ПДВ.",UA603808380000026003700467179,current,150.00,"ПАТ КБ ""Правекс-банк""",14360920,юридична особа
ОПЗЖ,"Київ, вулиця Генерала Вітрука, 8А",63,2019-11-01,126,Податок на доходи,Податкові платежі,274854,Центральний офіс,21709375,Україна,* ; 11010100 ; 21709375 ; ; ; Податок на доходи фізичних осіб із зарплати за І І-у половину жовтня 2019 р Без ПДВ.,UA603808380000026003700467179,current,1413.20,УДКСУ у Святошинському районі ГУ ДКСУ у м. Києві,37962074,юридична особа
ОПЗЖ,"Київ, вулиця Шолуденка, 33/19",62,2019-11-01,127,Сплата ЄСВ,Податкові платежі,274853,Центральний офіс,21709375,Україна,* ; 101 ; 21709375 ; ; ; 22% ЄСВ із зарплати за ІІ-у половину жовтня 2019 р Без ПДВ.,UA603808380000026003700467179,current,1727.27,ГУ ДФС у м. Києві,39439980,юридична особа
ОПЗЖ,"Київ, вулиця Шолуденка, 33/19",61,2019-11-01,125,Військовий збір,Податкові платежі,274852,Центральний офіс,21709375,Україна,* ; 11010100 ; 21709375 ; військовий збір із зарплати за ІІ-у половину жовтня 2019 р Без ПДВ.,UA603808380000026003700467179,current,117.77,УДКСУ у Святошинському районі ГУ ДКСУ у м. Києві,37962074,юридична особа
ОПЗЖ,"Київ, вулиця Єреванська, 1",70,2019-10-31,TR.8981501.262918910,Банківські послуги,Інші витрати,274971,Житомирська обласна організація Опозиційна платформа - За життя,42417904,Житомирська область,Плата за розрахункое обслуговування,UA643204780000026008924855733,current,10.00,"АБ ""Укргазбанк""",23697280,юридична особа
ОПЗЖ,"Київ, вулиця Єреванська, 1",70,2019-10-31,TR.8981501.731719.2667,Банківські послуги,Інші витрати,274970,Житомирська обласна організація Опозиційна платформа - За життя,42417904,Житомирська область,Плата за розрахункое обслуговування,UA643204780000026008924855733,current,60.00,"АБ ""Укргазбанк""",23697280,юридична особа
ОПЗЖ,"Кіровоградська область, Кропивницький",79,2019-10-31,5,"Оренда будинків і приміщень та експлуатаційні витрати (прибирання, страхування орендованих будинків, охорона, сигналізація, ремонт, вивіз сміття, тощо)",Оренда нерухомості,274915,Кіровоградська обласна організація Опозиційна платформа - За життя,41478573,Кіровоградська область,Оплата за оренду приміщення,UA393235830000026007052923685,current,1460.00,"ПАТ ""Піраміс""",35189545,юридична особа
ОПЗЖ,"Київ, вулиця Бульварно-Кудрявська, 6",70,2019-10-31,272903,Банківські послуги,Інші витрати,274902,Харківська обласна організація Опозиційна платформа - За життя,33900035,Харківська область,"Оплата за переказ кошітв за ел. Банк. Док. Надіслано СДО ""PAY CIB"" зг. Дог.№31935/РКО від 2019-06-21р.",UA493225400000026003101031935,current,100.00,"АТ ""Комерційний індустріальний банк""",21580639,юридична особа
ОПЗЖ,"Київ, вулиця Бульварно-Кудрявська, 6",70,2019-10-31,271585,Банківські послуги,Інші витрати,274901,Харківська обласна організація Опозиційна платформа - За життя,33900035,Харківська область,Комісія за рохрахункове обслуговування поточного рахунку за період 01.10.19-31.10.19 зг. Дог.№31935/РКО від 2019-06-21р. Без ПДВ,UA493225400000026003101031935,current,100.00,"АТ ""Комерційний індустріальний банк""",21580639,юридична особа
ОПЗЖ,"Київ, вулиця Андріївська, 4",70,2019-10-31,TR.29622094.549141.359,Банківські послуги,Інші витрати,274878,Дніпропетровська обласна організація Опозиційна платформа - За життя,41549539,Дніпропетровська область,"Договірне списання комісії по тарифному пакету за період з 2019-10-01 по 2019-10-31, дог. № 272636160 от 2018-07-09 згідно тарифів ПУМБ",UA903348510000000002600948745,current,170.00,"ПАТ ""ПУМБ""",14282829,юридична особа
ОПЗЖ,"Житомирська область, Житомир, вулиця Святослава Ріхтера, 12/5",60,2019-10-29,2,Інші податки,Податкові платежі,274969,Житомирська обласна організація Опозиційна платформа - За життя,42417904,Житомирська область,"*;101;42417904;22010300; За державну реєстрацію громадських формувань за ККД адміністративний збір за проведення держ.реєстрації юридич.осіб, без ПДВ",UA643204780000026008924855733,current,580.00,УДКСУ у м. Житомирі,38056726,юридична особа
ОПЗЖ,"Київ, вулиця Єреванська, 1",70,2019-10-29,TR.8981501.761415778,Банківські послуги,Інші витрати,274968,Житомирська обласна організація Опозиційна платформа - За життя,42417904,Житомирська область,Плата за розрахункое обслуговування,UA643204780000026008924855733,current,10.00,"АБ ""Укргазбанк""",23697280,юридична особа
ОПЗЖ,"Кіровоградська область, Кропивницький",79,2019-10-28,4,"Оренда будинків і приміщень та експлуатаційні витрати (прибирання, страхування орендованих будинків, охорона, сигналізація, ремонт, вивіз сміття, тощо)",Оренда нерухомості,274914,Кіровоградська обласна організація Опозиційна платформа - За життя,41478573,Кіровоградська область,Оплата за оренду приміщення,UA393235830000026007052923685,current,1460.00,"ПАТ ""Піраміс""",35189545,юридична особа
ОПЗЖ,"Кіровоградська область, Кропивницький",79,2019-10-28,3,"Оренда будинків і приміщень та експлуатаційні витрати (прибирання, страхування орендованих будинків, охорона, сигналізація, ремонт, вивіз сміття, тощо)",Оренда нерухомості,274913,Кіровоградська обласна організація Опозиційна платформа - За життя,41478573,Кіровоградська область,Оплата за оренду приміщення,UA393235830000026007052923685,current,1460.00,"ПАТ ""Піраміс""",35189545,юридична особа
ОПЗЖ,"Київ, бульвар Тараса Шевченка, 18",76,2019-10-25,15,Послуги зв’язку,Послуги зв’язку,274945,Запорізька обласна організація Опозиційна платформа - За життя,39400010,Запорізька область,"Оплата за послуги зв""язку у травні 2019р.,зг.рах.№2340000300032430.9.2019 від 30.09.19р.до Договору №2340000300032430. в т. ч. ПДВ 20% 167.70 грн.",UA293139570000026008300696560,current,1020.97,"ПАТ ""Укртелеком""",21560766,юридична особа
ОПЗЖ,"Житомирська область, Житомир, Смолянський майдан, 3",79,2019-10-24,3,"Оренда будинків і приміщень та експлуатаційні витрати (прибирання, страхування орендованих будинків, охорона, сигналізація, ремонт, вивіз сміття, тощо)",Оренда нерухомості,274972,Житомирська обласна організація Опозиційна платформа - За життя,42417904,Житомирська область,"Оплата за оренду приміщення за жовтень 2019р., зг.Акту надання послуг № 58 від 2019-10-27р., в т.ч. ПДВ 166,67 ГРН.",UA643204780000026008924855733,current,1000.00,"ПП ""Подік""",32066937,юридична особа
ОПЗЖ,"Житомирська область, Житомир, Смолянський майдан, 3",79,2019-10-24,1,"Оренда будинків і приміщень та експлуатаційні витрати (прибирання, страхування орендованих будинків, охорона, сигналізація, ремонт, вивіз сміття, тощо)",Оренда нерухомості,274967,Житомирська обласна організація Опозиційна платформа - За життя,42417904,Житомирська область,"Оплата за оренду приміщення за червень-вересень 2019р., зг.Дог.від 2018-10-01р.та зг.Актів№ОУ-0000038 від 2019-10-31р., №52 від 2019-09-30р., в т.ч. ПДВ 666,67 ГРН.",UA643204780000026008924855733,current,4000.00,"ПП ""Подік""",32066937,юридична особа
ОПЗЖ,"Київ, вулиця Єреванська, 1",70,2019-10-24,TR.8981501.439448073,Банківські послуги,Інші витрати,274966,Житомирська обласна організація Опозиційна платформа - За життя,42417904,Житомирська область,Плата за розрахункое обслуговування,UA643204780000026008924855733,current,10.00,"АБ ""Укргазбанк""",23697280,юридична особа
ОПЗЖ,"Київ, вулиця Андріївська, 4",70,2019-10-18,TR.29605239.31341.16948,Банківські послуги,Інші витрати,274877,Дніпропетровська обласна організація Опозиційна платформа - За життя,41549539,Дніпропетровська область,"Договірне списання комісії за надання довідки інформаційного характеру згідно п.1.17.1 тарифів ПУМБ, по дог № 272636160 від 2018-07-09",UA903348510000000002600948745,current,150.00,"ПАТ ""ПУМБ""",14282829,юридична особа
ОПЗЖ,"Запорізька область, Запоріжжя, вулиця Олександрівська, 7",61,2019-10-16,13,Військовий збір,Податкові платежі,274944,Запорізька обласна організація Опозиційна платформа - За життя,39400010,Запорізька область,"*;101;39400010;11011000; Військовий збір 1,5%, утрим. із зар.плати за 1-шу половину жовтня 2019 року. Перерах.повн. стр. 2019-10-16 р.; ; ;без ПДВ.",UA293139570000026008300696560,current,30.68,УДКСУ в Олександрівському районі м. Запоріжжя,38025440,юридична особа
ОПЗЖ,"Запорізька область, Запоріжжя, вулиця Олександрівська, 7",63,2019-10-16,12,Податок на доходи,Податкові платежі,274943,Запорізька обласна організація Опозиційна платформа - За життя,39400010,Запорізька область,"*;101;39400010;11010100; Податок з доходу фіз.осіб, утрим. із зар.плати за 1-шу половину жовтня 2019 року. Перерах.повн. стр. 2019-10-16 р.; ; ;без ПДВ.",UA293139570000026008300696560,current,368.18,УДКСУ в Олександрівському районі м. Запоріжжя,38025440,юридична особа
ОПЗЖ,"Запорізька область, Запоріжжя, проспект Соборний, 168",62,2019-10-16,11,Сплата ЄСВ,Податкові платежі,274942,Запорізька обласна організація Опозиційна платформа - За життя,39400010,Запорізька область,*;101;39400010;Нарах.ЕСВ 22% на зар.плату за 1-шу половину жовтня 2019 року. Перерах. Повн. Стр. 2019-10-16 р.; ; ; без ПДВ.,UA293139570000026008300696560,current,450.00,ГУ ДПС у Запорізькій області,43143945,юридична особа
ОПЗЖ,"Запорізька область, Запоріжжя",84,2019-10-16,14,"Заробітна плата, премії","Заробітна плата, лікарняні, вагітності, відрядження, компенсації",274930,Запорізька обласна організація Опозиційна платформа - За життя,39400010,Запорізька область,Заробітна плата за 1-шу половину жовтня 2019 року. Без ПДВ.,UA293139570000026008300696560,current,1646.59,Матвієнко Павло Дмитрович,,фізична особа
ОПЗЖ,"Київ, бульвар Тараса Шевченка, 18",76,2019-10-15,124,Послуги зв’язку,Послуги зв’язку,274851,Центральний офіс,21709375,Україна,"За послуги міжміські та міжнародні розмови згідно О/Р 8200004425510701. У т.р. ПДВ 51,20 грн.",UA603808380000026003700467179,current,307.20,"ПАТ ""Укртелеком""",21560766,юридична особа
ОПЗЖ,"Київ, вулиця Генерала Вітрука, 8А",63,2019-10-15,120,Податок на доходи,Податкові платежі,274850,Центральний офіс,21709375,Україна,* ; 11010100 ; 21709375 ; ; ; Податок на доходи фізичних осіб із зарплати за І-у половину жовтня 2019 р Без ПДВ.,UA603808380000026003700467179,current,1341.72,УДКСУ у Святошинському районі ГУ ДКСУ у м. Києві,37962074,юридична особа
ОПЗЖ,"Київ, вулиця Шолуденка, 33/19",62,2019-10-15,119,Сплата ЄСВ,Податкові платежі,274849,Центральний офіс,21709375,Україна,* ; 101 ; 21709375 ; ; ; 22% ЄСВ із зарплати за І-у половину жовтня 2019 р Без ПДВ.,UA603808380000026003700467179,current,1639.88,ГУ ДФС у м. Києві,39439980,юридична особа
ОПЗЖ,"Київ, вулиця Генерала Вітрука, 8А",61,2019-10-15,118,Військовий збір,Податкові платежі,274848,Центральний офіс,21709375,Україна,* ; 11010100 ; 21709375 ; військовий збір із зарплати за І-у половину жовтня 2019 р Без ПДВ.,UA603808380000026003700467179,current,111.81,УДКСУ у Святошинському районі ГУ ДКСУ у м. Києві,37962074,юридична особа
ОПЗЖ,"Київ, вулиця Бульварно-Кудрявська, 6",70,2019-10-11,107992,Банківські послуги,Інші витрати,274900,Харківська обласна організація Опозиційна платформа - За життя,33900035,Харківська область,Комісія за переказ коштів за платіжним друченням по системі КБ заперіод 11/10/19-11/10/19 зг. Дог. №31935/РКО від 2019-06-21р. Без ПДВ,UA493225400000026003101031935,current,3.00,"АТ ""Комерційний індустріальний банк""",21580639,юридична особа
ОПЗЖ,"Харківська область, Харків",58,2019-10-11,9,"Виготовлення друкованих матеріалів (плакатів, листівок, буклетів та інших агітаційних матеріалів)",Друкована агітація,274893,Харківська обласна організація Опозиційна платформа - За життя,33900035,Харківська область,"Сплата за поліграфічні послуги з друку газета ""Справжнє життя"" згідно договору № 3-10\19 від 2019-10-04. Без ПДВ",UA493225400000026003101031935,current,1740.00,Гурʼєва Людмила Вікторівна,,фізична особа
ОПЗЖ,"Київ, вулиця Михайла Грушевського, 1Д",70,2019-10-10,AAO2LM3X9Y,Банківські послуги,Інші витрати,274922,Криворізька міська організація Опозиційна платформа - За життя,42121077,Дніпропетровська область,"Комісія за виконання платежів в національній валюті, згідно відкритою офертою банку №б/н від 2018-05-22 та тарифів банку, без ПДВ",UA79305700000026000053519207,current,3.00,"ПАТ КБ ""Приватбанк""",14360570,юридична особа
ОПЗЖ,"Дніпропетровська область, Кривий Ріг, проспект Металургів, 39",60,2019-10-10,15,Інші податки,Податкові платежі,274921,Криворізька міська організація Опозиційна платформа - За життя,42121077,Дніпропетровська область,*;22020300;42121077; Оплата за зміни до місцезнаходження. Без ПДВ,UA79305700000026000053519207,current,580.00,УДКСУ у м. Кривому Розі Дніпропетровської області,38032510,юридична особа
ОПЗЖ,"Київ, вулиця Бульварно-Кудрявська, 6",70,2019-10-09,85383,Банківські послуги,Інші витрати,274899,Харківська обласна організація Опозиційна платформа - За життя,33900035,Харківська область,Комісія за переказ коштів за платіжним друченням по системі КБ заперіод 09/10/19-09/10/19 зг. Дог. №31935/РКО від 2019-06-21р. Без ПДВ,UA493225400000026003101031935,current,3.00,"АТ ""Комерційний індустріальний банк""",21580639,юридична особа
ОПЗЖ,"Київ, вулиця Бульварно-Кудрявська, 6",70,2019-10-09,85119,Банківські послуги,Інші витрати,274898,Харківська обласна організація Опозиційна платформа - За життя,33900035,Харківська область,Комісія за переказ коштів за платіжним друченням по системі КБ заперіод 09/10/19-09/10/19 зг. Дог. №31935/РКО від 2019-06-21р. Без ПДВ,UA493225400000026003101031935,current,3.00,"АТ ""Комерційний індустріальний банк""",21580639,юридична особа
ОПЗЖ,"Харківська область, Харків",79,2019-10-09,8,"Оренда будинків і приміщень та експлуатаційні витрати (прибирання, страхування орендованих будинків, охорона, сигналізація, ремонт, вивіз сміття, тощо)",Оренда нерухомості,274892,Харківська обласна організація Опозиційна платформа - За життя,33900035,Харківська область,Сплата за комунальні послуги за вересень 2019р. згідно Акту про надання послуг № 2 від 2019-10-04 р. Без ПДВ,UA493225400000026003101031935,current,2546.83,Дорожко Ірина Миколаївна,,фізична особа
ОПЗЖ,"Харківська область, Харків",79,2019-10-09,7,"Оренда будинків і приміщень та експлуатаційні витрати (прибирання, страхування орендованих будинків, охорона, сигналізація, ремонт, вивіз сміття, тощо)",Оренда нерухомості,274891,Харківська обласна організація Опозиційна платформа - За життя,33900035,Харківська область,Сплата за оренду приміщення за липень 2019р. згідно договору суборенди нежитлового приміщення б\н від 2019-07-05р. Без ПДВ.,UA493225400000026003101031935,current,25000.00,Дорожко Ірина Миколаївна,,фізична особа
ОПЗЖ,"Запорізька область, Запоріжжя, проспект Соборний, 111",79,2019-10-07,10,"Оренда будинків і приміщень та експлуатаційні витрати (прибирання, страхування орендованих будинків, охорона, сигналізація, ремонт, вивіз сміття, тощо)",Оренда нерухомості,274941,Запорізька обласна організація Опозиційна платформа - За життя,39400010,Запорізька область,"Оплата за оренду нежитлового приміщення у вересні 2019 року згідно Договору № 26 від 2019-06-01 року. В т.ч ПДВ 574,17 грн.",UA293139570000026008300696560,current,3445.00,"Спільне українсько-німецьке підприємство ""Саксонія ГМБХ""",19364710,юридична особа
ОПЗЖ,"Запорізька область, Запоріжжя, вулиця Олександрівська, 7",61,2019-10-02,8,Військовий збір,Податкові платежі,274940,Запорізька обласна організація Опозиційна платформа - За життя,39400010,Запорізька область,"*;101;39400010;11011000; Військовий збір 1,5%, утрим. із зар.плати за 2-гу половину вересня 2019 року. Перерах.повн. стр. 2019-10-02 р.; ; ;без ПДВ.",UA293139570000026008300696560,current,25.71,УДКСУ в Олександрівському районі м. Запоріжжя,38025440,юридична особа
ОПЗЖ,"Запорізька область, Запоріжжя, вулиця Олександрівська, 7",63,2019-10-02,7,Податок на доходи,Податкові платежі,274939,Запорізька обласна організація Опозиційна платформа - За життя,39400010,Запорізька область,"*;101;39400010;11010100; Податок з доходу фіз.осіб, утрим. із зар.плати за 2-гу половину вересня 2019 року. Перерах.повн. стр. 2019-10-02 р.; ; ;без ПДВ.",UA293139570000026008300696560,current,308.57,УДКСУ в Олександрівському районі м. Запоріжжя,38025440,юридична особа
ОПЗЖ,"Запорізька область, Запоріжжя, проспект Соборний, 168",62,2019-10-02,6,Сплата ЄСВ,Податкові платежі,274938,Запорізька обласна організація Опозиційна платформа - За життя,39400010,Запорізька область,*;101;39400010;Нарах.ЕСВ 22% на зар.плату за 2-гу половину вересня 2019 року. Перерах. Повн. Стр. 2019-10-02 р.; ; ; без ПДВ.,UA293139570000026008300696560,current,377.14,ГУ ДПС у Запорізькій області,43143945,юридична особа
ОПЗЖ,"Запорізька область, Запоріжжя",84,2019-10-02,9,"Заробітна плата, премії","Заробітна плата, лікарняні, вагітності, відрядження, компенсації",274929,Запорізька обласна організація Опозиційна платформа - За життя,39400010,Запорізька область,Заробітна плата за 2-гу половину вересня 2019 року. Без ПДВ.,UA293139570000026008300696560,current,1380.01,Матвієнко Павло Дмитрович,,фізична особа
ОПЗЖ,"Київ, вулиця Госпітальна, 12Г",70,2019-10-01,5402905909,Банківські послуги,Інші витрати,274937,Запорізька обласна організація Опозиційна платформа - За життя,39400010,Запорізька область,"Сплата комісії згідно тарифу банку за довідку про рух коштів (3 міс), без ПДВ",UA293139570000026008300696560,current,150.00,"АТ ""Ощадбанк""",00032129,юридична особа
ОПЗЖ,"Київ, вулиця Госпітальна, 12Г",70,2019-10-01,5412640209,Банківські послуги,Інші витрати,274936,Запорізька обласна організація Опозиційна платформа - За життя,39400010,Запорізька область,Списання щомісячної плати за обслуговування ТП Мій бізнес за вересень 2019 року,UA293139570000026008300696560,current,149.00,"АТ ""Ощадбанк""",00032129,юридична особа
ОПЗЖ,"Київ, вулиця Михайла Грушевського, 1Д",70,2019-10-01,AS99U8EUSP,Банківські послуги,Інші витрати,274912,Кіровоградська обласна організація Опозиційна платформа - За життя,41478573,Кіровоградська область,РКО згідно угоди РКО № б/н від 2019-07-03р.,UA393235830000026007052923685,current,100.00,"ПАТ КБ ""Приватбанк""",14360570,юридична особа
ОПЗЖ,"Київ, Кловський узвіз, 9/2",70,2019-10-01,221665682/ Дог № 2600370046717 9 від 2019-02-12р.,Банківські послуги,Інші витрати,274847,Центральний офіс,21709375,Україна,"Плата за РКО: фіксована плата по тарифному пакету ""Стандарт"", згідно з п. 4.1. договору № 26003700467179 від 2019-02-12 Без ПДВ.",UA603808380000026003700467179,current,150.00,"ПАТ КБ ""Правекс-банк""",14360920,юридична особа
ОПЗЖ,"Київ, вулиця Бульварно-Кудрявська, 6",70,2019-09-30,230402,Банківські послуги,Інші витрати,274832,Харківська обласна організація Опозиційна платформа - За життя,33900035,Харківська область,Комісія за рохрахункове обслуговування поточного рахунку за період 01.09.19-30.09.19 зг. Дог.№31935/РКО від 2019-06-21р. Без ПДВ,26003101031935,current,100.00,"АТ ""Комерційний індустріальний банк""",21580639,юридична особа
ОПЗЖ,"Київ, вулиця Бульварно-Кудрявська, 6",70,2019-09-30,231651,Банківські послуги,Інші витрати,274831,Харківська обласна організація Опозиційна платформа - За життя,33900035,Харківська область,"Оплата за переказ кошітв за ел. Банк. Док. Надіслано СДО ""PAY CIB"" зг. Дог.№31935/РКО від 2019-06-21р.",26003101031935,current,100.00,"АТ ""Комерційний індустріальний банк""",21580639,юридична особа
ОПЗЖ,"Київ, вулиця Андріївська, 4",70,2019-09-30,TR.29622094.588300.359,Банківські послуги,Інші витрати,274816,Дніпропетровська обласна організація Опозиційна платформа - За життя,41549539,Дніпропетровська область,"Договірне списання комісії по тарифному пакету за період з 2019-09-01 по 2019-09-30, дог. № 272636160 от 2018-07-09 з-но тарифів ПУМБ",2600948745,current,170.00,"ПАТ ""ПУМБ""",14282829,юридична особа
ОПЗЖ,"Київ, Кудрявський узвіз, 2",70,2019-09-30,88482,Банківські послуги,Інші витрати,274811,Центральний офіс,21709375,Україна,Оплата за обслуговування в тарифному пакеті за період 2019-09-01-2019-09-30 зг. Дог. 26004001085864 від 2019-08-08 і тарифами банку. без ПДВ.,26003700467179,current,200.00,"Кременчуцька філія ПАТ ""Кристалбанк""",39544699,юридична особа
ОПЗЖ,"Київ, вулиця Генерала Вітрука, 8А",63,2019-09-30,114,Податок на доходи,Податкові платежі,274810,Центральний офіс,21709375,Україна,* ; 11010100 ; 21709375 ; ; ; Податок на доходи фізичних осіб із зарплати за І І-у половину вересня 2019 р Без ПДВ.,26003700467179,current,1413.20,УДКСУ у Святошинському районі ГУ ДКСУ у м. Києві,37962074,юридична особа
ОПЗЖ,"Київ, вулиця Шолуденка, 33/19",62,2019-09-30,113,Сплата ЄСВ,Податкові платежі,274809,Центральний офіс,21709375,Україна,* ; 101 ; 21709375 ; ; ; 22% ЄСВ із зарплати за ІІ-у половину вересня 2019 р Без ПДВ.,26003700467179,current,1727.27,ГУ ДФС у м. Києві,39439980,юридична особа
ОПЗЖ,"Київ, вулиця Генерала Вітрука, 8А",61,2019-09-30,112,Військовий збір,Податкові платежі,274808,Центральний офіс,21709375,Україна,* ; 11010100 ; 21709375 ; військовий збір із зарплати за ІІ-у половину вересня 2019 р Без ПДВ.,26003700467179,current,117.77,УДКСУ у Святошинському районі ГУ ДКСУ у м. Києві,37962074,юридична особа
ОПЗЖ,Київ,84,2019-09-30,117,"Заробітна плата, премії","Заробітна плата, лікарняні, вагітності, відрядження, компенсації",274757,Центральний офіс,21709375,Україна,Поповнення карткового Рах № 4731 2191 1086 6922 (зарплата за ІІ-у половину вересня 2019р) Без ПДВ.,26003700467179,current,2025.00,Смілянська Галина Федорівна,,фізична особа
ОПЗЖ,Київ,84,2019-09-30,115,"Заробітна плата, премії","Заробітна плата, лікарняні, вагітності, відрядження, компенсації",274756,Центральний офіс,21709375,Україна,Поповнення карткового Рах № 5168 7422 20591949 (зарплата за ІІ- у половину вересня 2019р) Без ПДВ.,26003700467179,current,2147.78,Шило Розалі Георгіївна,,фізична особа
ОПЗЖ,"Донецька область, Мар'їнський район, Курахове",84,2019-09-30,116,"Заробітна плата, премії","Заробітна плата, лікарняні, вагітності, відрядження, компенсації",274755,Центральний офіс,21709375,Україна,Поповнення карткового Рах № 4149439007900909 (зарплата за ІІ-у половину вересня 2019р) Без ПДВ.,26003700467179,current,2147.78,Кухарський Олександр Олександрович,,фізична особа
ОПЗЖ,"Запорізька область, Запоріжжя, вулиця Олександрівська, 7",61,2019-09-18,4,Військовий збір,Податкові платежі,274844,Запорізька обласна організація Опозиційна платформа - За життя,39400010,Запорізька область,"*;101;39400010;11011000; Військовий збір 1,5%, утрим. із зар.плати за 1-шу половину вересня 2019 року. Перерах.повн. Стр. 2019-09-18 р.; ; ;без ПДВ.",UA293139570000026008300696560,current,41.79,УДКСУ в Олександрівському районі м. Запоріжжя,38025440,юридична особа
ОПЗЖ,"Запорізька область, Запоріжжя, вулиця Олександрівська, 7",63,2019-09-18,3,Податок на доходи,Податкові платежі,274843,Запорізька обласна організація Опозиційна платформа - За життя,39400010,Запорізька область,"*;101;39400010;11010100; Податок з доходу фіз.осіб, утрим. із зар.плати за 1-шу половину вересня 2019 року. Перерах.повн. Стр. 2019-09-18 р.; ; ;без ПДВ.",UA293139570000026008300696560,current,501.43,УДКСУ в Олександрівському районі м. Запоріжжя,38025440,юридична особа
ОПЗЖ,"Запорізька область, Запоріжжя, проспект Соборний, 168",62,2019-09-18,2,Сплата ЄСВ,Податкові платежі,274842,Запорізька обласна організація Опозиційна платформа - За життя,39400010,Запорізька область,*;101;39968366;Нарах.ЕСВ 22% на зар.плату за 1-шу половину вересня 2019 року. Перерах. Повн. Стр. 2019-09-18 р.; ; ; без ПДВ.,UA293139570000026008300696560,current,612.86,ГУ ДФС у Запорізькій області,39396146,юридична особа
ОПЗЖ,"Запорізька область, Запоріжжя",84,2019-09-18,5,"Заробітна плата, премії","Заробітна плата, лікарняні, вагітності, відрядження, компенсації",274835,Запорізька обласна організація Опозиційна платформа - За життя,39400010,Запорізька область,Заробітна плата за 1-шу половину вересня 2019 року. Без ПДВ.,UA293139570000026008300696560,current,2242.49,Матвієнко Павло Дмитрович,,фізична особа
ОПЗЖ,"Київ, вулиця Генерала Вітрука, 8А",63,2019-09-13,108,Податок на доходи,Податкові платежі,274807,Центральний офіс,21709375,Україна,* ; 11010100 ; 21709375 ; ; ; Податок на доходи фізичних осіб із зарплати за І-у половину вересня 2019 р Без ПДВ.,26003700467179,current,1341.72,УДКСУ у Святошинському районі ГУ ДКСУ у м. Києві,37962074,юридична особа
ОПЗЖ,"Київ, вулиця Шолуденка, 33/19",62,2019-09-13,107,Сплата ЄСВ,Податкові платежі,274806,Центральний офіс,21709375,Україна,* ; 101 ; 21709375 ; ; ; 22% ЄСВ із зарплати за І-у половину вересня 2019 р Без ПДВ.,26003700467179,current,1639.88,ГУ ДФС у м. Києві,39439980,юридична особа
ОПЗЖ,"Київ, вулиця Генерала Вітрука, 8А",61,2019-09-13,106,Військовий збір,Податкові платежі,274805,Центральний офіс,21709375,Україна,* ; 11010100 ; 21709375 ; військовий збір із зарплати за І-у половину вересня 2019 р Без ПДВ.,26003700467179,current,111.81,УДКСУ у Святошинському районі ГУ ДКСУ у м. Києві,37962074,юридична особа
ОПЗЖ,"Київ, вулиця Мечникова, 14/1",79,2019-09-13,105,"Оренда будинків і приміщень та експлуатаційні витрати (прибирання, страхування орендованих будинків, охорона, сигналізація, ремонт, вивіз сміття, тощо)",Оренда нерухомості,274804,Центральний офіс,21709375,Україна,"Оренда приміщення за вересень 2019 р згідно р/ф № СФ-0000789 від 29.08.19г в т.ч. ПДВ – 133,33 грн.",26003700467179,current,800.00,"Асоціація ""Українсько-Ізраїльська торгова палата""",23153841,юридична особа
ОПЗЖ,"Київ, вулиця Предславинська, 28, 1003",76,2019-09-13,104,Послуги зв’язку,Послуги зв’язку,274803,Центральний офіс,21709375,Україна,"Оплата за необмежений доступ до мережі Інтернет за вересень 2019 р. рах №1892 від 01.09.19р В т.ч. ПДВ – 16,67 грн..",26003700467179,current,100.00,"ТОВ ""Дрім лайн холдінг""",34981026,юридична особа
ОПЗЖ,"Київ, вулиця Предславинська, 28, 1003",78,2019-09-13,103,Оренда обладнання та технічних засобів,Оренда обладнання та технічних засобів,274802,Центральний офіс,21709375,Україна,"Абонентська плата за оренду сервера за вересень 2019р згідно рах №1893 від 01.09.19 В т.ч. ПДВ – 67,33 грн.",26003700467179,current,404.00,"ТОВ ""Дрім лайн холдінг""",34981026,юридична особа
ОПЗЖ,"Київ, вулиця Мечникова, 14/1",82,2019-09-13,102,"Гонорари, в тому числі за надані консультаційні послуги","Гонорари, в тому числі за надані консультаційні послуги",274801,Центральний офіс,21709375,Україна,Абонентська плата за вересень 2019 р. згідно Договору №01/05-2017 від 2017-05-01р. Без ПДВ.,26003700467179,current,2000.00,"ТОВ ""Адвокатська компанія ""Золота середина""",37884206,юридична особа
ОПЗЖ,"Київ, бульвар Тараса Шевченка, 18",76,2019-09-13,101,Послуги зв’язку,Послуги зв’язку,274800,Центральний офіс,21709375,Україна,"За послуги проводового електрозвʼязку за серпень 2019 р. згідно з договором№ 2551070 О/Р 8200004425510701. В т.ч. ПДВ 51,20 грн.",26003700467179,current,307.20,"ПАТ ""Укртелеком""",21560766,юридична особа
ОПЗЖ,"Київ, вулиця Генерала Вітрука, 8А",63,2019-09-13,96,Податок на доходи,Податкові платежі,274799,Центральний офіс,21709375,Україна,* ; 11010100 ; 21709375 ; ; ; Податок на доходи фізичних осіб із зарплати за І І-у половину серпня 2019 р Без ПДВ.,26003700467179,current,1413.20,УДКСУ у Святошинському районі ГУ ДКСУ у м. Києві,37962074,юридична особа
ОПЗЖ,"Київ, вулиця Шолуденка, 33/19",62,2019-09-13,95,Сплата ЄСВ,Податкові платежі,274798,Центральний офіс,21709375,Україна,* ; 101 ; 21709375 ; ; ; 22% ЄСВ із зарплати за ІІ-у половину серпня 2019 р Без ПДВ.,26003700467179,current,1727.27,ГУ ДФС у м. Києві,39439980,юридична особа
ОПЗЖ,"Київ, вулиця Генерала Вітрука, 8А",61,2019-09-13,94,Військовий збір,Податкові платежі,274797,Центральний офіс,21709375,Україна,* ; 11010100 ; 21709375 ; військовий збір із зарплати за ІІ-у половину серпня 2019 р Без ПДВ.,26003700467179,current,117.77,УДКСУ у Святошинському районі ГУ ДКСУ у м. Києві,37962074,юридична особа
ОПЗЖ,"Донецька область, Мар'їнський район, Курахове",84,2019-09-13,110,"Заробітна плата, премії","Заробітна плата, лікарняні, вагітності, відрядження, компенсації",274754,Центральний офіс,21709375,Україна,Поповнення карткового Рах № 4149439007900909 (зарплата за І-у половину вересня 2019р) Без ПДВ.,26003700467179,current,2000.00,Кухарський Олександр Олександрович,,фізична особа
ОПЗЖ,Київ,84,2019-09-13,111,"Заробітна плата, премії","Заробітна плата, лікарняні, вагітності, відрядження, компенсації",274753,Центральний офіс,21709375,Україна,Поповнення карткового Рах № 4731 2191 1086 6922 (зарплата за І-у половину вересня 2019р) Без ПДВ.,26003700467179,current,2000.00,Смілянська Галина Федорівна,,фізична особа
ОПЗЖ,Київ,84,2019-09-13,109,"Заробітна плата, премії","Заробітна плата, лікарняні, вагітності, відрядження, компенсації",274752,Центральний офіс,21709375,Україна,Поповнення карткового Рах № 5168 7422 20591949 (зарплата за І- у половину вересня 2019р) Без ПДВ.,26003700467179,current,2000.00,Шило Розалі Георгіївна,,фізична особа
ОПЗЖ,"Донецька область, Мар'їнський район, Курахове",84,2019-09-13,98,"Заробітна плата, премії","Заробітна плата, лікарняні, вагітності, відрядження, компенсації",274751,Центральний офіс,21709375,Україна,Поповнення карткового Рах № 5457 0822 3662 3018 (зарплата за ІІ-у половину серпня 2019р) Без ПДВ.,26003700467179,current,2147.78,Кухарський Олександр Олександрович,,фізична особа
ОПЗЖ,Київ,84,2019-09-13,99,"Заробітна плата, премії","Заробітна плата, лікарняні, вагітності, відрядження, компенсації",274750,Центральний офіс,21709375,Україна,Поповнення карткового Рах № 4731 2191 1086 6922 (зарплата за ІІ-у половину серпня 2019р) Без ПДВ.,26003700467179,current,2025.00,Смілянська Галина Федорівна,,фізична особа
ОПЗЖ,Київ,84,2019-09-13,97,"Заробітна плата, премії","Заробітна плата, лікарняні, вагітності, відрядження, компенсації",274749,Центральний офіс,21709375,Україна,Поповнення карткового Рах № 5168 7422 20591949 (зарплата за ІІ- у половину серпня 2019р) Без ПДВ.,26003700467179,current,2147.78,Шило Розалі Георгіївна,,фізична особа
ОПЗЖ,,66,2019-09-10,93,Повернення внесків приватних внесків (донорам),Повернення приватних внесків (донорам),274738,Центральний офіс,21709375,Україна,"Повернненя грошового внеску відповідно до п8 ч1 ч7 ст15 Закону України ""Про політичні партії в Україні"" Без ПДВ.",26003700467179,current,1600000.00,Молчанова Лариса Вікторівна,,фізична особа
ОПЗЖ,,66,2019-09-09,92,Повернення внесків приватних внесків (донорам),Повернення приватних внесків (донорам),274737,Центральний офіс,21709375,Україна,"Повернненя грошового внеску відповідно до п8 ч1 ч7 ст15 Закону України ""Про політичні партії в Україні""",26003700467179,current,600000.00,Белоусова Олена Сергіївна,,фізична особа
ОПЗЖ,,66,2019-09-06,90,Повернення внесків приватних внесків (донорам),Повернення приватних внесків (донорам),274736,Центральний офіс,21709375,Україна,"Повернненя грошового внеску відповідно до п8 ч1 ч7 ст15 Закону України ""Про політичні партії в Україні"" Без ПДВ.",26003700467179,current,1600000.00,Гриб Юрій,,фізична особа
ОПЗЖ,,66,2019-09-06,89,Повернення внесків приватних внесків (донорам),Повернення приватних внесків (донорам),274735,Центральний офіс,21709375,Україна,"Повернненя грошового внеску відповідно до п8 ч1 ч7 ст15 Закону України ""Про політичні партії в Україні"" Без ПДВ.",26003700467179,current,200000.00,Гриб Анастасія,,фізична особа
ОПЗЖ,,66,2019-09-06,89,Повернення внесків приватних внесків (донорам),Повернення приватних внесків (донорам),274734,Центральний офіс,21709375,Україна,"Повернненя грошового внеску відповідно до п8 ч1 ч7 ст15 Закону України ""Про політичні партії в Україні"" Без ПДВ.",26003700467179,current,1000000.00,Гриб Анастасія,,фізична особа
ОПЗЖ,"Львівська область, Пустомитівський район, Сокільники",66,2019-09-06,88,Повернення внесків приватних внесків (донорам),Повернення приватних внесків (донорам),274733,Центральний офіс,21709375,Україна,"Повернненя грошового внеску відповідно до п8 ч1 ч7 ст15 Закону України ""Про політичні партії в Україні"" Без ПДВ.",26003700467179,current,1600000.00,Козак Тарас Романович,,фізична особа
ОПЗЖ,,66,2019-09-06,87,Повернення внесків приватних внесків (донорам),Повернення приватних внесків (донорам),274732,Центральний офіс,21709375,Україна,"Повернненя грошового внеску відповідно до п8 ч1 ч7 ст15 Закону України ""Про політичні партії в Україні"" Без ПДВ.",26003700467179,current,1600000.00,Козак Богдан Романович,,фізична особа
ОПЗЖ,Київ,66,2019-09-06,86,Повернення внесків приватних внесків (донорам),Повернення приватних внесків (донорам),274731,Центральний офіс,21709375,Україна,"Повернненя грошового внеску відповідно до п8 ч1 ч7 ст15 Закону України ""Про політичні партії в Україні"" Без ПДВ.",26003700467179,current,1600000.00,Шуфрич Нестор Іванович,,фізична особа
ОПЗЖ,"Кіровоградська область, Кропивницький",79,2019-09-05,1,"Оренда будинків і приміщень та експлуатаційні витрати (прибирання, страхування орендованих будинків, охорона, сигналізація, ремонт, вивіз сміття, тощо)",Оренда нерухомості,274834,Кіровоградська обласна організація Опозиційна платформа - За життя,41478573,Кіровоградська область,Оренда приміщення,UA393235830000026007052923685,current,1460.00,"ПАТ ""Піраміс""",35189545,юридична особа
ОПЗЖ,"Київ, вулиця Бульварно-Кудрявська, 6",70,2019-09-04,27855,Банківські послуги,Інші витрати,274830,Харківська обласна організація Опозиційна платформа - За життя,33900035,Харківська область,Комісія за переказ коштів за платіжним друченням по системі КБ заперіод 04.09.19-04.09.19 зг. Дог. №31935/РКО від 2019-06-21р. Без ПДВ,26003101031935,current,3.00,"АТ ""Комерційний індустріальний банк""",21580639,юридична особа
ОПЗЖ,"Київ, вулиця Бульварно-Кудрявська, 6",70,2019-09-04,27437,Банківські послуги,Інші витрати,274829,Харківська обласна організація Опозиційна платформа - За життя,33900035,Харківська область,Комісія за переказ коштів за платіжним друченням по системі КБ заперіод 04.09.19-04.09.19 зг. Дог. №31935/РКО від 2019-06-21р. Без ПДВ,26003101031935,current,3.00,"АТ ""Комерційний індустріальний банк""",21580639,юридична особа
ОПЗЖ,"Київ, вулиця Бульварно-Кудрявська, 6",70,2019-09-04,27486,Банківські послуги,Інші витрати,274828,Харківська обласна організація Опозиційна платформа - За життя,33900035,Харківська область,Комісія за переказ коштів за платіжним друченням по системі КБ заперіод 04.09.19-04.09.19 зг. Дог. №31935/РКО від 2019-06-21р. Без ПДВ,26003101031935,current,3.00,"АТ ""Комерційний індустріальний банк""",21580639,юридична особа
ОПЗЖ,"Харківська область, Харківський район, Мерефа",79,2019-09-04,6,"Оренда будинків і приміщень та експлуатаційні витрати (прибирання, страхування орендованих будинків, охорона, сигналізація, ремонт, вивіз сміття, тощо)",Оренда нерухомості,274827,Харківська обласна організація Опозиційна платформа - За життя,33900035,Харківська область,Сплата за оренду приміщення згідно акту № 169 від 2019-06-30р. Без ПДВ,26003101031935,current,4154.32,"ТОВ ""Укрестейт""",39355403,юридична особа
ОПЗЖ,"Харківська область, Харків",79,2019-09-04,5,"Оренда будинків і приміщень та експлуатаційні витрати (прибирання, страхування орендованих будинків, охорона, сигналізація, ремонт, вивіз сміття, тощо)",Оренда нерухомості,274821,Харківська обласна організація Опозиційна платформа - За життя,33900035,Харківська область,Сплата за комунальні послуги за серпень 2019р. згідно Акту про надання послуг № 4 від 2019-09-03р. Без ПДВ,26003101031935,current,3030.60,Дорожко Ірина Миколаївна,,фізична особа
ОПЗЖ,"Харківська область, Харків",79,2019-09-04,4,"Оренда будинків і приміщень та експлуатаційні витрати (прибирання, страхування орендованих будинків, охорона, сигналізація, ремонт, вивіз сміття, тощо)",Оренда нерухомості,274820,Харківська обласна організація Опозиційна платформа - За життя,33900035,Харківська область,Сплата за комунальні послуги за липень 2019р. згідно Акту про надання послуг № 2 від 2019-07-31 р. Без ПДВ,26003101031935,current,3873.35,Дорожко Ірина Миколаївна,,фізична особа
ОПЗЖ,"Київ, вулиця Андріївська, 4",70,2019-09-04,TR.29605239.43776.16948,Банківські послуги,Інші витрати,274726,Дніпропетровська обласна організація Опозиційна платформа - За життя,41549539,Дніпропетровська область,Договірне списання комісії за надання довідки,2600948745,current,150.00,"ПАТ ""ПУМБ""",14282829,юридична особа
ОПЗЖ,"Запорізька область, Запоріжжя, проспект Соборний, 111",79,2019-09-03,1,"Оренда будинків і приміщень та експлуатаційні витрати (прибирання, страхування орендованих будинків, охорона, сигналізація, ремонт, вивіз сміття, тощо)",Оренда нерухомості,274841,Запорізька обласна організація Опозиційна платформа - За життя,39400010,Запорізька область,"Оплата за оренду нежитлового приміщення у червні-серпні 2019 року згідно Договору № 26 від 2019-06-01 року. В т.ч ПДВ 262,50 грн.",UA293139570000026008300696560,current,1575.00,"Спільне українсько-німецьке підприємство ""Саксонія ГМБХ""",19364710,юридична особа
ОПЗЖ,"Київ, вулиця Бульварно-Кудрявська, 6",70,2019-09-03,21712,Банківські послуги,Інші витрати,274826,Харківська обласна організація Опозиційна платформа - За життя,33900035,Харківська область,Комісія за переказ коштів за платіжним друченням по системі КБ заперіод 03.09.19-03.09.19 зг. Дог. №31935/РКО від 2019-06-21р. Без ПДВ,26003101031935,current,25.00,"АТ ""Комерційний індустріальний банк""",21580639,юридична особа
ОПЗЖ,"Харківська область, Харків",79,2019-09-03,3,"Оренда будинків і приміщень та експлуатаційні витрати (прибирання, страхування орендованих будинків, охорона, сигналізація, ремонт, вивіз сміття, тощо)",Оренда нерухомості,274819,Харківська обласна організація Опозиційна платформа - За життя,33900035,Харківська область,Сплата за оренду приміщення за вересень 2019р. згідно договору суборенди нежитлового приміщення б\н від 2019-07-05р. Без ПДВ.,26003101031935,current,25000.00,Дорожко Ірина Миколаївна,,фізична особа
ОПЗЖ,"Київ, вулиця Госпітальна, 12Г",70,2019-09-02,9266940209,Банківські послуги,Інші витрати,274840,Запорізька обласна організація Опозиційна платформа - За життя,39400010,Запорізька область,Списання щомісячної плати за обслуговування ТП Мій бізнес за серпень 2019 року,UA293139570000026008300696560,current,149.00,"АТ ""Ощадбанк""",00032129,юридична особа
ОПЗЖ,"Київ, Кловський узвіз, 9/2",70,2019-09-02,2209378 46/,Банківські послуги,Інші витрати,274796,Центральний офіс,21709375,Україна,"Плата за РКО: фіксована плата по тарифному пакету ""Стандарт"", згідно з п. 4.1. договору № 26003700467179 від 2019-02-12 Без ПДВ.",26003700467179,current,150.00,"ПАТ КБ ""Правекс-банк""",14360920,юридична особа
ОПЗЖ,"Київ, вулиця Бульварно-Кудрявська, 6",70,2019-08-30,213930,Банківські послуги,Інші витрати,274825,Харківська обласна організація Опозиційна платформа - За життя,33900035,Харківська область,Комісія за рохрахункове обслуговування поточного рахунку за період 01.08.19-31.08.19 зг. Дог.№31935/РКО від 2019-06-21р. Без ПДВ,26003101031935,current,100.00,"АТ ""Комерційний індустріальний банк""",21580639,юридична особа
ОПЗЖ,"Київ, вулиця Бульварно-Кудрявська, 6",70,2019-08-30,239349,Банківські послуги,Інші витрати,274824,Харківська обласна організація Опозиційна платформа - За життя,33900035,Харківська область,"Оплата за переказ кошітв за ел. Банк. Док. Надіслано СДО ""PAY CIB"" зг. Дог.№31935/РКО від 2019-06-21р.",26003101031935,current,100.00,"АТ ""Комерційний індустріальний банк""",21580639,юридична особа
ОПЗЖ,"Київ, вулиця Андріївська, 4",70,2019-08-30,TR.29622094.537525.359,Банківські послуги,Інші витрати,274815,Дніпропетровська обласна організація Опозиційна платформа - За життя,41549539,Дніпропетровська область,"Договірне списання комісії по тарифному пакету за період з 2019-08-01 по 2019-08-31, дог. № 272636160 от 2018-07-09 з-но тарифів ПУМБ",2600948745,current,170.00,"ПАТ ""ПУМБ""",14282829,юридична особа
ОПЗЖ,"Київ, Кудрявський узвіз, 2",70,2019-08-30,88482,Банківські послуги,Інші витрати,274795,Центральний офіс,21709375,Україна,Оплата за обслуговування в тарифному пакеті за період 2019-08-08-2019-08-31 зг. Дог. 26004001085864 від 2019-08-08 і тарифами банку. без ПДВ.,26003700467179,current,200.00,"Кременчуцька філія ПАТ ""Кристалбанк""",39544699,юридична особа
ОПЗЖ,"Київ, Кудрявський узвіз, 2",70,2019-08-28,71164,Банківські послуги,Інші витрати,274794,Центральний офіс,21709375,Україна,Оплата комісійної винагороди за відкриття другого та кожного наступного рахунку в будь- якій валюті за період згідно 26004001085864 від 2019-08-08 без ПДВ.,26003700467179,current,100.00,"Кременчуцька філія ПАТ ""Кристалбанк""",39544699,юридична особа
ОПЗЖ,"Львівська область, Львів, вулиця Академіка Андрія Сахарова, 78",70,2019-08-27,49228588,Банківські послуги,Інші витрати,274839,Запорізька обласна організація Опозиційна платформа - За життя,39400010,Запорізька область,Комісія за переказ коштів з поточного рах.ЮО за межі с-ми банку в післяопер. Час згідно угоди 26004011204599 від 2018-09-25 по документах від 2019-08-27 без ПДВ.,UA523253650000026004011204599,current,50.00,"ПАТ ""Кредобанк""",09807862,юридична особа
ОПЗЖ,"Львівська область, Львів, вулиця Академіка Андрія Сахарова, 78",70,2019-08-23,48903771,Банківські послуги,Інші витрати,274838,Запорізька обласна організація Опозиційна платформа - За життя,39400010,Запорізька область,Комісія за за закриття рахунку згідно з розпорядженням на договірне списання. Без ПДВ.,UA523253650000026004011204599,current,300.00,"ПАТ ""Кредобанк""",09807862,юридична особа
ОПЗЖ,"Львівська область, Львів, вулиця Академіка Андрія Сахарова, 78",70,2019-08-23,48903731,Банківські послуги,Інші витрати,274837,Запорізька обласна організація Опозиційна платформа - За життя,39400010,Запорізька область,Комісія за видачу довідок згідно тарифів банку згідно з розпорядженням на договірне списання. Без ПДВ,UA523253650000026004011204599,current,100.00,"ПАТ ""Кредобанк""",09807862,юридична особа
ОПЗЖ,"Київ, бульвар Тараса Шевченка, 18",76,2019-08-19,84,Послуги зв’язку,Послуги зв’язку,274793,Центральний офіс,21709375,Україна,"За послуги проводового електрозвʼязку за липень 2019 р. згідно з договором№ 2551070 О/Р 8200004425510701. В т.ч. ПДВ 51,20 грн.",26003700467179,current,307.20,"ПАТ ""Укртелеком""",21560766,юридична особа
ОПЗЖ,"Київ, вулиця Мечникова, 14/1",79,2019-08-15,83,"Оренда будинків і приміщень та експлуатаційні витрати (прибирання, страхування орендованих будинків, охорона, сигналізація, ремонт, вивіз сміття, тощо)",Оренда нерухомості,274792,Центральний офіс,21709375,Україна,"Оренда приміщення за серпень 2019 р згідно р/ф № СФ-0000741 від 29.07.19г в т.ч. ПДВ – 133,33 грн.",26003700467179,current,800.00,"Асоціація ""Українсько-Ізраїльська торгова палата""",23153841,юридична особа
ОПЗЖ,"Київ, вулиця Мечникова, 14/1",82,2019-08-15,82,"Гонорари, в тому числі за надані консультаційні послуги","Гонорари, в тому числі за надані консультаційні послуги",274791,Центральний офіс,21709375,Україна,Абонентська плата за серпень 2019 р. згідно Договору №01/05-2017 від 2017-05-01р. Без ПДВ.,26003700467179,current,2000.00,"ТОВ ""Адвокатська компанія ""Золота середина""",37884206,юридична особа
ОПЗЖ,"Київ, вулиця Предславинська, 28, 1003",76,2019-08-15,81,Послуги зв’язку,Послуги зв’язку,274790,Центральний офіс,21709375,Україна,"Оплата за необмежений доступ до мережі Інтернет за серпень згідно дог № ППЗЖ від 2017-10-01 р. та рах №1510 від 01.07.19р В т.ч. ПДВ – 16,67 грн..",26003700467179,current,100.00,"ТОВ ""Дрім лайн холдінг""",34981026,юридична особа
ОПЗЖ,"Київ, вулиця Предславинська, 28, 1003",78,2019-08-15,80,Оренда обладнання та технічних засобів,Оренда обладнання та технічних засобів,274789,Центральний офіс,21709375,Україна,"Абонентська плата за оренду сервера за серпень 2019р згідно Договору № ППЗЖ-С від 2017-10-01 р. та рах №1511 від 01.07.19 В т.ч. ПДВ – 67,33 грн..",26003700467179,current,404.00,"ТОВ ""Дрім лайн холдінг""",34981026,юридична особа
ОПЗЖ,"Київ, вулиця Генерала Вітрука, 8А",63,2019-08-15,76,Податок на доходи,Податкові платежі,274788,Центральний офіс,21709375,Україна,* ; 11010100 ; 21709375 ; ; ; Податок на доходи фізичних осіб із зарплати за І-у половину серпня 2019 р Без ПДВ.,26003700467179,current,1341.72,УДКСУ у Святошинському районі ГУ ДКСУ у м. Києві,37962074,юридична особа
ОПЗЖ,"Київ, вулиця Шолуденка, 33/19",62,2019-08-15,75,Сплата ЄСВ,Податкові платежі,274787,Центральний офіс,21709375,Україна,* ; 101 ; 21709375 ; ; ; 22% ЄСВ із зарплати за І-у половину серпня 2019 р Без ПДВ.,26003700467179,current,1639.88,ГУ ДФС у м. Києві,39439980,юридична особа
ОПЗЖ,"Київ, вулиця Генерала Вітрука, 8А",61,2019-08-15,74,Військовий збір,Податкові платежі,274786,Центральний офіс,21709375,Україна,* ; 11010100 ; 21709375 ; військовий збір із зарплати за І-у половину серпня 2019 р Без ПДВ.,26003700467179,current,111.81,УДКСУ у Святошинському районі ГУ ДКСУ у м. Києві,37962074,юридична особа
ОПЗЖ,"Донецька область, Мар'їнський район, Курахове",84,2019-08-15,78,"Заробітна плата, премії","Заробітна плата, лікарняні, вагітності, відрядження, компенсації",274748,Центральний офіс,21709375,Україна,Поповнення карткового Рах № 5457 0822 3662 3018 (зарплата за І-у половину серпня 2019р) Без ПДВ.,26003700467179,current,2000.00,Кухарський Олександр Олександрович,,фізична особа
ОПЗЖ,Київ,84,2019-08-15,79,"Заробітна плата, премії","Заробітна плата, лікарняні, вагітності, відрядження, компенсації",274747,Центральний офіс,21709375,Україна,Поповнення карткового Рах № 4731 2191 1086 6922 (зарплата за І-у половину серпня 2019р) Без ПДВ.,26003700467179,current,2000.00,Смілянська Галина Федорівна,,фізична особа
ОПЗЖ,Київ,84,2019-08-15,77,"Заробітна плата, премії","Заробітна плата, лікарняні, вагітності, відрядження, компенсації",274746,Центральний офіс,21709375,Україна,Поповнення карткового Рах № 5168 7422 2059 1949 (зарплата за І-у половину серпня 2019р) Без ПДВ.,26003700467179,current,2000.00,Шило Розалі Георгіївна,,фізична особа
ОПЗЖ,"Київ, вулиця Бульварно-Кудрявська, 6",70,2019-08-12,78785,Банківські послуги,Інші витрати,274823,Харківська обласна організація Опозиційна платформа - За життя,33900035,Харківська область,Комісія за переказ коштів за платіжним друченням по системі КБ заперіод 12.08.19-12.08.19 зг. Дог. №31935/РКО від 2019-06-21р. Без ПДВ,26003101031935,current,3.00,"АТ ""Комерційний індустріальний банк""",21580639,юридична особа
ОПЗЖ,"Київ, вулиця Бульварно-Кудрявська, 6",70,2019-08-12,78784,Банківські послуги,Інші витрати,274822,Харківська обласна організація Опозиційна платформа - За життя,33900035,Харківська область,Комісія за переказ коштів за платіжним друченням по системі КБ заперіод 12.08.19-12.08.19 зг. Дог. №31935/РКО від 2019-06-21р. Без ПДВ,26003101031935,current,3.00,"АТ ""Комерційний індустріальний банк""",21580639,юридична особа
ОПЗЖ,"Харківська область, Харків",79,2019-08-12,2,"Оренда будинків і приміщень та експлуатаційні витрати (прибирання, страхування орендованих будинків, охорона, сигналізація, ремонт, вивіз сміття, тощо)",Оренда нерухомості,274818,Харківська обласна організація Опозиційна платформа - За життя,33900035,Харківська область,Сплата за оренду приміщення за серпень 2019р. згідно договору суборенди нежитлового приміщення б\н від 2019-07-05р. Без ПДВ.,26003101031935,current,25000.00,Дорожко Ірина Миколаївна,,фізична особа
ОПЗЖ,"Харківська область, Харків",79,2019-08-12,1,"Оренда будинків і приміщень та експлуатаційні витрати (прибирання, страхування орендованих будинків, охорона, сигналізація, ремонт, вивіз сміття, тощо)",Оренда нерухомості,274817,Харківська обласна організація Опозиційна платформа - За життя,33900035,Харківська область,Сплата за оренду приміщення за липень 2019р. згідно договору суборенди нежитлового приміщення б\н від 2019-07-05р. Без ПДВ.,26003101031935,current,25000.00,Дорожко Ірина Миколаївна,,фізична особа
ОПЗЖ,"Київ, Кловський узвіз, 9/2",70,2019-08-01,2202298 48/,Банківські послуги,Інші витрати,274785,Центральний офіс,21709375,Україна,"Плата за РКО: фіксована плата по тарифному пакету ""Стандарт"", згідно з п. 4.1. договору № 26003700467179 від 2019-02-12 Без ПДВ.",26003700467179,current,150.00,"ПАТ КБ ""Правекс-банк""",14360920,юридична особа
ОПЗЖ,"Київ, вулиця Мечникова, 14/1",82,2019-08-01,73,"Гонорари, в тому числі за надані консультаційні послуги","Гонорари, в тому числі за надані консультаційні послуги",274784,Центральний офіс,21709375,Україна,Абонентська плата за липень 2019 р. згідно Договору №01/05-2017 від 2017-05-01р. Без ПДВ.,26003700467179,current,2000.00,"ТОВ ""Адвокатська компанія ""Золота середина""",37884206,юридична особа
ОПЗЖ,"Київ, вулиця Предславинська, 28, 1003",76,2019-08-01,72,Послуги зв’язку,Послуги зв’язку,274783,Центральний офіс,21709375,Україна,"Оплата за необмежений доступ до мережі Інтернет липень згідно дог № ППЗЖ від 2017-10-01 р. В т.ч. ПДВ – 16,67 грн..",26003700467179,current,100.00,"ТОВ ""Дрім лайн холдінг""",34981026,юридична особа
ОПЗЖ,"Київ, вулиця Предславинська, 28, 1003",78,2019-08-01,71,Оренда обладнання та технічних засобів,Оренда обладнання та технічних засобів,274782,Центральний офіс,21709375,Україна,"Абонентська плата за оренду сервера за липень 2019р згідно Договору № ППЗЖ-С від 2017-10-01 р. В т.ч. ПДВ – 67,33 грн..",26003700467179,current,404.00,"ТОВ ""Дрім лайн холдінг""",34981026,юридична особа
ОПЗЖ,"Київ, вулиця Мечникова, 14/1",79,2019-08-01,70,"Оренда будинків і приміщень та експлуатаційні витрати (прибирання, страхування орендованих будинків, охорона, сигналізація, ремонт, вивіз сміття, тощо)",Оренда нерухомості,274781,Центральний офіс,21709375,Україна,Оренда приміщення за липень 2019 р згідно р/ф № СФ-0000739 від 27.06.19г,26003700467179,current,800.00,"Асоціація ""Українсько-Ізраїльська торгова палата""",23153841,юридична особа
ОПЗЖ,"Київ, вулиця Генерала Вітрука, 8А",63,2019-08-01,66,Податок на доходи,Податкові платежі,274780,Центральний офіс,21709375,Україна,* ; 11010100 ; 21709375 ; ; ; Податок на доходи фізичних осіб із зарплати за І І-у половину липня 2019 р Без ПДВ.,26003700467179,current,1413.20,УДКСУ у Святошинському районі ГУ ДКСУ у м. Києві,37962074,юридична особа
ОПЗЖ,"Київ, вулиця Шолуденка, 33/19",62,2019-08-01,65,Сплата ЄСВ,Податкові платежі,274779,Центральний офіс,21709375,Україна,* ; 101 ; 21709375 ; ; ; 22% ЄСВ із зарплати за ІІ-у половину липня 2019 р Без ПДВ.,26003700467179,current,1727.27,ГУ ДФС у м. Києві,39439980,юридична особа
ОПЗЖ,"Київ, вулиця Шолуденка, 33/19",61,2019-08-01,64,Військовий збір,Податкові платежі,274778,Центральний офіс,21709375,Україна,* ; 11010100 ; 21709375 ; військовий збір із зарплати за ІІ-у половину липня 2019 р Без ПДВ.,26003700467179,current,117.77,УДКСУ у Святошинському районі ГУ ДКСУ у м. Києві,37962074,юридична особа
ОПЗЖ,"Донецька область, Мар'їнський район, Курахове",84,2019-08-01,68,"Заробітна плата, премії","Заробітна плата, лікарняні, вагітності, відрядження, компенсації",274745,Центральний офіс,21709375,Україна,Поповнення карткового Рах № 5457 0822 3662 3018 (зарплата за ІІ-у половину липня 2019р),26003700467179,current,2147.78,Кухарський Олександр Олександрович,,фізична особа
ОПЗЖ,Київ,84,2019-08-01,69,"Заробітна плата, премії","Заробітна плата, лікарняні, вагітності, відрядження, компенсації",274744,Центральний офіс,21709375,Україна,Поповнення карткового Рах № 4731 2191 1086 6922 (зарплата за ІІ-у половину липня 2019р) Без ПДВ.,26003700467179,current,2025.00,Смілянська Галина Федорівна,,фізична особа
ОПЗЖ,Київ,84,2019-08-01,67,"Заробітна плата, премії","Заробітна плата, лікарняні, вагітності, відрядження, компенсації",274743,Центральний офіс,21709375,Україна,Поповнення карткового Рах № 5168 7422 20591949 (зарплата за ІІ- у половину липня 2019р) Без ПДВ.,26003700467179,current,2147.78,Шило Розалі Георгіївна,,фізична особа
ОПЗЖ,"Київ, вулиця Андріївська, 4",70,2019-07-31,TR.29622094.295547.359,Банківські послуги,Інші витрати,274814,Дніпропетровська обласна організація Опозиційна платформа - За життя,41549539,Дніпропетровська область,"Договірне списання комісії по тарифному пакету за період з 2019-07-01 по 2019-07-31, дог. № 272636160 от 2018-07-09 з-но тарифів ПУМБ",2600948745,current,170.00,"ПАТ ""ПУМБ""",14282829,юридична особа
ОПЗЖ,"Київ, вулиця Михайла Грушевського, 1Д",70,2019-07-29,LHJ7300116,Банківські послуги,Інші витрати,274833,Кіровоградська обласна організація Опозиційна платформа - За життя,41478573,Кіровоградська область,РКО згідно угоди РКО № б/н від 2019-07-03р.,UA393235830000026007052923685,current,100.00,"ПАТ КБ ""Приватбанк""",14360570,юридична особа
ОПЗЖ,"Київ, вулиця Терещенківська, 11А",60,2019-07-23,63,Інші податки,Податкові платежі,274777,Центральний офіс,21709375,Україна,"*;101;21709375;22030106; Судовий збір за подання апеляційної скарги згідно Ухвали від 2019-07-19 по справі №855/242/19, адмін провадження № А/9901/181/19",26003700467179,current,17289.00,ГУ ДКСУ у м. Києві,37993783,юридична особа
ОПЗЖ,"Київ, вулиця Андріївська, 4",70,2019-07-22,TR.29605239.75968.14389,Банківські послуги,Інші витрати,274813,Дніпропетровська обласна організація Опозиційна платформа - За життя,41549539,Дніпропетровська область,Договірне списання комісії за надання дубліката виписки по рахунку відповідно п 1.12.1 тарифів ПУМБ по дог. № 272636160 від 2018-07-09,2600948745,current,50.00,"ПАТ ""ПУМБ""",14282829,юридична особа
ОПЗЖ,"Київ, вулиця Москворіцька, 13",46,2019-07-19,62,Перерахування коштів на виборчі рахунки партії,Перерахування коштів до виборчих фондів,275015,Центральний офіс,21709375,Україна,Перерахунок коштів на рахунок виборчого фонду партії на парламентських виборах,26006799976560,current,3805000.00,Центральний офіс Опозиційна платформа - За життя,21709375,юридична особа
ОПЗЖ,"Київ, вулиця Москворіцька, 13",46,2019-07-18,52,Перерахування коштів на виборчі рахунки партії,Перерахування коштів до виборчих фондів,275014,Центральний офіс,21709375,Україна,Перерахунок коштів на рахунок виборчого фонду партії на парламентських виборах,26006799976560,current,6840.00,Центральний офіс Опозиційна платформа - За життя,21709375,юридична особа
ОПЗЖ,"Київ, вулиця Мечникова, 10/2",69,2019-07-18,61,Організація заходів та інші організаційні послуги,Організація заходів та інші організаційні послуги,274776,Центральний офіс,21709375,Україна,Плата за оренду Конференц-залу згідно Договору від 2019-05-26р у т.ч. ПДВ - 833.33 грн.,26003700467179,current,5000.00,"ТОВ ""Передові технології плюс""",33191861,юридична особа
ОПЗЖ,"Київ, вулиця Басейна, 6, 1003",69,2019-07-18,60,Організація заходів та інші організаційні послуги,Організація заходів та інші організаційні послуги,274775,Центральний офіс,21709375,Україна,Плата за оренду Конференц-залу згідно Договору від 2019-05-26р у т.ч. ПДВ - 833.33 грн.,26003700467179,current,5000.00,"ПрАТ ""Мандарин плаза""",30675610,юридична особа
ОПЗЖ,"Київ, вулиця Генерала Вітрука, 8А",63,2019-07-18,55,Податок на доходи,Податкові платежі,274774,Центральний офіс,21709375,Україна,* ; 11010100 ; 21709375 ; ; ; Податок на доходи фізичних осіб із зарплати за І-у половину липня 2019 р Без ПДВ.,26003700467179,current,1341.72,УДКСУ у Святошинському районі ГУ ДКСУ у м. Києві,37962074,юридична особа
ОПЗЖ,"Київ, вулиця Шолуденка, 33/19",62,2019-07-18,54,Сплата ЄСВ,Податкові платежі,274773,Центральний офіс,21709375,Україна,* ; 101 ; 21709375 ; ; ; 22% ЄСВ із зарплати за І-у половину липня 2019 р Без ПДВ.,26003700467179,current,1639.88,ГУ ДФС у м. Києві,39439980,юридична особа
ОПЗЖ,"Київ, вулиця Генерала Вітрука, 8А",61,2019-07-18,53,Військовий збір,Податкові платежі,274772,Центральний офіс,21709375,Україна,* ; 11010100 ; 21709375 ; військовий збір із зарплати за І-у половину липня 2019 р Без ПДВ.,26003700467179,current,111.81,УДКСУ у Святошинському районі ГУ ДКСУ у м. Києві,37962074,юридична особа
ОПЗЖ,"Донецька область, Мар'їнський район, Курахове",84,2019-07-18,58,"Заробітна плата, премії","Заробітна плата, лікарняні, вагітності, відрядження, компенсації",274742,Центральний офіс,21709375,Україна,Поповнення карткового Рах № 5457 0822 3662 3018 (зарплата за І-у половину липня 2019р) Без ПДВ.,26003700467179,current,2000.00,Кухарський Олександр Олександрович,,фізична особа
ОПЗЖ,Київ,84,2019-07-18,59,"Заробітна плата, премії","Заробітна плата, лікарняні, вагітності, відрядження, компенсації",274741,Центральний офіс,21709375,Україна,Поповнення карткового Рах № 4731 2191 1086 6922 (зарплата за І-у половину липня 2019р) Без ПДВ.,26003700467179,current,2000.00,Смілянська Галина Федорівна,,фізична особа
ОПЗЖ,Київ,84,2019-07-18,56,"Заробітна плата, премії","Заробітна плата, лікарняні, вагітності, відрядження, компенсації",274740,Центральний офіс,21709375,Україна,Поповнення карткового Рах № 5168 7422 2059 1949 (зарплата за І-у половину липня 2019р) Без ПДВ.,26003700467179,current,2000.00,Шило Розалі Георгіївна,,фізична особа
ОПЗЖ,"Київ, вулиця Москворіцька, 13",46,2019-07-17,51,Перерахування коштів на виборчі рахунки партії,Перерахування коштів до виборчих фондів,275013,Центральний офіс,21709375,Україна,Перерахунок коштів на рахунок виборчого фонду партії на парламентських виборах,26006799976560,current,50000.00,Центральний офіс Опозиційна платформа - За життя,21709375,юридична особа
ОПЗЖ,"Київ, вулиця Москворіцька, 13",46,2019-07-17,50,Перерахування коштів на виборчі рахунки партії,Перерахування коштів до виборчих фондів,275012,Центральний офіс,21709375,Україна,Перерахунок коштів на рахунок виборчого фонду партії на парламентських виборах,26006799976560,current,52500.00,Центральний офіс Опозиційна платформа - За життя,21709375,юридична особа
ОПЗЖ,"Київ, вулиця Москворіцька, 13",46,2019-07-17,49,Перерахування коштів на виборчі рахунки партії,Перерахування коштів до виборчих фондів,275011,Центральний офіс,21709375,Україна,Перерахунок коштів на рахунок виборчого фонду партії на парламентських виборах,26006799976560,current,1600000.00,Центральний офіс Опозиційна платформа - За життя,21709375,юридична особа
ОПЗЖ,"Київ, вулиця Москворіцька, 13",46,2019-07-16,48,Перерахування коштів на виборчі рахунки партії,Перерахування коштів до виборчих фондів,275010,Центральний офіс,21709375,Україна,Перерахунок коштів на рахунок виборчого фонду партії на парламентських виборах,26006799976560,current,1583000.00,Центральний офіс Опозиційна платформа - За життя,21709375,юридична особа
ОПЗЖ,"Київ, вулиця Москворіцька, 13",46,2019-07-16,47,Перерахування коштів на виборчі рахунки партії,Перерахування коштів до виборчих фондів,275009,Центральний офіс,21709375,Україна,Перерахунок коштів на рахунок виборчого фонду партії на парламентських виборах,26006799976560,current,1939000.00,Центральний офіс Опозиційна платформа - За життя,21709375,юридична особа
ОПЗЖ,"Київ, вулиця Москворіцька, 13",46,2019-07-16,46,Перерахування коштів на виборчі рахунки партії,Перерахування коштів до виборчих фондів,275008,Центральний офіс,21709375,Україна,Перерахунок коштів на рахунок виборчого фонду партії на парламентських виборах,26006799976560,current,894000.00,Центральний офіс Опозиційна платформа - За життя,21709375,юридична особа
ОПЗЖ,"Київ, вулиця Москворіцька, 13",46,2019-07-15,45,Перерахування коштів на виборчі рахунки партії,Перерахування коштів до виборчих фондів,275007,Центральний офіс,21709375,Україна,Перерахунок коштів на рахунок виборчого фонду партії на парламентських виборах,26006799976560,current,4800000.00,Центральний офіс Опозиційна платформа - За життя,21709375,юридична особа
ОПЗЖ,"Київ, вулиця Москворіцька, 13",46,2019-07-15,44,Перерахування коштів на виборчі рахунки партії,Перерахування коштів до виборчих фондів,275006,Центральний офіс,21709375,Україна,Перерахунок коштів на рахунок виборчого фонду партії на парламентських виборах,26006799976560,current,1600000.00,Центральний офіс Опозиційна платформа - За життя,21709375,юридична особа
ОПЗЖ,"Київ, вулиця Москворіцька, 13",46,2019-07-12,42,Перерахування коштів на виборчі рахунки партії,Перерахування коштів до виборчих фондів,275005,Центральний офіс,21709375,Україна,Перерахунок коштів на рахунок виборчого фонду партії на парламентських виборах,26006799976560,current,1600000.00,Центральний офіс Опозиційна платформа - За життя,21709375,юридична особа
ОПЗЖ,"Київ, вулиця Москворіцька, 13",46,2019-07-12,41,Перерахування коштів на виборчі рахунки партії,Перерахування коштів до виборчих фондів,275004,Центральний офіс,21709375,Україна,Перерахунок коштів на рахунок виборчого фонду партії на парламентських виборах,26006799976560,current,1600000.00,Центральний офіс Опозиційна платформа - За життя,21709375,юридична особа
ОПЗЖ,"Київ, вулиця Москворіцька, 13",46,2019-07-12,40,Перерахування коштів на виборчі рахунки партії,Перерахування коштів до виборчих фондів,275003,Центральний офіс,21709375,Україна,Перерахунок коштів на рахунок виборчого фонду партії на парламентських виборах,26006799976560,current,523000.00,Центральний офіс Опозиційна платформа - За життя,21709375,юридична особа
ОПЗЖ,"Київ, Кловський узвіз, 9/2",70,2019-07-12,42,Банківські послуги,Інші витрати,274771,Центральний офіс,21709375,Україна,Сплата комісії за РКО за проведення платежів в позаопераційний час по системі електронного банкігу згідно договору № 26003700467179 від 2019-02-12 Без ПДВ.,26003700467179,current,100.00,"ПАТ КБ ""Правекс-банк""",14360920,юридична особа
ОПЗЖ,"Київ, Кловський узвіз, 9/2",70,2019-07-12,41,Банківські послуги,Інші витрати,274770,Центральний офіс,21709375,Україна,Сплата комісії за РКО за проведення платежів в позаопераційний час по системі електронного банкігу згідно договору № 26003700467179 від 2019-02-12 Без ПДВ.,26003700467179,current,100.00,"ПАТ КБ ""Правекс-банк""",14360920,юридична особа
ОПЗЖ,"Київ, вулиця Москворіцька, 13",46,2019-07-11,39,Перерахування коштів на виборчі рахунки партії,Перерахування коштів до виборчих фондів,275002,Центральний офіс,21709375,Україна,Перерахунок коштів на рахунок виборчого фонду партії на парламентських виборах,26006799976560,current,1660000.00,Центральний офіс Опозиційна платформа - За життя,21709375,юридична особа
ОПЗЖ,"Київ, вулиця Москворіцька, 13",46,2019-07-11,37,Перерахування коштів на виборчі рахунки партії,Перерахування коштів до виборчих фондів,275001,Центральний офіс,21709375,Україна,Перерахунок коштів на рахунок виборчого фонду партії на парламентських виборах,26006799976560,current,1600000.00,Центральний офіс Опозиційна платформа - За життя,21709375,юридична особа
ОПЗЖ,"Київ, вулиця Москворіцька, 13",46,2019-07-11,36,Перерахування коштів на виборчі рахунки партії,Перерахування коштів до виборчих фондів,275000,Центральний офіс,21709375,Україна,Перерахунок коштів на рахунок виборчого фонду партії на парламентських виборах,26006799976560,current,3171000.00,Центральний офіс Опозиційна платформа - За життя,21709375,юридична особа
ОПЗЖ,"Київ, вулиця Москворіцька, 13",46,2019-07-11,35,Перерахування коштів на виборчі рахунки партії,Перерахування коштів до виборчих фондів,274999,Центральний офіс,21709375,Україна,Перерахунок коштів на рахунок виборчого фонду партії на парламентських виборах,26006799976560,current,35000.00,Центральний офіс Опозиційна платформа - За життя,21709375,юридична особа
ОПЗЖ,"Київ, Кловський узвіз, 9/2",70,2019-07-11,39,Банківські послуги,Інші витрати,274769,Центральний офіс,21709375,Україна,Сплата комісії за РКО за проведення платежів в позаопераційний час по системі електронного банкігу згідно договору № 26003700467179 від 2019-02-12 Без ПДВ.,26003700467179,current,100.00,"ПАТ КБ ""Правекс-банк""",14360920,юридична особа
ОПЗЖ,"Київ, вулиця Леоніда Первомайського, 9А",60,2019-07-11,38,Інші податки,Податкові платежі,274768,Центральний офіс,21709375,Україна,"*; 101; 21709375; 22030001; Судовий збір, справа №855/242/19 Решення від 2019-07-03 р.. Шостий апеляційний адміністративний суд м.Києва",26003700467179,current,11526.00,УДКСУ у Печерському районі м. Києва,38004897,юридична особа
ОПЗЖ,"Київ, Кловський узвіз, 9/2",70,2019-07-11,38,Банківські послуги,Інші витрати,274767,Центральний офіс,21709375,Україна,Сплата комісії за РКО за проведення платежів в позаопераційний час по системі електронного банкігу згідно договору № 26003700467179 від 2019-02-12 Без ПДВ.,26003700467179,current,11.53,"ПАТ КБ ""Правекс-банк""",14360920,юридична особа
ОПЗЖ,"Київ, Кловський узвіз, 9/2",70,2019-07-11,29,Банківські послуги,Інші витрати,274766,Центральний офіс,21709375,Україна,Сплата комісії за РКО за проведення платежів в позаопераційний час по системі електронного банкігу згідно договору № 26003700467179 від 2019-02-12 Без ПДВ.,26003700467179,current,100.00,"ПАТ КБ ""Правекс-банк""",14360920,юридична особа
ОПЗЖ,"Київ, вулиця Москворіцька, 13",46,2019-07-10,34,Перерахування коштів на виборчі рахунки партії,Перерахування коштів до виборчих фондів,274998,Центральний офіс,21709375,Україна,Перерахунок коштів на рахунок виборчого фонду партії на парламентських виборах,26006799976560,current,97200.00,Центральний офіс Опозиційна платформа - За життя,21709375,юридична особа
ОПЗЖ,"Київ, вулиця Москворіцька, 13",46,2019-07-10,33,Перерахування коштів на виборчі рахунки партії,Перерахування коштів до виборчих фондів,274997,Центральний офіс,21709375,Україна,Перерахунок коштів на рахунок виборчого фонду партії на парламентських виборах,26006799976560,current,6000.00,Центральний офіс Опозиційна платформа - За життя,21709375,юридична особа
ОПЗЖ,"Київ, бульвар Тараса Шевченка, 18",76,2019-07-10,32,Послуги зв’язку,Послуги зв’язку,274765,Центральний офіс,21709375,Україна,"Послуги електрозвʼязку за червень 2019 р. згідно договору№ 2551070 О/Р 8200004425510701. В т.ч. ПДВ 51,20 грн.",26003700467179,current,307.21,"ПАТ ""Укртелеком""",21560766,юридична особа
ОПЗЖ,"Київ, вулиця Москворіцька, 13",46,2019-07-08,31,Перерахування коштів на виборчі рахунки партії,Перерахування коштів до виборчих фондів,274996,Центральний офіс,21709375,Україна,Перерахунок коштів на рахунок виборчого фонду партії на парламентських виборах,26006799976560,current,41730.00,Центральний офіс Опозиційна платформа - За життя,21709375,юридична особа
ОПЗЖ,"Київ, вулиця Москворіцька, 13",46,2019-07-08,30,Перерахування коштів на виборчі рахунки партії,Перерахування коштів до виборчих фондів,274995,Центральний офіс,21709375,Україна,Перерахунок коштів на рахунок виборчого фонду партії на парламентських виборах,26006799976560,current,41730.00,Центральний офіс Опозиційна платформа - За життя,21709375,юридична особа
ОПЗЖ,"Київ, Кловський узвіз, 9/2",70,2019-07-08,31,Банківські послуги,Інші витрати,274764,Центральний офіс,21709375,Україна,Сплата комісії за РКО за проведення платежів в позаопераційний час по системі електронного банкігу згідно договору № 26003700467179 від 2019-02-12 Без ПДВ.,26003700467179,current,41.73,"ПАТ КБ ""Правекс-банк""",14360920,юридична особа
ОПЗЖ,"Київ, вулиця Москворіцька, 13",46,2019-07-05,29,Перерахування коштів на виборчі рахунки партії,Перерахування коштів до виборчих фондів,274994,Центральний офіс,21709375,Україна,Перерахунок коштів на рахунок виборчого фонду партії на парламентських виборах,26006799976560,current,3200000.00,Центральний офіс Опозиційна платформа - За життя,21709375,юридична особа
ОПЗЖ,"Київ, Кловський узвіз, 9/2",70,2019-07-05,29,Банківські послуги,Інші витрати,274763,Центральний офіс,21709375,Україна,Сплата комісії за РКО за проведення платежів в позаопераційний час по системі електронного банкігу згідно договору № 26003700467179 від 2019-02-12 Без ПДВ.,26003700467179,current,100.00,"ПАТ КБ ""Правекс-банк""",14360920,юридична особа
ОПЗЖ,"Київ, вулиця Москворіцька, 13",46,2019-07-04,28,Перерахування коштів на виборчі рахунки партії,Перерахування коштів до виборчих фондів,274993,Центральний офіс,21709375,Україна,Перерахунок коштів на рахунок виборчого фонду партії на парламентських виборах,26006799976560,current,3200000.00,Центральний офіс Опозиційна платформа - За життя,21709375,юридична особа
ОПЗЖ,"Київ, вулиця Москворіцька, 13",46,2019-07-04,27,Перерахування коштів на виборчі рахунки партії,Перерахування коштів до виборчих фондів,274992,Центральний офіс,21709375,Україна,Перерахунок коштів на рахунок виборчого фонду партії на парламентських виборах,26006799976560,current,4800000.00,Центральний офіс Опозиційна платформа - За життя,21709375,юридична особа
ОПЗЖ,"Київ, вулиця Москворіцька, 13",46,2019-07-04,26,Перерахування коштів на виборчі рахунки партії,Перерахування коштів до виборчих фондів,274991,Центральний офіс,21709375,Україна,Перерахунок коштів на рахунок виборчого фонду партії на парламентських виборах,26006799976560,current,1600000.00,Центральний офіс Опозиційна платформа - За життя,21709375,юридична особа
ОПЗЖ,"Львівська область, Львів, вулиця Академіка Андрія Сахарова, 78",70,2019-07-03,38970460,Банківські послуги,Інші витрати,274836,Запорізька обласна організація Опозиційна платформа - За життя,39400010,Запорізька область,Комісія за видачу довідок згідно тарифів банку згідно з розпорядженням на договірне списання. Без ПДВ,UA523253650000026004011204599,current,100.00,"ПАТ ""Кредобанк""",09807862,юридична особа
ОПЗЖ,,82,2019-07-03,25,"Гонорари, в тому числі за надані консультаційні послуги","Гонорари, в тому числі за надані консультаційні послуги",274739,Центральний офіс,21709375,Україна,Нотаріальні послуги згідно рах/факт № 53 від 2019-07-03 р. Без ПДВ.,26003700467179,current,350.00,Тесленко Юлія Петрівна,,фізична особа
ОПЗЖ,"Київ, вулиця Кирилівська, 102",72,2019-07-02,24,"Придбання, ремонт офісної техніки та програмного забезпечення (Бухгалтерські програми, Ліга.закон, домени)",Придбання офісної техніки та програмного забезпечення,274762,Центральний офіс,21709375,Україна,"Консультування з питань обслуговування роботи комп’юторної програми “М.Е.Doc"" згідно рах № ПКА-21709375 Без ПДВ.",26003700467179,current,530.00,"ТОВ ""Док Обмін""",41478002,юридична особа
ОПЗЖ,"Київ, Кловський узвіз, 9/2",70,2019-07-02,Дог № 2600370 0467179 від 12.02.20 19р._1,Банківські послуги,Інші витрати,274761,Центральний офіс,21709375,Україна,Сплата комісії за РКО за проведення платежів в позаопераційний час по системі електронного банкігу згідно договору № 26003700467179 від 2019-02-12 Без ПДВ.,26003700467179,current,3.00,"ПАТ КБ ""Правекс-банк""",14360920,юридична особа
ОПЗЖ,"Київ, вулиця Кирилівська, 102",72,2019-07-02,23,"Придбання, ремонт офісної техніки та програмного забезпечення (Бухгалтерські програми, Ліга.закон, домени)",Придбання офісної техніки та програмного забезпечення,274760,Центральний офіс,21709375,Україна,"Сплата за обробку даних для видачі сертифікатів ел підпису та постач КП ""Програмний ком ""ВАРТА"" згідно рах№ПКА- 21709375 від 01.07.19р В тчПДВ",26003700467179,current,92.00,"ТОВ ""Центр сертифікації ключів ""Україна""",36865753,юридична особа
ОПЗЖ,"Київ, Кловський узвіз, 9/2",70,2019-07-02,Дог № 2600370 0467179 від 12.02.20 19р.,Банківські послуги,Інші витрати,274759,Центральний офіс,21709375,Україна,Сплата комісії за РКО за проведення платежів в позаопераційний час по системі електронного банкігу згідно договору № 26003700467179 від 2019-02-12 Без ПДВ.,26003700467179,current,3.00,"ПАТ КБ ""Правекс-банк""",14360920,юридична особа
ОПЗЖ,"Київ, вулиця Москворіцька, 13",46,2019-07-01,22,Перерахування коштів на виборчі рахунки партії,Перерахування коштів до виборчих фондів,274990,Центральний офіс,21709375,Україна,Перерахунок коштів на рахунок виборчого фонду партії на парламентських виборах,26006799976560,current,41730.00,Центральний офіс Опозиційна платформа - За життя,21709375,юридична особа
ОПЗЖ,"Київ, вулиця Москворіцька, 13",46,2019-07-01,21,Перерахування коштів на виборчі рахунки партії,Перерахування коштів до виборчих фондів,274989,Центральний офіс,21709375,Україна,Перерахунок коштів на рахунок виборчого фонду партії на парламентських виборах,26006799976560,current,120000.00,Центральний офіс Опозиційна платформа - За життя,21709375,юридична особа
ОПЗЖ,"Київ, вулиця Андріївська, 4",70,2019-07-01,TR.29605239.133148.16948,Банківські послуги,Інші витрати,274812,Дніпропетровська обласна організація Опозиційна платформа - За життя,41549539,Дніпропетровська область,Договірне списання комісії за надання довідки інформаційного характеру відповідно п 1.17.1 тарифів ПУМБ по дог. № 272636160 від 2018-07-09,2600948745,current,150.00,"ПАТ ""ПУМБ""",14282829,юридична особа
ОПЗЖ,"Київ, Кловський узвіз, 9/2",70,2019-07-01,Дог № 2600370 0467179 від 12.02.20 19р.,Банківські послуги,Інші витрати,274758,Центральний офіс,21709375,Україна,"Плата за РКО: фіксована плата по тарифному пакету ""Стандарт"", згідно з п. 4.1. договору № 26003700467179 від 2019-02-12 Без ПДВ.",26003700467179,current,150.00,"ПАТ КБ ""Правекс-банк""",14360920,юридична особа
ОПЗЖ,"Київ, вулиця Москворіцька, 13",46,2019-06-27,20,Перерахування коштів на виборчі рахунки партії,Перерахування коштів до виборчих фондів,274988,Центральний офіс,21709375,Україна,Перерахунок коштів на рахунок виборчого фонду партії на парламентських виборах,26006799976560,current,2600000.00,Центральний офіс Опозиційна платформа - За життя,21709375,юридична особа
ОПЗЖ,"Київ, вулиця Москворіцька, 13",46,2019-06-27,19,Перерахування коштів на виборчі рахунки партії,Перерахування коштів до виборчих фондів,274987,Центральний офіс,21709375,Україна,Перерахунок коштів на рахунок виборчого фонду партії на парламентських виборах,26006799976560,current,2000000.00,Центральний офіс Опозиційна платформа - За життя,21709375,юридична особа
ОПЗЖ,"Київ, вулиця Москворіцька, 13",46,2019-06-27,18,Перерахування коштів на виборчі рахунки партії,Перерахування коштів до виборчих фондів,274986,Центральний офіс,21709375,Україна,Перерахунок коштів на рахунок виборчого фонду партії на парламентських виборах,26006799976560,current,12800000.00,Центральний офіс Опозиційна платформа - За життя,21709375,юридична особа
ОПЗЖ,"Київ, вулиця Москворіцька, 13",46,2019-06-27,17,Перерахування коштів на виборчі рахунки партії,Перерахування коштів до виборчих фондів,274985,Центральний офіс,21709375,Україна,Перерахунок коштів на рахунок виборчого фонду партії на парламентських виборах,26006799976560,current,1500000.00,Центральний офіс Опозиційна платформа - За життя,21709375,юридична особа
ОПЗЖ,"Київ, вулиця Москворіцька, 13",46,2019-06-27,14,Перерахування коштів на виборчі рахунки партії,Перерахування коштів до виборчих фондів,274984,Центральний офіс,21709375,Україна,Перерахунок коштів на рахунок виборчого фонду партії на парламентських виборах,26006799976560,current,569000.00,Центральний офіс Опозиційна платформа - За життя,21709375,юридична особа
ОПЗЖ,"Київ, вулиця Москворіцька, 13",46,2019-06-27,6,Перерахування коштів на виборчі рахунки партії,Перерахування коштів до виборчих фондів,274983,Центральний офіс,21709375,Україна,Перерахунок коштів на рахунок виборчого фонду партії на парламентських виборах,26006799976560,current,216700.00,Центральний офіс Опозиційна платформа - За життя,21709375,юридична особа
ОПЗЖ,Київ,84,2019-06-27,п/д № 13 від 2019-06-27,"Заробітна плата, премії","Заробітна плата, лікарняні, вагітності, відрядження, компенсації",274618,Центральний офіс,21709375,Україна,Поповнення карткового Рах № 4149439007900909 (зарплата за ІІ-у половину червня 2019р) Без ПДВ.,26003700467179,current,2142.53,Шило Розалі Георгіївна,,фізична особа
ОПЗЖ,"Київ, вулиця Генерала Вітрука, 8А",63,2019-06-27,п/д № 9 від 2019-06-27,Податок на доходи,Податкові платежі,274450,Центральний офіс,21709375,Україна,* ; 11010100 ; 21709375 ; ; ; податок на доході фіз. Осіб із зарплати за ІІ-у половину червня 2019 р Без ПДВ.,26003700467179,current,1410.84,УДКСУ у Святошинському районі ГУ ДКСУ у м. Києві,37962074,юридична особа
ОПЗЖ,"Київ, вулиця Генерала Вітрука, 8А",61,2019-06-27,7,Військовий збір,Податкові платежі,274449,Центральний офіс,21709375,Україна,* ; 11011000 ; 21709375 ; військовий збір із зарплати за ІІ-у половину червня 2019 р Без ПДВ.,26003700467179,current,117.57,УДКСУ у Святошинському районі ГУ ДКСУ у м. Києві,37962074,юридична особа
ОПЗЖ,"Київ, вулиця Михайла Грушевського, 3",79,2019-06-27,п/д № 10 від 2019-06-27,"Оренда будинків і приміщень та експлуатаційні витрати (прибирання, страхування орендованих будинків, охорона, сигналізація, ремонт, вивіз сміття, тощо)",Оренда нерухомості,274444,Центральний офіс,21709375,Україна,Плата за оренду приміщення (МАНЕЖ критий КЗ) згідно Договору від 2019-06-05р у т.ч. ПДВ 20% - 8333.33 грн.,26003700467179,current,50000.00,"ТОВ ""ФК ""Динамо"" Київ""",00305981,юридична особа
ОПЗЖ,"Київ, Ярославський провулок, 7/9, 3",69,2019-06-27,п/д № 11 від 2019-06-27,Організація заходів та інші організаційні послуги,Організація заходів та інші організаційні послуги,274416,Центральний офіс,21709375,Україна,Плата за забезпечення сценічним комплексом згідно Договору №03/06/19 від 2019-06-03р у т.ч. ПДВ 20% - 95 712.00 грн.,26003700467179,current,574272.00,"ТОВ ""Брідж-Біз""",42599198,юридична особа
ОПЗЖ,Київ,84,2019-06-27,п/д № 16 від 2019-04-27,"Заробітна плата, премії","Заробітна плата, лікарняні, вагітності, відрядження, компенсації",274413,Центральний офіс,21709375,Україна,Поповнення карткового Рах № 4149439007900909 (зарплата за ІІ-у половину червня 2019р) Без ПДВ.,26003700467179,current,2025.00,Смілянська Галина Федорівна,,фізична особа
ОПЗЖ,Київ,69,2019-06-27,п/д № 8 від 2019-04-27,Організація заходів та інші організаційні послуги,Організація заходів та інші організаційні послуги,274407,Центральний офіс,21709375,Україна,Плата за організацію заходу 2019-06-06 згідно рах 129 від 2019-06-04 та Договору № 1/2019-06-06 від 2019-06-06 р. Без ПДВ.,26003700467179,current,108550.00,Прищепа Оксана Григорівна,,юридична особа
ОПЗЖ,"Донецька область, Мар'їнський район, Курахове",84,2019-06-27,п/д № 15 від 2019-04-27,"Заробітна плата, премії","Заробітна плата, лікарняні, вагітності, відрядження, компенсації",274401,Центральний офіс,21709375,Україна,Поповнення карткового Рах № 4149439007900909 (зарплата за ІІ-у половину червня 2019р) Без ПДВ.,26003700467179,current,2142.53,Кухарський Олександр Олександрович,,фізична особа
ОПЗЖ,"Київ, вулиця Верховинна, 9",62,2019-06-27,п/д № 12 від 2019-06-27,Сплата ЄСВ,Податкові платежі,274387,Центральний офіс,21709375,Україна,* ; 101 ; 21709375 ; ; ; 22% ЄСВ із зарплати за ІІ-у половину червня 2019 р Без ПДВ.,26003700467179,current,1724.36,ГУ ДФС у м. Києві,39439980,юридична особа
ОПЗЖ,"Київ, Кловський узвіз, 9/2",70,2019-06-27,Дог № 26003700467179 від 2019-02-12_175,Банківські послуги,Інші витрати,274301,Центральний офіс,21709375,Україна,Сплата комісії юридичних осіб за РКО за відправку платежів по СЕП згідно дог № 26003700467179 від 2019-02-12 Без ПДВ.,26003700467179,current,100.00,"ПАТ КБ ""Правекс-банк""",14360920,юридична особа
ОПЗЖ,"Київ, Кловський узвіз, 9/2",70,2019-06-27,Дог № 26003700467179 від 2019-02-12_174,Банківські послуги,Інші витрати,274300,Центральний офіс,21709375,Україна,Сплата комісії юридичних осіб за РКО за відправку платежів по СЕП згідно дог № 26003700467179 від 2019-02-12 Без ПДВ.,26003700467179,current,100.00,"ПАТ КБ ""Правекс-банк""",14360920,юридична особа
ОПЗЖ,"Київ, Кловський узвіз, 9/2",70,2019-06-27,Дог № 26003700467179 від 2019-02-12_173,Банківські послуги,Інші витрати,274299,Центральний офіс,21709375,Україна,Сплата комісії юридичних осіб за РКО за відправку платежів по СЕП згідно дог № 26003700467179 від 2019-02-12 Без ПДВ.,26003700467179,current,100.00,"ПАТ КБ ""Правекс-банк""",14360920,юридична особа
ОПЗЖ,"Київ, Кловський узвіз, 9/2",70,2019-06-27,Дог № 26003700467179 від 2019-02-12_172,Банківські послуги,Інші витрати,274298,Центральний офіс,21709375,Україна,Сплата комісії юридичних осіб за РКО за відправку платежів по СЕП згідно дог № 26003700467179 від 2019-02-12 Без ПДВ.,26003700467179,current,100.00,"ПАТ КБ ""Правекс-банк""",14360920,юридична особа
ОПЗЖ,"Київ, вулиця Москворіцька, 13",46,2019-06-26,5,Перерахування коштів на виборчі рахунки партії,Перерахування коштів до виборчих фондів,274982,Центральний офіс,21709375,Україна,Перерахунок коштів на рахунок виборчого фонду партії на парламентських виборах,26006799976560,current,494000.00,Центральний офіс Опозиційна платформа - За життя,21709375,юридична особа
ОПЗЖ,Київ,66,2019-06-26,п/д № 3 від 2019-06-26,Повернення внесків приватних внесків (донорам),Повернення приватних внесків (донорам),274404,Центральний офіс,21709375,Україна,"Відмова від внеску Медведчук В.В. РНОКПП 1994214296 та повернення зг ч 7 ст 15 Закону України ""Про політичні партії в Україні"" без ПДВ",26003700467179,current,701600.00,Медведчук Віктор Володимирович,,фізична особа
ОПЗЖ,Київ,66,2019-06-26,п/д № 4 від 2019-06-26,Повернення внесків приватних внесків (донорам),Повернення приватних внесків (донорам),274402,Центральний офіс,21709375,Україна,"Відмова від внеску Льовочкін С.В.. РНОКПП 2649610838 та повернення зг ч 7 ст 15 Закону України ""Про політичні партії в Україні"" без ПДВ",26003700467179,current,1669200.00,Льовочкін Сергій Володимирович,,фізична особа
ОПЗЖ,"Київ, Кловський узвіз, 9/2",70,2019-06-26,Дог № 26003700467179 від 2019-02-12_171,Банківські послуги,Інші витрати,274297,Центральний офіс,21709375,Україна,Сплата комісії юридичних осіб за РКО за відправку платежів по СЕП згідно дог № 26003700467179 від 2019-02-12 Без ПДВ.,26003700467179,current,100.00,"ПАТ КБ ""Правекс-банк""",14360920,юридична особа
ОПЗЖ,"Київ, Кловський узвіз, 9/2",70,2019-06-26,Дог № 26003700467179 від 2019-02-12_170,Банківські послуги,Інші витрати,274296,Центральний офіс,21709375,Україна,Сплата комісії юридичних осіб за РКО за відправку платежів по СЕП згідно дог № 26003700467179 від 2019-02-12 Без ПДВ.,26003700467179,current,100.00,"ПАТ КБ ""Правекс-банк""",14360920,юридична особа
ОПЗЖ,"Київ, вулиця Москворіцька, 13",46,2019-06-25,2,Перерахування коштів на виборчі рахунки партії,Перерахування коштів до виборчих фондів,274981,Центральний офіс,21709375,Україна,Перерахунок коштів на рахунок виборчого фонду партії на парламентських виборах,26006799976560,current,1500000.00,Центральний офіс Опозиційна платформа - За життя,21709375,юридична особа
ОПЗЖ,"Київ, вулиця Москворіцька, 13",46,2019-06-24,1,Перерахування коштів на виборчі рахунки партії,Перерахування коштів до виборчих фондів,274980,Центральний офіс,21709375,Україна,Перерахунок коштів на рахунок виборчого фонду партії на парламентських виборах,26006799976560,current,1499900.00,Центральний офіс Опозиційна платформа - За життя,21709375,юридична особа
ОПЗЖ,"Київ, Кловський узвіз, 9/2",70,2019-06-24,Дог № 26003700467179 від 2019-02-12_169,Банківські послуги,Інші витрати,274295,Центральний офіс,21709375,Україна,Сплата комісії юридичних осіб за РКО за відправку платежів по СЕП згідно дог № 26003700467179 від 2019-02-12 Без ПДВ.,26003700467179,current,100.00,"ПАТ КБ ""Правекс-банк""",14360920,юридична особа
ОПЗЖ,"Київ, вулиця Москворіцька, 13",46,2019-06-21,480,Перерахування коштів на виборчі рахунки партії,Перерахування коштів до виборчих фондів,274979,Центральний офіс,21709375,Україна,Перерахунок коштів на рахунок виборчого фонду партії на парламентських виборах,26006799976560,current,2719320.29,Центральний офіс Опозиційна платформа - За життя,21709375,юридична особа
ОПЗЖ,"Київ, вулиця Польова, 21",51,2019-06-21,п/д № 479 від 2019-06-21,Оплата ефірного часу на ТБ,Телереклама,274437,Центральний офіс,21709375,Україна,"Послуги з забезпечення розміщення рекламного відеоматеріалу в уфірі телеканалу ""112 Україна"" згідно Договору № 2 та рах №116 від 2019-06-19р. У т.ч. ПДВ 17 827.20 грн.",26003700467179,current,106963.20,"ТОВ ""Новини 24 години""",,юридична особа
ОПЗЖ,"Київ, Кловський узвіз, 9/2",70,2019-06-21,Дог № 26003700467179 від 2019-02-12_168,Банківські послуги,Інші витрати,274294,Центральний офіс,21709375,Україна,Сплата комісії юридичних осіб за РКО за відправку платежів по СЕП згідно дог № 26003700467179 від 2019-02-12 Без ПДВ.,26003700467179,current,50.00,"ПАТ КБ ""Правекс-банк""",14360920,юридична особа
ОПЗЖ,"Київ, Кловський узвіз, 9/2",70,2019-06-21,Дог № 26003700467179 від 2019-02-12_167,Банківські послуги,Інші витрати,274293,Центральний офіс,21709375,Україна,Сплата комісії юридичних осіб за РКО за відправку платежів по СЕП згідно дог № 26003700467179 від 2019-02-12 Без ПДВ.,26003700467179,current,50.00,"ПАТ КБ ""Правекс-банк""",14360920,юридична особа
ОПЗЖ,"Київ, вулиця Польова, 21",51,2019-06-20,п/д № 478 від 2019-06-20,Оплата ефірного часу на ТБ,Телереклама,274436,Центральний офіс,21709375,Україна,"Розміщення рекламного ролику на телеканалі ""Newsone"" згідно Договору № 01-Р від 2019-06-12р. та рах №119 від 2019-06-19р. У т.ч. ПДВ 9384.00 грн.",26003700467179,current,56304.00,"ТОВ ""Новини 24 години""",33786517,юридична особа
ОПЗЖ,"Київ, вулиця Польова, 21",51,2019-06-20,п/д № 477 від 2019-06-20,Оплата ефірного часу на ТБ,Телереклама,274435,Центральний офіс,21709375,Україна,"Надання рекламних послуг на телеканалі ""Newsone"" згідно Договору № 01-Р від 2019-06-12р. та раз №113 від 2019-06-12р. У т.ч. ПДВ 32 016.00 грн.",26003700467179,current,192096.00,"ТОВ ""Новини 24 години""",33786517,юридична особа
ОПЗЖ,"Київ, вулиця Жилянська, 31",53,2019-06-20,п/д № 470 від 2019-06-19,Витрати на розміщення зовнішньої реклами,Зовнішня реклама,274431,Центральний офіс,21709375,Україна,Розміщення зовнішньої реклами у червні Згідно затвердженої сторонами Адресної програмі згідно рахунку № ИК-32987 від 2019-06-11р. В т.ч. ПДВ 123 780.00грн.,26003700467179,current,742680.00,"ТОВ ""Іса-груп""",39579889,юридична особа
ОПЗЖ,"Одеська область, Одеса, вулиця Маршала Говорова, 2",49,2019-06-20,п/д № 474 від 2019-06-19,Публікування матеріалів у друкованих ЗМІ,Реклама в друкованих ЗМІ,274406,Центральний офіс,21709375,Україна,"Рекламни послуги (г-та ""На пенси"" - 18.062019р) згідно рахунку № 348 від 2019-06-13р. В т.ч. ПДВ 3795.00 грн.",26003700467179,current,22770.00,"ПП ""ІА ""Центр Медіа""",33658561,юридична особа
ОПЗЖ,"Київ, Кловський узвіз, 9/2",70,2019-06-20,Дог № 26003700467179 від 2019-02-12_166,Банківські послуги,Інші витрати,274292,Центральний офіс,21709375,Україна,Сплата комісії юридичних осіб за РКО за відправку платежів по СЕП згідно дог № 26003700467179 від 2019-02-12 Без ПДВ.,26003700467179,current,50.00,"ПАТ КБ ""Правекс-банк""",14360920,юридична особа
ОПЗЖ,"Київ, Кловський узвіз, 9/2",70,2019-06-20,Дог № 26003700467179 від 2019-02-12_165,Банківські послуги,Інші витрати,274291,Центральний офіс,21709375,Україна,Сплата комісії юридичних осіб за РКО за відправку платежів по СЕП згідно дог № 26003700467179 від 2019-02-12 Без ПДВ.,26003700467179,current,50.00,"ПАТ КБ ""Правекс-банк""",14360920,юридична особа
ОПЗЖ,"Київ, Кловський узвіз, 9/2",70,2019-06-20,Дог № 26003700467179 від 2019-02-12_164,Банківські послуги,Інші витрати,274290,Центральний офіс,21709375,Україна,Сплата комісії юридичних осіб за РКО за відправку платежів по СЕП згідно дог № 26003700467179 від 2019-02-12 Без ПДВ.,26003700467179,current,50.00,"ПАТ КБ ""Правекс-банк""",14360920,юридична особа
ОПЗЖ,"Київ, площа Лесі Українки, 1",59,2019-06-19,п/д № 382 від 2019-06-14,Грошова застава,Грошова застава,274569,Центральний офіс,21709375,Україна,"Грошова застава кандидата у народні депутати України Степанов Сергій Федорович, висунутого ПП ""Опозиційна Платформа-ЗАЖИТТЯ"" в одномандатному виборчому окрузі № 179. Без ПДВ. у загальнодержавному окрузі. Без ПДВ.",26003700467179,current,41730.00,Центральна виборча комісія,21661450,юридична особа
ОПЗЖ,"Київ, вулиця Кирилівська, 104",50,2019-06-19,п/д № 467 від 2019-06-18,Оплата ефірного часу на радіо,Реклама на радіо,274445,Центральний офіс,21709375,Україна,"Розміщення реклами на ефірі ""Авторадио"" ""Ретро ФМ"" з2019-06-14-2019-06-19 згідно рахунку № 495 від 2019-06-12р. В т.ч. ПДВ 6174.40 грн.",26003700467179,current,37046.40,"Дочірнє підприємство ""Лаундж- ФМ""",41041415,юридична особа
ОПЗЖ,"Київ, Карельський провулок, 8",58,2019-06-19,п/д № 473 від 2019-06-19,"Виготовлення друкованих матеріалів (плакатів, листівок, буклетів та інших агітаційних матеріалів)",Друкована агітація,274442,Центральний офіс,21709375,Україна,"Постери паперови,банери згідно рахунку № 19/06-040 від 2019-06-19р. В т.ч. ПДВ 2051.13 грн.",26003700467179,current,12306.80,"ТОВ ""Гранд Афіш""",36678347,юридична особа
ОПЗЖ,"Київ, вулиця Паньківська, 11",51,2019-06-19,п/д № 465 від 2019-06-14,Оплата ефірного часу на ТБ,Телереклама,274440,Центральний офіс,21709375,Україна,Надання рекламних послуг згідно рахунку № БС-00000565 від 2019-06-14р. В т.ч. ПДВ 47254.60 грн.,26003700467179,current,283527.60,"ТОВ ""СТАРЛАЙТ БРЕНД КОНТЕНТ""",35380148,юридична особа
ОПЗЖ,"Київ, бульвар Тараса Шевченка, 54/1",50,2019-06-19,п/д № 472 від 2019-06-19,Оплата ефірного часу на радіо,Реклама на радіо,274438,Центральний офіс,21709375,Україна,Розміщення реклами на радіо Шансон згідно рахунку № МЕП 3-П від 2019-06-18р. В т.ч. ПДВ 471.67 грн.,26003700467179,current,2830.00,"ТОВ ""Глобал медіа груп""",41808094,юридична особа
ОПЗЖ,"Київ, вулиця Польова, 21",51,2019-06-19,п/д № 452 від 2019-06-14,Оплата ефірного часу на ТБ,Телереклама,274434,Центральний офіс,21709375,Україна,Надання рекламних послуг згідно Договору № 01-Р від 2019-06-12р. В т.ч. ПДВ 62 964.00 грн.,26003700467179,current,377784.00,"ТОВ ""Новини 24 години""",33786517,юридична особа
ОПЗЖ,"Київ, вулиця Польова, 21",51,2019-06-19,п/д № 468 від 2019-06-19,Оплата ефірного часу на ТБ,Телереклама,274433,Центральний офіс,21709375,Україна,"Розміщення рекламного ролику не телеканале ""Newsone"". згідно рахунку № 115 від 2019-06-18р. В т.ч. ПДВ 15372.00 грн.",26003700467179,current,92232.00,"ТОВ ""Новини 24 години""",33786517,юридична особа
ОПЗЖ,"Київ, вулиця Черняховського, 16/30, 5",53,2019-06-19,п/д № 469 від 2019-06-19,Витрати на розміщення зовнішньої реклами,Зовнішня реклама,274432,Центральний офіс,21709375,Україна,"Розміщення реклами (медіапланування, підбор адрес. Програми, фотомоніторинг)на спец.конструкціях в червні 2019 р зг.рах.№88 від 2019-06-18р, в т.ч. ПДВ 89942,40",26003700467179,current,539654.40,"ТОВ ""Лайт Коммунікейшн""",42092607,юридична особа
ОПЗЖ,"Київ, вулиця Євгена Сверстюка, 19, оф. 1106/1",51,2019-06-19,п/д № 470 від 2019-06-19,Оплата ефірного часу на ТБ,Телереклама,274430,Центральний офіс,21709375,Україна,Розміщення рекламноі кампанії у червне 2019 року згідно рахунку № 114 від 2019-06-14р. В т.ч. ПДВ 62 586.00грн.,26003700467179,current,375516.00,"ТОВ ""Іса-груп""",39579889,юридична особа
ОПЗЖ,"Київ, вулиця Бульварно-Кудрявська, 22",51,2019-06-19,п/д № 460 від 2019-06-18,Оплата ефірного часу на ТБ,Телереклама,274425,Центральний офіс,21709375,Україна,Розміщення рекламних матеріалів з 19.062019р по 2019-06-19р. згідно рахунку № 99 від 2019-06-18р. В т.ч. ПДВ 90 766.80 грн.,26003700467179,current,544600.80,"ТОВ ""Інтер реклама центр""",30524103,юридична особа
ОПЗЖ,"Київ, вулиця Бульварно-Кудрявська, 22",51,2019-06-19,п/д № 462 від 2019-06-18,Оплата ефірного часу на ТБ,Телереклама,274424,Центральний офіс,21709375,Україна,Розміщення рекламних матеріалів з 19.062019р по 2019-06-19р. згідно рахунку № 100 від 2019-06-18р. В т.ч. ПДВ 19281.60 грн.,26003700467179,current,115689.60,"ТОВ ""Інтер реклама центр""",30524103,юридична особа
ОПЗЖ,"Київ, вулиця Бульварно-Кудрявська, 22",51,2019-06-19,п/д № 464 від 2019-06-18,Оплата ефірного часу на ТБ,Телереклама,274423,Центральний офіс,21709375,Україна,Розміщення рекламних матеріалів з 2019-06-19р по 2019-06-19р. згідно рахунку № 102 від 2019-06-18р. В т.ч. ПДВ 6116.40 грн.,26003700467179,current,36698.40,"ТОВ ""Інтер реклама центр""",30524103,юридична особа
ОПЗЖ,"Київ, вулиця Бульварно-Кудрявська, 22",51,2019-06-19,п/д № 463 від 2019-06-18,Оплата ефірного часу на ТБ,Телереклама,274422,Центральний офіс,21709375,Україна,Розміщення рекламних матеріалів з 19.062019р по 2019-06-19р. згідно рахунку № 101 від 2019-06-18р. В т.ч. ПДВ 6116.40 грн.,26003700467179,current,36696.40,"ТОВ ""Інтер реклама центр""",30524103,юридична особа
ОПЗЖ,"Київ, бульвар Тараса Шевченка, 54/1",50,2019-06-19,п/д № 461 від 2019-06-18,Оплата ефірного часу на радіо,Реклама на радіо,274419,Центральний офіс,21709375,Україна,Розміщення реклами на радіо Шансон згідно рахунку № МЕП 2-П від 2019-06-14р. В т.ч. ПДВ 1886.33 грн.,26003700467179,current,11318.00,"ТОВ ""Глобал медіа груп""",41808094,юридична особа
ОПЗЖ,"Київ, Кловський узвіз, 9/2",70,2019-06-19,Дог № 26003700467179 від 2019-02-12_163,Банківські послуги,Інші витрати,274289,Центральний офіс,21709375,Україна,Сплата комісії юридичних осіб за РКО за відправку платежів по СЕП згідно дог № 26003700467179 від 2019-02-12 Без ПДВ.,26003700467179,current,50.00,"ПАТ КБ ""Правекс-банк""",14360920,юридична особа
ОПЗЖ,"Київ, Кловський узвіз, 9/2",70,2019-06-19,Дог № 26003700467179 від 2019-02-12_162,Банківські послуги,Інші витрати,274288,Центральний офіс,21709375,Україна,Сплата комісії юридичних осіб за РКО за відправку платежів по СЕП згідно дог № 26003700467179 від 2019-02-12 Без ПДВ.,26003700467179,current,50.00,"ПАТ КБ ""Правекс-банк""",14360920,юридична особа
ОПЗЖ,"Київ, Кловський узвіз, 9/2",70,2019-06-19,Дог № 26003700467179 від 2019-02-12_161,Банківські послуги,Інші витрати,274287,Центральний офіс,21709375,Україна,Сплата комісії юридичних осіб за РКО за відправку платежів по СЕП згідно дог № 26003700467179 від 2019-02-12 Без ПДВ.,26003700467179,current,50.00,"ПАТ КБ ""Правекс-банк""",14360920,юридична особа
ОПЗЖ,"Київ, Кловський узвіз, 9/2",70,2019-06-19,Дог № 26003700467179 від 2019-02-12_160,Банківські послуги,Інші витрати,274286,Центральний офіс,21709375,Україна,Сплата комісії юридичних осіб за РКО за відправку платежів по СЕП згідно дог № 26003700467179 від 2019-02-12 Без ПДВ.,26003700467179,current,50.00,"ПАТ КБ ""Правекс-банк""",14360920,юридична особа
ОПЗЖ,"Київ, Кловський узвіз, 9/2",70,2019-06-19,Дог № 26003700467179 від 2019-02-12_159,Банківські послуги,Інші витрати,274285,Центральний офіс,21709375,Україна,Сплата комісії юридичних осіб за РКО за відправку платежів по СЕП згідно дог № 26003700467179 від 2019-02-12 Без ПДВ.,26003700467179,current,50.00,"ПАТ КБ ""Правекс-банк""",14360920,юридична особа
ОПЗЖ,"Київ, Кловський узвіз, 9/2",70,2019-06-19,Дог № 26003700467179 від 2019-02-12_158,Банківські послуги,Інші витрати,274284,Центральний офіс,21709375,Україна,Сплата комісії юридичних осіб за РКО за відправку платежів по СЕП згідно дог № 26003700467179 від 2019-02-12 Без ПДВ.,26003700467179,current,50.00,"ПАТ КБ ""Правекс-банк""",14360920,юридична особа
ОПЗЖ,"Київ, Кловський узвіз, 9/2",70,2019-06-19,Дог № 26003700467179 від 2019-02-12_157,Банківські послуги,Інші витрати,274283,Центральний офіс,21709375,Україна,Комісії за уточнення реквізитів в платіжному документі згідно тарифів Банку . Без ПДВ,26003700467179,current,50.00,"ПАТ КБ ""Правекс-банк""",14360920,юридична особа
ОПЗЖ,"Київ, Кловський узвіз, 9/2",70,2019-06-19,Дог № 26003700467179 від 2019-02-12_156,Банківські послуги,Інші витрати,274282,Центральний офіс,21709375,Україна,Сплата комісії юридичних осіб за РКО за відправку платежів по СЕП згідно дог № 26003700467179 від 2019-02-12 Без ПДВ.,26003700467179,current,50.00,"ПАТ КБ ""Правекс-банк""",14360920,юридична особа
ОПЗЖ,"Київ, Кловський узвіз, 9/2",70,2019-06-19,Дог № 26003700467179 від 2019-02-12_155,Банківські послуги,Інші витрати,274281,Центральний офіс,21709375,Україна,Сплата комісії юридичних осіб за РКО за відправку платежів по СЕП згідно дог № 26003700467179 від 2019-02-12 Без ПДВ.,26003700467179,current,50.00,"ПАТ КБ ""Правекс-банк""",14360920,юридична особа
ОПЗЖ,"Київ, Кловський узвіз, 9/2",70,2019-06-19,Дог № 26003700467179 від 2019-02-12_154,Банківські послуги,Інші витрати,274280,Центральний офіс,21709375,Україна,Сплата комісії юридичних осіб за РКО за відправку платежів по СЕП згідно дог № 26003700467179 від 2019-02-12 Без ПДВ.,26003700467179,current,50.00,"ПАТ КБ ""Правекс-банк""",14360920,юридична особа
ОПЗЖ,"Київ, Кловський узвіз, 9/2",70,2019-06-19,Дог № 26003700467179 від 2019-02-12_153,Банківські послуги,Інші витрати,274279,Центральний офіс,21709375,Україна,Сплата комісії юридичних осіб за РКО за відправку платежів по СЕП згідно дог № 26003700467179 від 2019-02-12 Без ПДВ.,26003700467179,current,50.00,"ПАТ КБ ""Правекс-банк""",14360920,юридична особа
ОПЗЖ,"Київ, Кловський узвіз, 9/2",70,2019-06-19,Дог № 26003700467179 від 2019-02-12_152,Банківські послуги,Інші витрати,274278,Центральний офіс,21709375,Україна,Сплата комісії юридичних осіб за РКО за відправку платежів по СЕП згідно дог № 26003700467179 від 2019-02-12 Без ПДВ.,26003700467179,current,50.00,"ПАТ КБ ""Правекс-банк""",14360920,юридична особа
ОПЗЖ,"Київ, Кловський узвіз, 9/2",70,2019-06-19,Дог № 26003700467179 від 2019-02-12_151,Банківські послуги,Інші витрати,274277,Центральний офіс,21709375,Україна,Сплата комісії юридичних осіб за РКО за відправку платежів по СЕП згідно дог № 26003700467179 від 2019-02-12 Без ПДВ.,26003700467179,current,50.00,"ПАТ КБ ""Правекс-банк""",14360920,юридична особа
ОПЗЖ,"Київ, Кловський узвіз, 9/2",70,2019-06-19,Дог № 26003700467179 від 2019-02-12_150,Банківські послуги,Інші витрати,274276,Центральний офіс,21709375,Україна,Сплата комісії юридичних осіб за РКО за відправку платежів по СЕП згідно дог № 26003700467179 від 2019-02-12 Без ПДВ.,26003700467179,current,50.00,"ПАТ КБ ""Правекс-банк""",14360920,юридична особа
ОПЗЖ,"Київ, Кловський узвіз, 9/2",70,2019-06-19,Дог № 26003700467179 від 2019-02-12_149,Банківські послуги,Інші витрати,274275,Центральний офіс,21709375,Україна,Сплата комісії юридичних осіб за РКО за відправку платежів по СЕП згідно дог № 26003700467179 від 2019-02-12 Без ПДВ.,26003700467179,current,50.00,"ПАТ КБ ""Правекс-банк""",14360920,юридична особа
ОПЗЖ,"Київ, Кловський узвіз, 9/2",70,2019-06-19,Дог № 26003700467179 від 2019-02-12_148,Банківські послуги,Інші витрати,274274,Центральний офіс,21709375,Україна,Сплата комісії юридичних осіб за РКО за відправку платежів по СЕП згідно дог № 26003700467179 від 2019-02-12 Без ПДВ.,26003700467179,current,50.00,"ПАТ КБ ""Правекс-банк""",14360920,юридична особа
ОПЗЖ,"Київ, Кловський узвіз, 9/2",70,2019-06-19,Дог № 26003700467179 від 2019-02-12_147,Банківські послуги,Інші витрати,274273,Центральний офіс,21709375,Україна,Сплата комісії юридичних осіб за РКО за відправку платежів по СЕП згідно дог № 26003700467179 від 2019-02-12 Без ПДВ.,26003700467179,current,50.00,"ПАТ КБ ""Правекс-банк""",14360920,юридична особа
ОПЗЖ,Київ,84,2019-06-18,п/д № 253 від 2019-06-14,"Заробітна плата, премії","Заробітна плата, лікарняні, вагітності, відрядження, компенсації",274617,Центральний офіс,21709375,Україна,Поповнення карткового Рах № 5168 7422 20591949 (зарплата за І-у половину червня 2019р) Без ПДВ.,26003700467179,current,2000.00,Шило Розалі Георгіївна,,фізична особа
ОПЗЖ,"Київ, площа Лесі Українки, 1",59,2019-06-18,п/д № 331 від 2019-06-14,Грошова застава,Грошова застава,274611,Центральний офіс,21709375,Україна,"Грошова застава кандидата у народні депутати України Ксьонзенко Валерій Петрович, висунутого ПП ""Опозиційна Платформа-ЗАЖИТТЯ"" в одномандатному виборчому окрузі № 98. Без ПДВ. у загальнодержавному окрузі. Без ПДВ.",26003700467179,current,41730.00,Центральна виборча комісія,21661450,юридична особа
ОПЗЖ,"Київ, площа Лесі Українки, 1",59,2019-06-18,п/д № 339 від 2019-06-14,Грошова застава,Грошова застава,274610,Центральний офіс,21709375,Україна,"Грошова застава кандидата у народні депутати України Шеглаков Едуард Іванович, висунутого ПП ""Опозиційна Платформа-ЗАЖИТТЯ"" в одномандатному виборчому окрузі № 107. Без ПДВ. у загальнодержавному окрузі. Без ПДВ.",26003700467179,current,41730.00,Центральна виборча комісія,21661450,юридична особа
ОПЗЖ,"Київ, площа Лесі Українки, 1",59,2019-06-18,п/д № 376 від 2019-06-14,Грошова застава,Грошова застава,274609,Центральний офіс,21709375,Україна,"Грошова застава кандидата у народні депутати України Оніщенко Павло Олександрович, висунутого ПП ""Опозиційна Платформа-ЗАЖИТТЯ"" в одномандатному виборчому окрузі № 173. Без ПДВ. у загальнодержавному окрузі. Без ПДВ.",26003700467179,current,41730.00,Центральна виборча комісія,21661450,юридична особа
ОПЗЖ,"Київ, площа Лесі Українки, 1",59,2019-06-18,п/д № 351 від 2019-06-14,Грошова застава,Грошова застава,274608,Центральний офіс,21709375,Україна,"Грошова застава кандидата у народні депутати України Хачатрян Князь Аршалуйсович, висунутого ПП ""Опозиційна Платформа-ЗАЖИТТЯ"" в одномандатному виборчому окрузі № 138. Без ПДВ. у загальнодержавному окрузі. Без ПДВ.",26003700467179,current,41730.00,Центральна виборча комісія,21661450,юридична особа
ОПЗЖ,"Київ, площа Лесі Українки, 1",59,2019-06-18,п/д № 333 від 2019-06-14,Грошова застава,Грошова застава,274607,Центральний офіс,21709375,Україна,"Грошова застава кандидата у народні депутати України Маліцький Андрій Васильович, висунутого ПП ""Опозиційна Платформа-ЗАЖИТТЯ"" в одномандатному виборчому окрузі № 100. Без ПДВ. у загальнодержавному окрузі. Без ПДВ.",26003700467179,current,41730.00,Центральна виборча комісія,21661450,юридична особа
ОПЗЖ,"Київ, площа Лесі Українки, 1",59,2019-06-18,п/д № 380 від 2019-06-14,Грошова застава,Грошова застава,274606,Центральний офіс,21709375,Україна,"Грошова застава кандидата у народні депутати України Радьков Сергій Миколайович, висунутого ПП ""Опозиційна Платформа-ЗАЖИТТЯ"" в одномандатному виборчому окрузі № 177. Без ПДВ. у загальнодержавному окрузі. Без ПДВ.",26003700467179,current,41730.00,Центральна виборча комісія,21661450,юридична особа
ОПЗЖ,"Київ, площа Лесі Українки, 1",59,2019-06-18,п/д № 373 від 2019-06-14,Грошова застава,Грошова застава,274605,Центральний офіс,21709375,Україна,"Грошова застава кандидата у народні депутати України Зінченко Андрій Леонідович , висунутого ПП ""Опозиційна Платформа-ЗАЖИТТЯ"" в одномандатному виборчому окрузі № 162. Без ПДВ. у загальнодержавному окрузі. Без ПДВ.",26003700467179,current,41730.00,Центральна виборча комісія,21661450,юридична особа
ОПЗЖ,"Київ, площа Лесі Українки, 1",59,2019-06-18,п/д № 338 від 2019-06-14,Грошова застава,Грошова застава,274604,Центральний офіс,21709375,Україна,"Грошова застава кандидата у народні депутати України Черниш Валерій сергійович, висунутого ПП ""Опозиційна Платформа-ЗАЖИТТЯ"" в одномандатному виборчому окрузі № 106. Без ПДВ. у загальнодержавному окрузі. Без ПДВ.",26003700467179,current,41730.00,Центральна виборча комісія,21661450,юридична особа
ОПЗЖ,"Київ, площа Лесі Українки, 1",59,2019-06-18,п/д № 381 від 2019-06-14,Грошова застава,Грошова застава,274603,Центральний офіс,21709375,Україна,"Грошова застава кандидата у народні депутати України Білокудря Валерій Миколайович, висунутого ПП ""Опозиційна Платформа-ЗАЖИТТЯ"" в одномандатному виборчому окрузі № 178. Без ПДВ. у загальнодержавному окрузі. Без ПДВ.",26003700467179,current,41730.00,Центральна виборча комісія,21661450,юридична особа
ОПЗЖ,"Київ, площа Лесі Українки, 1",59,2019-06-18,п/д № 332 від 2019-06-14,Грошова застава,Грошова застава,274602,Центральний офіс,21709375,Україна,"Грошова застава кандидата у народні депутати України Ларін Анатолій Сергійович, висунутого ПП ""Опозиційна Платформа-ЗАЖИТТЯ"" в одномандатному виборчому окрузі № 99. Без ПДВ. у загальнодержавному окрузі. Без ПДВ.",26003700467179,current,41730.00,Центральна виборча комісія,21661450,юридична особа
ОПЗЖ,"Київ, площа Лесі Українки, 1",59,2019-06-18,п/д № 304 від 2019-06-14,Грошова застава,Грошова застава,274601,Центральний офіс,21709375,Україна,"Грошова застава кандидата у народні депутати України Марчевський Артем Павлович, висунутого ПП ""Опозиційна Платформа-ЗАЖИТТЯ"" в одномандатному виборчому окрузі № 60. Без ПДВ. у загальнодержавному окрузі. Без ПДВ.",26003700467179,current,41730.00,Центральна виборча комісія,21661450,юридична особа
ОПЗЖ,"Київ, площа Лесі Українки, 1",59,2019-06-18,п/д № 325 від 2019-06-14,Грошова застава,Грошова застава,274600,Центральний офіс,21709375,Україна,"Грошова застава кандидата у народні депутати України Фурдичко Микола Григорович, висунутого ПП ""Опозиційна Платформа-ЗАЖИТТЯ"" в одномандатному виборчому окрузі № 92. Без ПДВ. у загальнодержавному окрузі. Без ПДВ.",26003700467179,current,41730.00,Центральна виборча комісія,21661450,юридична особа
ОПЗЖ,"Київ, площа Лесі Українки, 1",59,2019-06-18,п/д № 371 від 2019-06-14,Грошова застава,Грошова застава,274599,Центральний офіс,21709375,Україна,"Грошова застава кандидата у народні депутати України Жиленко Віталій Миколайович, висунутого ПП ""Опозиційна Платформа-ЗАЖИТТЯ"" в одномандатному виборчому окрузі № 158. Без ПДВ. у загальнодержавному окрузі. Без ПДВ.",26003700467179,current,41730.00,Центральна виборча комісія,21661450,юридична особа
ОПЗЖ,"Київ, площа Лесі Українки, 1",59,2019-06-18,п/д № 321 від 2019-06-14,Грошова застава,Грошова застава,274598,Центральний офіс,21709375,Україна,"Грошова застава кандидата у народні депутати України Валентиров Сергій Васильович висунутого ПП ""Опозиційна Платформа-ЗАЖИТТЯ"" в одномандатному виборчому окрузі № 81. Без ПДВ. у загальнодержавному окрузі. Без ПДВ.",26003700467179,current,41730.00,Центральна виборча комісія,21661450,юридична особа
ОПЗЖ,"Київ, площа Лесі Українки, 1",59,2019-06-18,п/д № 318 від 2019-06-14,Грошова застава,Грошова застава,274597,Центральний офіс,21709375,Україна,"Грошова застава кандидата у народні депутати України Пономарьов Олександр Сергійович , висунутого ПП ""Опозиційна Платформа-ЗАЖИТТЯ"" в одномандатному виборчому окрузі № 78. Без ПДВ. у загальнодержавному окрузі. Без ПДВ.",26003700467179,current,41730.00,Центральна виборча комісія,21661450,юридична особа
ОПЗЖ,"Київ, площа Лесі Українки, 1",59,2019-06-18,п/д № 410 від 2019-06-14,Грошова застава,Грошова застава,274596,Центральний офіс,21709375,Україна,"Грошова застава кандидата у народні депутати України Шадура Сергій Миколайович, висунутого ПП ""Опозиційна Платформа-ЗАЖИТТЯ"" в одномандатному виборчому окрузі № 209. Без ПДВ. у загальнодержавному окрузі. Без ПДВ.",26003700467179,current,41730.00,Центральна виборча комісія,21661450,юридична особа
ОПЗЖ,"Київ, площа Лесі Українки, 1",59,2019-06-18,п/д № 279 від 2019-06-14,Грошова застава,Грошова застава,274595,Центральний офіс,21709375,Україна,"Грошова застава кандидата у народні депутати України Гуфман Геннадій Леонідович, висунутого ПП ""Опозиційна Платформа-ЗАЖИТТЯ"" в одномандатному виборчому окрузі № 26. Без ПДВ. у загальнодержавному окрузі. Без ПДВ.",26003700467179,current,41730.00,Центральна виборча комісія,21661450,юридична особа
ОПЗЖ,"Київ, площа Лесі Українки, 1",59,2019-06-18,п/д № 363 від 2019-06-14,Грошова застава,Грошова застава,274594,Центральний офіс,21709375,Україна,"Грошова застава кандидата у народні депутати України Говоренко Володимир Олександрович, висунутого ПП ""Опозиційна Платформа- ЗАЖИТТЯ"" в одномандатному виборчому окрузі № 150. Без ПДВ. у загальнодержавному окрузі. Без ПДВ.",26003700467179,current,41730.00,Центральна виборча комісія,21661450,юридична особа
ОПЗЖ,"Київ, площа Лесі Українки, 1",59,2019-06-18,п/д № 349 від 2019-06-14,Грошова застава,Грошова застава,274593,Центральний офіс,21709375,Україна,"Грошова застава кандидата у народні депутати України Бальжик Марія Михайлівна, висунутого ПП ""Опозиційна Платформа-ЗАЖИТТЯ"" в одномандатному виборчому окрузі № 136. Без ПДВ. у загальнодержавному окрузі. Без ПДВ.",26003700467179,current,41730.00,Центральна виборча комісія,21661450,юридична особа
ОПЗЖ,"Київ, площа Лесі Українки, 1",59,2019-06-18,п/д № 348 від 2019-06-14,Грошова застава,Грошова застава,274592,Центральний офіс,21709375,Україна,"Грошова застава кандидата у народні депутати України Подостроєць Кирил Олександрович, висунутого ПП ""Опозиційна Платформа-ЗАЖИТТЯ"" в одномандатному виборчому окрузі № 135. Без ПДВ. у загальнодержавному окрузі. Без ПДВ.",26003700467179,current,41730.00,Центральна виборча комісія,21661450,юридична особа
ОПЗЖ,"Київ, площа Лесі Українки, 1",59,2019-06-18,п/д № 396 від 2019-06-14,Грошова застава,Грошова застава,274591,Центральний офіс,21709375,Україна,"Грошова застава кандидата у народні депутати України Рудковський Анатолий Анатолійович, висунутого ПП ""Опозиційна Платформа- ЗАЖИТТЯ"" в одномандатному виборчому окрузі № 156. Без ПДВ. у загальнодержавному окрузі. Без ПДВ.",26003700467179,current,41730.00,Центральна виборча комісія,21661450,юридична особа
ОПЗЖ,"Київ, площа Лесі Українки, 1",59,2019-06-18,п/д № 298 від 2019-06-14,Грошова застава,Грошова застава,274590,Центральний офіс,21709375,Україна,"Грошова застава кандидата у народні депутати України Сахарова Катерина Михайлівна, висунутого ПП ""Опозиційна Платформа-ЗАЖИТТЯ"" в одномандатному виборчому окрузі № 50. Без ПДВ. у загальнодержавному окрузі. Без ПДВ.",26003700467179,current,41730.00,Центральна виборча комісія,21661450,юридична особа
ОПЗЖ,"Київ, площа Лесі Українки, 1",59,2019-06-18,п/д № 413 від 2019-06-14,Грошова застава,Грошова застава,274589,Центральний офіс,21709375,Україна,"Грошова застава кандидата у народні депутати України Новобранець Тетяна Володимирівна , висунутого ПП ""Опозиційна Платформа- ЗАЖИТТЯ"" в одномандатному виборчому окрузі № 212. Без ПДВ. у загальнодержавному окрузі. Без ПДВ.",26003700467179,current,41730.00,Центральна виборча комісія,21661450,юридична особа
ОПЗЖ,"Київ, площа Лесі Українки, 1",59,2019-06-18,п/д № 350 від 2019-06-14,Грошова застава,Грошова застава,274588,Центральний офіс,21709375,Україна,"Грошова застава кандидата у народні депутати України Осіпов Володимир Олександрович, висунутого ПП ""Опозиційна Платформа-ЗАЖИТТЯ"" в одномандатному виборчому окрузі № 137. Без ПДВ. у загальнодержавному окрузі. Без ПДВ.",26003700467179,current,41730.00,Центральна виборча комісія,21661450,юридична особа
ОПЗЖ,"Київ, площа Лесі Українки, 1",59,2019-06-18,п/д № 281 від 2019-06-14,Грошова застава,Грошова застава,274587,Центральний офіс,21709375,Україна,"Грошова застава кандидата у народні депутати України Чорний Валерій Іванович, висунутого ПП ""Опозиційна Платформа-ЗАЖИТТЯ"" в одномандатному виборчому окрузі № 28. Без ПДВ. у загальнодержавному окрузі. Без ПДВ.",26003700467179,current,41730.00,Центральна виборча комісія,21661450,юридична особа
ОПЗЖ,"Київ, площа Лесі Українки, 1",59,2019-06-18,п/д № 282 від 2019-06-14,Грошова застава,Грошова застава,274586,Центральний офіс,21709375,Україна,"Грошова застава кандидата у народні депутати України Юрчак Олександр Валерійович, висунутого ПП ""Опозиційна Платформа-ЗАЖИТТЯ"" в одномандатному виборчому окрузі № 29. Без ПДВ. у загальнодержавному окрузі. Без ПДВ.",26003700467179,current,41730.00,Центральна виборча комісія,21661450,юридична особа
ОПЗЖ,"Київ, площа Лесі Українки, 1",59,2019-06-18,п/д № 295 від 2019-06-14,Грошова застава,Грошова застава,274585,Центральний офіс,21709375,Україна,"Грошова застава кандидата у народні депутати України Христенко Федір Володимирович, висунутого ПП ""Опозиційна Платформа-ЗАЖИТТЯ"" в одномандатному виборчому окрузі № 48. Без ПДВ. у загальнодержавному окрузі. Без ПДВ.",26003700467179,current,41730.00,Центральна виборча комісія,21661450,юридична особа
ОПЗЖ,"Київ, площа Лесі Українки, 1",59,2019-06-18,п/д № 382 від 2019-06-14,Грошова застава,Грошова застава,274584,Центральний офіс,21709375,Україна,"Грошова застава кандидата у народні депутати України Степанов Сергій Миколайович, висунутого ПП ""Опозиційна Платформа-ЗАЖИТТЯ"" в одномандатному виборчому окрузі № 179. Без ПДВ. у загальнодержавному окрузі. Без ПДВ.",26003700467179,current,41730.00,Центральна виборча комісія,21661450,юридична особа
ОПЗЖ,"Київ, площа Лесі Українки, 1",59,2019-06-18,п/д № 378 від 2019-06-14,Грошова застава,Грошова застава,274583,Центральний офіс,21709375,Україна,"Грошова застава кандидата у народні депутати України Лазуренко Андрій Вікторович, висунутого ПП ""Опозиційна Платформа-ЗАЖИТТЯ"" в одномандатному виборчому окрузі № 175. Без ПДВ. у загальнодержавному окрузі. Без ПДВ.",26003700467179,current,41730.00,Центральна виборча комісія,21661450,юридична особа
ОПЗЖ,"Київ, площа Лесі Українки, 1",59,2019-06-18,,Грошова застава,Грошова застава,274582,Центральний офіс,21709375,Україна,"Грошова застава кандидата у народні депутати України Мацко Юрій Юрійович, висунутого ПП ""Опозиційна Платформа-ЗАЖИТТЯ"" в одномандатному виборчому окрузі № 35. Без ПДВ. у загальнодержавному окрузі. Без ПДВ.",26003700467179,current,41730.00,Центральна виборча комісія,21661450,юридична особа
ОПЗЖ,"Київ, площа Лесі Українки, 1",59,2019-06-18,п/д № 353 від 2019-06-14,Грошова застава,Грошова застава,274581,Центральний офіс,21709375,Україна,"Грошова застава кандидата у народні депутати України Біб Сергій Олександрович, висунутого ПП ""Опозиційна Платформа-ЗАЖИТТЯ"" в одномандатному виборчому окрузі № 140. Без ПДВ. у загальнодержавному окрузі. Без ПДВ.",26003700467179,current,41730.00,Центральна виборча комісія,21661450,юридична особа
ОПЗЖ,"Київ, площа Лесі Українки, 1",59,2019-06-18,п/д № 305 від 2019-06-14,Грошова застава,Грошова застава,274580,Центральний офіс,21709375,Україна,"Грошова застава кандидата у народні депутати України Леонченко Наталія Петрівна, висунутого ПП ""Опозиційна Платформа-ЗАЖИТТЯ"" в одномандатному виборчому окрузі № 62. Без ПДВ. у загальнодержавному окрузі. Без ПДВ.",26003700467179,current,41730.00,Центральна виборча комісія,21661450,юридична особа
ОПЗЖ,"Київ, площа Лесі Українки, 1",59,2019-06-18,п/д № 379 від 2019-06-14,Грошова застава,Грошова застава,274579,Центральний офіс,21709375,Україна,"Грошова застава кандидата у народні депутати України Новицький Дмитро Володимирович, висунутого ПП ""Опозиційна Платформа-ЗАЖИТТЯ"" в одномандатному виборчому окрузі № 176. Без ПДВ. у загальнодержавному окрузі. Без ПДВ.",26003700467179,current,41730.00,Центральна виборча комісія,21661450,юридична особа
ОПЗЖ,"Київ, площа Лесі Українки, 1",59,2019-06-18,п/д № 392 від 2019-06-14,Грошова застава,Грошова застава,274578,Центральний офіс,21709375,Україна,"Грошова застава кандидата у народні депутати України Пономарьов Сергій Вікторович, висунутого ПП ""Опозиційна Платформа-ЗАЖИТТЯ"" в одномандатному виборчому окрузі № 191. Без ПДВ. у загальнодержавному окрузі. Без ПДВ.",26003700467179,current,41730.00,Центральна виборча комісія,21661450,юридична особа
ОПЗЖ,"Київ, площа Лесі Українки, 1",59,2019-06-18,п/д № 372 від 2019-06-14,Грошова застава,Грошова застава,274577,Центральний офіс,21709375,Україна,"Грошова застава кандидата у народні депутати України Пилипейко Володимир Юрійович, висунутого ПП ""Опозиційна Платформа- ЗАЖИТТЯ"" в одномандатному виборчому окрузі № 160. Без ПДВ. у загальнодержавному окрузі. Без ПДВ.",26003700467179,current,41730.00,Центральна виборча комісія,21661450,юридична особа
ОПЗЖ,"Київ, площа Лесі Українки, 1",59,2019-06-18,п/д № 393 від 2019-06-14,Грошова застава,Грошова застава,274576,Центральний офіс,21709375,Україна,"Грошова застава кандидата у народні депутати України Ярошинський Роман вікторович, висунутого ПП ""Опозиційна Платформа- ЗАЖИТТЯ"" в одномандатному виборчому окрузі № 192. Без ПДВ. у загальнодержавному окрузі. Без ПДВ.",26003700467179,current,41730.00,Центральна виборча комісія,21661450,юридична особа
ОПЗЖ,"Київ, площа Лесі Українки, 1",59,2019-06-18,п/д № 414 від 2019-06-14,Грошова застава,Грошова застава,274575,Центральний офіс,21709375,Україна,"Грошова застава кандидата у народні депутати України Мотуз Вадим Валерійович, висунутого ПП ""Опозиційна Платформа-ЗАЖИТТЯ"" в одномандатному виборчому окрузі № 213. Без ПДВ. у загальнодержавному окрузі. Без ПДВ.",26003700467179,current,41730.00,Центральна виборча комісія,21661450,юридична особа
ОПЗЖ,"Київ, площа Лесі Українки, 1",59,2019-06-18,п/д № 415 від 2019-06-14,Грошова застава,Грошова застава,274574,Центральний офіс,21709375,Україна,"Грошова застава кандидата у народні депутати України Безніс Олександр Олександрович, висунутого ПП ""Опозиційна Платформа- ЗАЖИТТЯ"" в одномандатному виборчому окрузі № 214 Без ПДВ. у загальнодержавному окрузі. Без ПДВ.",26003700467179,current,41730.00,Центральна виборча комісія,21661450,юридична особа
ОПЗЖ,"Київ, площа Лесі Українки, 1",59,2019-06-18,п/д № 303 від 2019-06-14,Грошова застава,Грошова застава,274573,Центральний офіс,21709375,Україна,"Грошова застава кандидата у народні депутати України Мороз Володимир Вікторович, висунутого ПП ""Опозиційна Платформа- ЗАЖИТТЯ"" в одномандатному виборчому окрузі № 59. Без ПДВ. у загальнодержавному окрузі. Без ПДВ.",26003700467179,current,41730.00,Центральна виборча комісія,21661450,юридична особа
ОПЗЖ,"Київ, площа Лесі Українки, 1",59,2019-06-18,п/д № 261 від 2019-06-14,Грошова застава,Грошова застава,274572,Центральний офіс,21709375,Україна,"Грошова застава кандидата у народні депутати України Саутьонков Віталій Миколайович, висунутого ПП ""Опозиційна Платформа- ЗАЖИТТЯ"" в одномандатному виборчому окрузі №139. Без ПДВ. у загальнодержавному окрузі. Без ПДВ.",26003700467179,current,41730.00,Центральна виборча комісія,21661450,юридична особа
ОПЗЖ,"Київ, площа Лесі Українки, 1",59,2019-06-18,п/д № 302 від 2019-06-14,Грошова застава,Грошова застава,274568,Центральний офіс,21709375,Україна,"Грошова застава кандидата у народні депутати України Рибачук Валентин Леонідович, висунутого ПП ""Опозиційна Платформа-ЗАЖИТТЯ"" в одномандатному виборчому окрузі № 58. Без ПДВ. у загальнодержавному окрузі. Без ПДВ.",26003700467179,current,41730.00,Центральна виборча комісія,21661450,юридична особа
ОПЗЖ,"Київ, площа Лесі Українки, 1",59,2019-06-18,п/д № 301 від 2019-06-14,Грошова застава,Грошова застава,274567,Центральний офіс,21709375,Україна,"Грошова застава кандидата у народні депутати України Філімонов Владислав Євгенович, висунутого ПП ""Опозиційна Платформа-ЗАЖИТТЯ"" в одномандатному виборчому окрузі № 57. Без ПДВ. у загальнодержавному окрузі. Без ПДВ",26003700467179,current,41730.00,Центральна виборча комісія,21661450,юридична особа
ОПЗЖ,"Київ, площа Лесі Українки, 1",59,2019-06-18,п/д № 326 від 2019-06-14,Грошова застава,Грошова застава,274566,Центральний офіс,21709375,Україна,"Грошова застава кандидата у народні депутати України Шевченко Олександр Олександрович, висунутого ПП ""Опозиційна Платформа- ЗАЖИТТЯ"" в одномандатному виборчому окрузі № 93. Без ПДВ. у загальнодержавному окрузі. Без ПДВ.",26003700467179,current,41730.00,Центральна виборча комісія,21661450,юридична особа
ОПЗЖ,"Київ, площа Лесі Українки, 1",59,2019-06-18,п/д № 417 від 2019-06-14,Грошова застава,Грошова застава,274565,Центральний офіс,21709375,Україна,"Грошова застава кандидата у народні депутати України Дубій Ігор Валерійович, висунутого ПП ""Опозиційна Платформа-ЗАЖИТТЯ"" в одномандатному виборчому окрузі № 216. Без ПДВ. у загальнодержавному окрузі. Без ПДВ",26003700467179,current,41730.00,Центральна виборча комісія,21661450,юридична особа
ОПЗЖ,"Київ, площа Лесі Українки, 1",59,2019-06-18,п/д № 416 від 2019-06-14,Грошова застава,Грошова застава,274564,Центральний офіс,21709375,Україна,"Грошова застава кандидата у народні депутати України Пархоменко Евген Анатолійович, висунутого ПП ""Опозиційна Платформа-ЗАЖИТТЯ"" в одномандатному виборчому окрузі № 215. Без ПДВ. у загальнодержавному окрузі. Без ПДВ",26003700467179,current,41730.00,Центральна виборча комісія,21661450,юридична особа
ОПЗЖ,"Київ, площа Лесі Українки, 1",59,2019-06-18,п/д № 293 від 2019-06-14,Грошова застава,Грошова застава,274563,Центральний офіс,21709375,Україна,"Грошова застава кандидата у народні депутати України Жадько Олена Анатоліївна, висунутого ПП ""Опозиційна Платформа-ЗАЖИТТЯ"" в одномандатному виборчому окрузі № 40. Без ПДВ. у загальнодержавному окрузі. Без ПДВ.",26003700467179,current,41730.00,Центральна виборча комісія,21661450,юридична особа
ОПЗЖ,"Київ, площа Лесі Українки, 1",59,2019-06-18,п/д № 412 від 2019-06-14,Грошова застава,Грошова застава,274562,Центральний офіс,21709375,Україна,"Грошова застава кандидата у народні депутати України Стеценко Андрій Вікторович, висунутого ПП ""Опозиційна Платформа-ЗАЖИТТЯ"" в одномандатному виборчому окрузі № 211. Без ПДВ. у загальнодержавному окрузі. Без ПДВ",26003700467179,current,41730.00,Центральна виборча комісія,21661450,юридична особа
ОПЗЖ,"Київ, площа Лесі Українки, 1",59,2019-06-18,п/д № 395 від 2019-06-14,Грошова застава,Грошова застава,274561,Центральний офіс,21709375,Україна,"Грошова застава кандидата у народні депутати України Погостинська Юлія Олександрівна, висунутого ПП ""Опозиційна Платформа-ЗАЖИТТЯ"" в одномандатному виборчому окрузі № 194. Без ПДВ. у загальнодержавному окрузі. Без ПДВ.",26003700467179,current,41730.00,Центральна виборча комісія,21661450,юридична особа
ОПЗЖ,"Київ, площа Лесі Українки, 1",59,2019-06-18,п/д № 409 від 2019-06-14,Грошова застава,Грошова застава,274560,Центральний офіс,21709375,Україна,"Грошова застава кандидата у народні депутати України Ткаченко Віктор Іванович, висунутого ПП ""Опозиційна Платформа-ЗАЖИТТЯ"" в одномандатному виборчому окрузі № 208. Без ПДВ. у загальнодержавному окрузі. Без ПДВ",26003700467179,current,41730.00,Центральна виборча комісія,21661450,юридична особа
ОПЗЖ,"Київ, площа Лесі Українки, 1",59,2019-06-18,п/д № 322 від 2019-06-14,Грошова застава,Грошова застава,274559,Центральний офіс,21709375,Україна,"Грошова застава кандидата у народні депутати України Люцканов Володимир Петрович, висунутого ПП ""Опозиційна Платформа-ЗАЖИТТЯ"" в одномандатному виборчому окрузі № 82. Без ПДВ. у загальнодержавному окрузі. Без ПДВ.",26003700467179,current,41730.00,Центральна виборча комісія,21661450,юридична особа
ОПЗЖ,"Київ, площа Лесі Українки, 1",59,2019-06-18,п/д № 406 від 2019-06-14,Грошова застава,Грошова застава,274558,Центральний офіс,21709375,Україна,"Грошова застава кандидата у народні депутати України Куліда Василь Олександрович, висунутого ПП ""Опозиційна Платформа-ЗАЖИТТЯ"" в одномандатному виборчому окрузі № 205. Без ПДВ. у загальнодержавному окрузі. Без ПДВ.",26003700467179,current,41730.00,Центральна виборча комісія,21661450,юридична особа
ОПЗЖ,"Київ, площа Лесі Українки, 1",59,2019-06-18,п/д № 320 від 2019-06-14,Грошова застава,Грошова застава,274557,Центральний офіс,21709375,Україна,"Грошова застава кандидата у народні депутати України Маслов Михайло Борисович, висунутого ПП ""Опозиційна Платформа-ЗАЖИТТЯ"" в одномандатному виборчому окрузі № 80. Без ПДВ. у загальнодержавному окрузі. Без ПДВ.",26003700467179,current,41730.00,Центральна виборча комісія,21661450,юридична особа
ОПЗЖ,"Київ, площа Лесі Українки, 1",59,2019-06-18,п/д № 365 від 2019-06-14,Грошова застава,Грошова застава,274556,Центральний офіс,21709375,Україна,"Грошова застава кандидата у народні депутати України Ніколайчук Микола Віталійо, вич, висунутого ПП ""Опозиційна Платформа-ЗАЖИТТЯ"" в одномандатному виборчому окрузі № 152. Без ПДВ. у загальнодержавному окрузі. Без ПДВ.",26003700467179,current,41730.00,Центральна виборча комісія,21661450,юридична особа
ОПЗЖ,"Київ, площа Лесі Українки, 1",59,2019-06-18,п/д № 297 від 2019-06-14,Грошова застава,Грошова застава,274555,Центральний офіс,21709375,Україна,"Грошова застава кандидата у народні депутати України Гнатенко Валерій Сергійович, висунутого ПП ""Опозиційна Платформа-ЗАЖИТТЯ"" в одномандатному виборчому окрузі № 49. Без ПДВ. у загальнодержавному окрузі. Без ПДВ",26003700467179,current,41730.00,Центральна виборча комісія,21661450,юридична особа
ОПЗЖ,"Київ, площа Лесі Українки, 1",59,2019-06-18,п/д № 277 від 2019-06-14,Грошова застава,Грошова застава,274554,Центральний офіс,21709375,Україна,"Грошова застава кандидата у народні депутати України Семенко Олег Борисович, висунутого ПП ""Опозиційна Платформа-ЗАЖИТТЯ"" в одномандатному виборчому окрузі № 24. Без ПДВ. у загальнодержавному окрузі. Без ПДВ",26003700467179,current,41730.00,Центральна виборча комісія,21661450,юридична особа
ОПЗЖ,"Київ, площа Лесі Українки, 1",59,2019-06-18,п/д № 407 від 2019-06-14,Грошова застава,Грошова застава,274553,Центральний офіс,21709375,Україна,"Грошова застава кандидата у народні депутати України Антошин Вадим Леонідович, висунутого ПП ""Опозиційна Платформа-ЗАЖИТТЯ"" в одномандатному виборчому окрузі № 206. Без ПДВ. у загальнодержавному окрузі. Без ПДВ",26003700467179,current,41730.00,Центральна виборча комісія,21661450,юридична особа
ОПЗЖ,"Київ, площа Лесі Українки, 1",59,2019-06-18,п/д № 364 від 2019-06-14,Грошова застава,Грошова застава,274552,Центральний офіс,21709375,Україна,"Грошова застава кандидата у народні депутати України Опришко Володимир Іванович, висунутого ПП ""Опозиційна Платформа-ЗАЖИТТЯ"" в одномандатному виборчому окрузі № 151. Без ПДВ. у загальнодержавному окрузі. Без ПДВ.",26003700467179,current,41730.00,Центральна виборча комісія,21661450,юридична особа
ОПЗЖ,"Київ, площа Лесі Українки, 1",59,2019-06-18,п/д № 346 від 2019-06-14,Грошова застава,Грошова застава,274551,Центральний офіс,21709375,Україна,"Грошова застава кандидата у народні депутати України Головчанський Андрій Всеволодовіч, висунутого ПП ""Опозиційна Платформа- ЗАЖИТТЯ"" в одномандатному виборчому окрузі № 132. Без ПДВ. у загальнодержавному окрузі. Без ПДВ.",26003700467179,current,41730.00,Центральна виборча комісія,21661450,юридична особа
ОПЗЖ,"Київ, площа Лесі Українки, 1",59,2019-06-18,п/д № 344 від 2019-06-14,Грошова застава,Грошова застава,274550,Центральний офіс,21709375,Україна,"Грошова застава кандидата у народні депутати України Фроленко Володимир Олександрович, висунутого ПП ""Опозиційна Платформа- ЗАЖИТТЯ"" в одномандатному виборчому окрузі № 130. Без ПДВ. у загальнодержавному окрузі. Без ПДВ.",26003700467179,current,41730.00,Центральна виборча комісія,21661450,юридична особа
ОПЗЖ,"Київ, площа Лесі Українки, 1",59,2019-06-18,п/д № 276 від 2019-06-14,Грошова застава,Грошова застава,274549,Центральний офіс,21709375,Україна,"Грошова застава кандидата у народні депутати України Оласюк Іван Вікторович, висунутого ПП ""Опозиційна Платформа-ЗАЖИТТЯ"" в одномандатному виборчому окрузі № 23. Без ПДВ. у загальнодержавному окрузі. Без ПДВ",26003700467179,current,41730.00,Центральна виборча комісія,21661450,юридична особа
ОПЗЖ,"Київ, площа Лесі Українки, 1",59,2019-06-18,п/д № 361 від 2019-06-14,Грошова застава,Грошова застава,274548,Центральний офіс,21709375,Україна,"Грошова застава кандидата у народні депутати України Жадан Євгеній Володимирович, висунутого ПП ""Опозиційна Платформа-ЗАЖИТТЯ"" в одномандатному виборчому окрузі № 148. Без ПДВ. у загальнодержавному окрузі. Без ПДВ",26003700467179,current,41730.00,Центральна виборча комісія,21661450,юридична особа
ОПЗЖ,"Київ, площа Лесі Українки, 1",59,2019-06-18,п/д № 358 від 2019-06-14,Грошова застава,Грошова застава,274547,Центральний офіс,21709375,Україна,"Грошова застава кандидата у народні депутати України Гриценко Володимир Петрович, висунутого ПП ""Опозиційна Платформа-ЗАЖИТТЯ"" в одномандатному виборчому окрузі № 145. Без ПДВ. у загальнодержавному окрузі. Без ПДВ.",26003700467179,current,41730.00,Центральна виборча комісія,21661450,юридична особа
ОПЗЖ,"Київ, площа Лесі Українки, 1",59,2019-06-18,п/д № 362 від 2019-06-14,Грошова застава,Грошова застава,274546,Центральний офіс,21709375,Україна,"Грошова застава кандидата у народні депутати України Телятник Руслан Васильович, висунутого ПП ""Опозиційна Платформа-ЗАЖИТТЯ"" в одномандатному виборчому окрузі № 149. Без ПДВ. у загальнодержавному окрузі. Без ПДВ.",26003700467179,current,41730.00,Центральна виборча комісія,21661450,юридична особа
ОПЗЖ,"Київ, площа Лесі Українки, 1",59,2019-06-18,п/д № 291 від 2019-06-14,Грошова застава,Грошова застава,274545,Центральний офіс,21709375,Україна,"Грошова застава кандидата у народні депутати України Арутюнов Володимир Левонович, висунутого ПП ""Опозиційна Платформа-ЗАЖИТТЯ"" в одномандатному виборчому окрузі № 38. Без ПДВ. у загальнодержавному окрузі. Без ПДВ.",26003700467179,current,41730.00,Центральна виборча комісія,21661450,юридична особа
ОПЗЖ,"Київ, площа Лесі Українки, 1",59,2019-06-18,п/д № 278 від 2019-06-14,Грошова застава,Грошова застава,274544,Центральний офіс,21709375,Україна,"Грошова застава кандидата у народні депутати України Лещенко Олексій Васильович, висунутого ПП ""Опозиційна Платформа-ЗАЖИТТЯ"" в одномандатному виборчому окрузі № 25. Без ПДВ. у загальнодержавному окрузі. Без ПДВ.",26003700467179,current,41730.00,Центральна виборча комісія,21661450,юридична особа
ОПЗЖ,"Київ, площа Лесі Українки, 1",59,2019-06-18,п/д № 359 від 2019-06-14,Грошова застава,Грошова застава,274543,Центральний офіс,21709375,Україна,"Грошова застава кандидата у народні депутати України Іванян ГеннадійМихайлович, висунутого ПП ""Опозиційна Платформа-ЗАЖИТТЯ"" в одномандатному виборчому окрузі № 146. Без ПДВ. у загальнодержавному окрузі. Без ПДВ",26003700467179,current,41730.00,Центральна виборча комісія,21661450,юридична особа
ОПЗЖ,"Київ, площа Лесі Українки, 1",59,2019-06-18,п/д № 411 від 2019-06-14,Грошова застава,Грошова застава,274542,Центральний офіс,21709375,Україна,"Грошова застава кандидата у народні депутати України Бартош Олександжр Петрович, висунутого ПП ""Опозиційна Платформа-ЗАЖИТТЯ"" в одномандатному виборчому окрузі № 210. Без ПДВ. у загальнодержавному окрузі. Без ПДВ.",26003700467179,current,41730.00,Центральна виборча комісія,21661450,юридична особа
ОПЗЖ,"Київ, площа Лесі Українки, 1",59,2019-06-18,п/д № 323 від 2019-06-14,Грошова застава,Грошова застава,274541,Центральний офіс,21709375,Україна,"Грошова застава кандидата у народні депутати України Санін Володимир Миколайович, висунутого ПП ""Опозиційна Платформа-ЗАЖИТТЯ"" в одномандатному виборчому окрузі № 90. Без ПДВ. у загальнодержавному окрузі. Без ПДВ.",26003700467179,current,41730.00,Центральна виборча комісія,21661450,юридична особа
ОПЗЖ,"Київ, площа Лесі Українки, 1",59,2019-06-18,п/д № 275 від 2019-06-14,Грошова застава,Грошова застава,274540,Центральний офіс,21709375,Україна,"Грошова застава кандидата у народні депутати України Бабаханов Руслан Олексійович, висунутого ПП ""Опозиційна Платформа-ЗАЖИТТЯ"" в одномандатному виборчому окрузі № 22. Без ПДВ. у загальнодержавному окрузі. Без ПДВ",26003700467179,current,41730.00,Центральна виборча комісія,21661450,юридична особа
ОПЗЖ,"Київ, площа Лесі Українки, 1",59,2019-06-18,п/д № 292 від 2019-06-14,Грошова застава,Грошова застава,274539,Центральний офіс,21709375,Україна,"Грошова застава кандидата у народні депутати України Пустова Марія Іванівна, висунутого ПП ""Опозиційна Платформа-ЗАЖИТТЯ"" в одномандатному виборчому окрузі № 39. Без ПДВ. у загальнодержавному окрузі. Без ПДВ.",26003700467179,current,41730.00,Центральна виборча комісія,21661450,юридична особа
ОПЗЖ,"Київ, площа Лесі Українки, 1",59,2019-06-18,п/д № 289 від 2019-06-14,Грошова застава,Грошова застава,274538,Центральний офіс,21709375,Україна,"Грошова застава кандидата у народні депутати України Леонова-Щербак Вікторія Сергіївна, висунутого ПП ""Опозиційна Платформа-ЗАЖИТТЯ"" в одномандатному виборчому окрузі № 36. Без ПДВ. у загальнодержавному окрузі. Без ПДВ.",26003700467179,current,41730.00,Центральна виборча комісія,21661450,юридична особа
ОПЗЖ,"Київ, площа Лесі Українки, 1",59,2019-06-18,п/д № 405 від 2019-06-14,Грошова застава,Грошова застава,274537,Центральний офіс,21709375,Україна,"Грошова застава кандидата у народні депутати України Довгань Микола Олександрович, висунутого ПП ""Опозиційна Платформа-ЗАЖИТТЯ"" в одномандатному виборчому окрузі № 204 Без ПДВ. у загальнодержавному окрузі. Без ПДВ.",26003700467179,current,41730.00,Центральна виборча комісія,21661450,юридична особа
ОПЗЖ,"Київ, площа Лесі Українки, 1",59,2019-06-18,п/д № 341 від 2019-06-14,Грошова застава,Грошова застава,274536,Центральний офіс,21709375,Україна,"Грошова застава кандидата у народні депутати України Лукашев Олександр Анатолійович, висунутого ПП ""Опозиційна Платформа-ЗАЖИТТЯ"" в одномандатному виборчому окрузі № 113. Без ПДВ. у загальнодержавному окрузі. Без ПДВ",26003700467179,current,41730.00,Центральна виборча комісія,21661450,юридична особа
ОПЗЖ,"Київ, площа Лесі Українки, 1",59,2019-06-18,п/д № 314 від 2019-06-14,Грошова застава,Грошова застава,274535,Центральний офіс,21709375,Україна,"Грошова застава кандидата у народні депутати України Матвієнко Павло Дмитрович, висунутого ПП ""Опозиційна Платформа-ЗАЖИТТЯ"" в одномандатному виборчому окрузі № 74. Без ПДВ. у загальнодержавному окрузі. Без ПДВ.",26003700467179,current,41730.00,Центральна виборча комісія,21661450,юридична особа
ОПЗЖ,"Київ, площа Лесі Українки, 1",59,2019-06-18,п/д № 316 від 2019-06-14,Грошова застава,Грошова застава,274534,Центральний офіс,21709375,Україна,"Грошова застава кандидата у народні депутати України Ярмощук Микола Анатолійович, висунутого ПП ""Опозиційна Платформа-ЗАЖИТТЯ"" в одномандатному виборчому окрузі № 76. Без ПДВ. у загальнодержавному окрузі. Без ПДВ",26003700467179,current,41730.00,Центральна виборча комісія,21661450,юридична особа
ОПЗЖ,"Київ, площа Лесі Українки, 1",59,2019-06-18,п/д № 404 від 2019-06-14,Грошова застава,Грошова застава,274533,Центральний офіс,21709375,Україна,"Грошова застава кандидата у народні депутати України Жар Михайло Михайлович, висунутого ПП ""Опозиційна Платформа-ЗАЖИТТЯ"" в одномандатному виборчому окрузі № 203. Без ПДВ. у загальнодержавному окрузі. Без ПДВ",26003700467179,current,41730.00,Центральна виборча комісія,21661450,юридична особа
ОПЗЖ,"Київ, площа Лесі Українки, 1",59,2019-06-18,п/д № 290 від 2019-06-14,Грошова застава,Грошова застава,274532,Центральний офіс,21709375,Україна,"Грошова застава кандидата у народні депутати України Миргород Геннадій Миколайович, висунутого ПП ""Опозиційна Платформа-ЗАЖИТТЯ"" в одномандатному виборчому окрузі № 37. Без ПДВ. у загальнодержавному окрузі. Без ПДВ",26003700467179,current,41730.00,Центральна виборча комісія,21661450,юридична особа
ОПЗЖ,"Київ, площа Лесі Українки, 1",59,2019-06-18,п/д № 315 від 2019-06-14,Грошова застава,Грошова застава,274531,Центральний офіс,21709375,Україна,"Грошова застава кандидата у народні депутати України Кальцев Сергій Федорович, висунутого ПП ""Опозиційна Платформа-ЗАЖИТТЯ"" в одномандатному виборчому окрузі № 75. Без ПДВ. у загальнодержавному окрузі. Без ПДВ",26003700467179,current,41730.00,Центральна виборча комісія,21661450,юридична особа
ОПЗЖ,"Київ, площа Лесі Українки, 1",59,2019-06-18,п/д № 324 від 2019-06-14,Грошова застава,Грошова застава,274530,Центральний офіс,21709375,Україна,"Грошова застава кандидата у народні депутати України Нестеренко Олег Олександрович, висунутого ПП ""Опозиційна Платформа-ЗАЖИТТЯ"" в одномандатному виборчому окрузі № 91. Без ПДВ. у загальнодержавному окрузі. Без ПДВ.",26003700467179,current,41730.00,Центральна виборча комісія,21661450,юридична особа
ОПЗЖ,"Київ, площа Лесі Українки, 1",59,2019-06-18,п/д № 273 від 2019-06-14,Грошова застава,Грошова застава,274529,Центральний офіс,21709375,Україна,"Грошова застава кандидата у народні депутати України Саєвич Володимир Михайлович, висунутого ПП ""Опозиційна Платформа-ЗАЖИТТЯ"" в одномандатному виборчому окрузі № 20. Без ПДВ. у загальнодержавному окрузі. Без ПДВ",26003700467179,current,41730.00,Центральна виборча комісія,21661450,юридична особа
ОПЗЖ,"Київ, площа Лесі Українки, 1",59,2019-06-18,п/д № 319 від 2019-06-14,Грошова застава,Грошова застава,274528,Центральний офіс,21709375,Україна,"Грошова застава кандидата у народні депутати України Бандуров Володимир Володимирович, висунутого ПП ""Опозиційна Платформа- ЗАЖИТТЯ"" в одномандатному виборчому окрузі № 79. Без ПДВ. у загальнодержавному окрузі. Без ПДВ.",26003700467179,current,41730.00,Центральна виборча комісія,21661450,юридична особа
ОПЗЖ,"Київ, площа Лесі Українки, 1",59,2019-06-18,п/д № 328 від 2019-06-14,Грошова застава,Грошова застава,274527,Центральний офіс,21709375,Україна,"Грошова застава кандидата у народні депутати України Подашевська Тетяна Леонтівна, висунутого ПП ""Опозиційна Платформа-ЗАЖИТТЯ"" в одномандатному виборчому окрузі № 95. Без ПДВ. у загальнодержавному окрузі. Без ПДВ.",26003700467179,current,41730.00,Центральна виборча комісія,21661450,юридична особа
ОПЗЖ,"Київ, площа Лесі Українки, 1",59,2019-06-18,п/д № 360 від 2019-06-14,Грошова застава,Грошова застава,274526,Центральний офіс,21709375,Україна,"Грошова застава кандидата у народні депутати України Сафонов Влатислав Геннадійович, висунутого ПП ""Опозиційна Платформа-ЗАЖИТТЯ"" в одномандатному виборчому окрузі № 147. Без ПДВ. у загальнодержавному окрузі. Без ПДВ.",26003700467179,current,41730.00,Центральна виборча комісія,21661450,юридична особа
ОПЗЖ,"Київ, площа Лесі Українки, 1",59,2019-06-18,п/д № 342 від 2019-06-14,Грошова застава,Грошова застава,274525,Центральний офіс,21709375,Україна,"Грошова застава кандидата у народні депутати України Дворник Анатолій Анатолійович, висунутого ПП ""Опозиційна Платформа-ЗАЖИТТЯ"" в одномандатному виборчому окрузі № 128. Без ПДВ. у загальнодержавному окрузі. Без ПДВ.",26003700467179,current,41730.00,Центральна виборча комісія,21661450,юридична особа
ОПЗЖ,"Київ, площа Лесі Українки, 1",59,2019-06-18,п/д № 274 від 2019-06-14,Грошова застава,Грошова застава,274524,Центральний офіс,21709375,Україна,"Грошова застава кандидата у народні депутати України Горішній Василь Олександрович, висунутого ПП ""Опозиційна Платформа-ЗАЖИТТЯ"" в одномандатному виборчому окрузі № 21. Без ПДВ. у загальнодержавному окрузі. Без ПДВ.",26003700467179,current,41730.00,Центральна виборча комісія,21661450,юридична особа
ОПЗЖ,"Київ, площа Лесі Українки, 1",59,2019-06-18,п/д № 387 від 2019-06-14,Грошова застава,Грошова застава,274523,Центральний офіс,21709375,Україна,"Грошова застава кандидата у народні депутати України Філіпчук Павло Ігорович, висунутого ПП ""Опозиційна Платформа-ЗАЖИТТЯ"" в одномандатному виборчому окрузі № 185. Без ПДВ. у загальнодержавному окрузі. Без ПДВ",26003700467179,current,41730.00,Центральна виборча комісія,21661450,юридична особа
ОПЗЖ,"Київ, площа Лесі Українки, 1",59,2019-06-18,п/д № 388 від 2019-06-14,Грошова застава,Грошова застава,274522,Центральний офіс,21709375,Україна,"Грошова застава кандидата у народні депутати України Рибалко Сергій Вікторович, висунутого ПП ""Опозиційна Платформа-ЗАЖИТТЯ"" в одномандатному виборчому окрузі № 186. Без ПДВ. у загальнодержавному окрузі. Без ПДВ",26003700467179,current,41730.00,Центральна виборча комісія,21661450,юридична особа
ОПЗЖ,"Київ, площа Лесі Українки, 1",59,2019-06-18,п/д № 386 від 2019-06-14,Грошова застава,Грошова застава,274521,Центральний офіс,21709375,Україна,"Грошова застава кандидата у народні депутати України Опанащенко Михайло Володимирович, висунутого ПП ""Опозиційна Платформа- ЗАЖИТТЯ"" в одномандатному виборчому окрузі № 183. Без ПДВ. у загальнодержавному окрузі. Без ПДВ.",26003700467179,current,41730.00,Центральна виборча комісія,21661450,юридична особа
ОПЗЖ,"Київ, площа Лесі Українки, 1",59,2019-06-18,п/д № 269 від 2019-06-14,Грошова застава,Грошова застава,274520,Центральний офіс,21709375,Україна,"Грошова застава кандидата у народні депутати України Лунько Олександр Олександрович, висунутого ПП ""Опозиційна Платформа-ЗАЖИТТЯ"" в одномандатному виборчому окрузі № 15. Без ПДВ. у загальнодержавному окрузі. Без ПДВ",26003700467179,current,41730.00,Центральна виборча комісія,21661450,юридична особа
ОПЗЖ,"Київ, площа Лесі Українки, 1",59,2019-06-18,п/д № 270 від 2019-06-14,Грошова застава,Грошова застава,274519,Центральний офіс,21709375,Україна,"Грошова застава кандидата у народні депутати України Цехмейструк Микола Дмитрович, висунутого ПП ""Опозиційна Платформа-ЗАЖИТТЯ"" в одномандатному виборчому окрузі № 17. Без ПДВ. у загальнодержавному окрузі. Без ПДВ.",26003700467179,current,41730.00,Центральна виборча комісія,21661450,юридична особа
ОПЗЖ,"Київ, площа Лесі Українки, 1",59,2019-06-18,п/д № 272 від 2019-06-14,Грошова застава,Грошова застава,274518,Центральний офіс,21709375,Україна,"Грошова застава кандидата у народні депутати України Голигін Віталій Володимирович, висунутого ПП ""Опозиційна Платформа-ЗАЖИТТЯ"" в одномандатному виборчому окрузі № 19. Без ПДВ. у загальнодержавному окрузі. Без ПДВ.",26003700467179,current,41730.00,Центральна виборча комісія,21661450,юридична особа
ОПЗЖ,"Київ, площа Лесі Українки, 1",59,2019-06-18,п/д № 385 від 2019-06-14,Грошова застава,Грошова застава,274517,Центральний офіс,21709375,Україна,"Грошова застава кандидата у народні депутати України Сальдо Володимир Васильович, висунутого ПП ""Опозиційна Платформа-ЗАЖИТТЯ"" в одномандатному виборчому окрузі № 182. Без ПДВ. у загальнодержавному окрузі. Без ПДВ.",26003700467179,current,41730.00,Центральна виборча комісія,21661450,юридична особа
ОПЗЖ,"Київ, площа Лесі Українки, 1",59,2019-06-18,п/д № 384 від 2019-06-14,Грошова застава,Грошова застава,274516,Центральний офіс,21709375,Україна,"Грошова застава кандидата у народні депутати України Юрков Володимир Іванович, висунутого ПП ""Опозиційна Платформа-ЗАЖИТТЯ"" в одномандатному виборчому окрузі № 181. Без ПДВ. у загальнодержавному окрузі. Без ПДВ.",26003700467179,current,41730.00,Центральна виборча комісія,21661450,юридична особа
ОПЗЖ,"Київ, площа Лесі Українки, 1",59,2019-06-18,п/д № 313 від 2019-06-14,Грошова застава,Грошова застава,274515,Центральний офіс,21709375,Україна,"Грошова застава кандидата у народні депутати України Лемко Микола Миколайович, висунутого ПП ""Опозиційна Платформа-ЗАЖИТТЯ"" в одномандатному виборчому окрузі № 73. Без ПДВ. у загальнодержавному окрузі. Без ПДВ.",26003700467179,current,41730.00,Центральна виборча комісія,21661450,юридична особа
ОПЗЖ,"Київ, площа Лесі Українки, 1",59,2019-06-18,п/д № 383 від 2019-06-14,Грошова застава,Грошова застава,274514,Центральний офіс,21709375,Україна,"Грошова застава кандидата у народні депутати України Плетньов Володимир Васильович, висунутого ПП ""Опозиційна Платформа-ЗАЖИТТЯ"" в одномандатному виборчому окрузі № 180. Без ПДВ. у загальнодержавному окрузі. Без ПДВ.",26003700467179,current,41730.00,Центральна виборча комісія,21661450,юридична особа
ОПЗЖ,"Київ, площа Лесі Українки, 1",59,2019-06-18,п/д № 356 від 2019-06-14,Грошова застава,Грошова застава,274513,Центральний офіс,21709375,Україна,"Грошова застава кандидата у народні депутати України Шкарівский Вадим Миколайович, висунутого ПП ""Опозиційна Платформа-ЗАЖИТТЯ"" в одномандатному виборчому окрузі № 143. Без ПДВ. у загальнодержавному окрузі. Без ПДВ.",26003700467179,current,41730.00,Центральна виборча комісія,21661450,юридична особа
ОПЗЖ,"Київ, площа Лесі Українки, 1",59,2019-06-18,п/д № 402 від 2019-06-14,Грошова застава,Грошова застава,274512,Центральний офіс,21709375,Україна,"Грошова застава кандидата у народні депутати України Михайлішин Віталій Михайлович, висунутого ПП ""Опозиційна Платформа-ЗАЖИТТЯ"" в одномандатному виборчому окрузі № 201. Без ПДВ. у загальнодержавному окрузі. Без ПДВ.",26003700467179,current,41730.00,Центральна виборча комісія,21661450,юридична особа
ОПЗЖ,"Київ, площа Лесі Українки, 1",59,2019-06-18,п/д № 355 від 2019-06-14,Грошова застава,Грошова застава,274511,Центральний офіс,21709375,Україна,"Грошова застава кандидата у народні депутати України Димитрієв Сергій Гаврилович, висунутого ПП ""Опозиційна Платформа-ЗАЖИТТЯ"" в одномандатному виборчому окрузі № 142. Без ПДВ. у загальнодержавному окрузі. Без ПДВ",26003700467179,current,41730.00,Центральна виборча комісія,21661450,юридична особа
ОПЗЖ,"Київ, площа Лесі Українки, 1",59,2019-06-18,п/д № 312 від 2019-06-14,Грошова застава,Грошова застава,274510,Центральний офіс,21709375,Україна,"Грошова застава кандидата у народні депутати України Савчук Ігор Петрович, висунутого ПП ""Опозиційна Платформа-ЗАЖИТТЯ"" в одномандатному виборчому окрузі № 72. Без ПДВ. у загальнодержавному окрузі. Без ПДВ.",26003700467179,current,41730.00,Центральна виборча комісія,21661450,юридична особа
ОПЗЖ,"Київ, площа Лесі Українки, 1",59,2019-06-18,п/д № 329 від 2019-06-14,Грошова застава,Грошова застава,274509,Центральний офіс,21709375,Україна,"Грошова застава кандидата у народні депутати України Пирський Руслан Олександрович, висунутого ПП ""Опозиційна Платформа-ЗАЖИТТЯ"" в одномандатному виборчому окрузі № 96. Без ПДВ. у загальнодержавному окрузі. Без ПДВ.",26003700467179,current,41730.00,Центральна виборча комісія,21661450,юридична особа
ОПЗЖ,"Київ, площа Лесі Українки, 1",59,2019-06-18,п/д № 389 від 2019-06-14,Грошова застава,Грошова застава,274508,Центральний офіс,21709375,Україна,"Грошова застава кандидата у народні депутати України Бейдерман Броніслава Володимирівна, висунутого ПП ""Опозиційна Платформа- ЗАЖИТТЯ"" в одномандатному виборчому окрузі № 187. Без ПДВ. у загальнодержавному окрузі. Без ПДВ.",26003700467179,current,41730.00,Центральна виборча комісія,21661450,юридична особа
ОПЗЖ,"Київ, площа Лесі Українки, 1",59,2019-06-18,п/д № 310 від 2019-06-14,Грошова застава,Грошова застава,274507,Центральний офіс,21709375,Україна,"Грошова застава кандидата у народні депутати України Дрогобецький Іван Іванович, висунутого ПП ""Опозиційна Платформа-ЗАЖИТТЯ"" в одномандатному виборчому окрузі № 70. Без ПДВ. у загальнодержавному окрузі. Без ПДВ",26003700467179,current,41730.00,Центральна виборча комісія,21661450,юридична особа
ОПЗЖ,"Київ, площа Лесі Українки, 1",59,2019-06-18,п/д № 337 від 2019-06-14,Грошова застава,Грошова застава,274506,Центральний офіс,21709375,Україна,"Грошова застава кандидата у народні депутати України Медведчук Сергій Володимирович, висунутого ПП ""Опозиційна Платформа-ЗАЖИТТЯ"" в одномандатному виборчому окрузі № 105. Без ПДВ. у загальнодержавному окрузі. Без ПДВ.",26003700467179,current,41730.00,Центральна виборча комісія,21661450,юридична особа
ОПЗЖ,"Київ, площа Лесі Українки, 1",59,2019-06-18,п/д № 327 від 2019-06-14,Грошова застава,Грошова застава,274505,Центральний офіс,21709375,Україна,"Грошова застава кандидата у народні депутати України Мазепа Сергій Володимирович, висунутого ПП ""Опозиційна Платформа-ЗАЖИТТЯ"" в одномандатному виборчому окрузі № 94. Без ПДВ. у загальнодержавному окрузі. Без ПДВ.",26003700467179,current,41730.00,Центральна виборча комісія,21661450,юридична особа
ОПЗЖ,"Київ, площа Лесі Українки, 1",59,2019-06-18,п/д № 399 від 2019-06-14,Грошова застава,Грошова застава,274504,Центральний офіс,21709375,Україна,"Грошова застава кандидата у народні депутати України ЗайцевСергій Анатолійович , висунутого ПП ""Опозиційна Платформа-ЗАЖИТТЯ"" в одномандатному виборчому окрузі № 198. Без ПДВ. у загальнодержавному окрузі. Без ПДВ.",26003700467179,current,41730.00,Центральна виборча комісія,21661450,юридична особа
ОПЗЖ,"Київ, площа Лесі Українки, 1",59,2019-06-18,п/д № 266 від 2019-06-14,Грошова застава,Грошова застава,274503,Центральний офіс,21709375,Україна,"Грошова застава кандидата у народні депутати України Грушко Сергій Сергійович, висунутого ПП ""Опозиційна Платформа-ЗАЖИТТЯ"" в одномандатному виборчому окрузі № 12. Без ПДВ. у загальнодержавному окрузі. Без ПДВ",26003700467179,current,41730.00,Центральна виборча комісія,21661450,юридична особа
ОПЗЖ,"Київ, площа Лесі Українки, 1",59,2019-06-18,п/д № 403 від 2019-06-14,Грошова застава,Грошова застава,274502,Центральний офіс,21709375,Україна,"Грошова застава кандидата у народні депутати України Кисилиця Віталій Георгійович, висунутого ПП ""Опозиційна Платформа-ЗАЖИТТЯ"" в одномандатному виборчому окрузі № 202. Без ПДВ. у загальнодержавному окрузі. Без ПДВ.",26003700467179,current,41730.00,Центральна виборча комісія,21661450,юридична особа
ОПЗЖ,"Київ, площа Лесі Українки, 1",59,2019-06-18,п/д № 271 від 2019-06-14,Грошова застава,Грошова застава,274501,Центральний офіс,21709375,Україна,"Грошова застава кандидата у народні депутати України Антонюк Микола Павлович, висунутого ПП ""Опозиційна Платформа-ЗАЖИТТЯ"" в одномандатному виборчому окрузі № 18. Без ПДВ. у загальнодержавному окрузі. Без ПДВ",26003700467179,current,41730.00,Центральна виборча комісія,21661450,юридична особа
ОПЗЖ,"Київ, площа Лесі Українки, 1",59,2019-06-18,п/д № 267 від 2019-06-14,Грошова застава,Грошова застава,274500,Центральний офіс,21709375,Україна,"Грошова застава кандидата у народні депутати України Москалюк Андрій Петрович, висунутого ПП ""Опозиційна Платформа-ЗАЖИТТЯ"" в одномандатному виборчому окрузі № 13. Без ПДВ. у загальнодержавному окрузі. Без ПДВ.",26003700467179,current,41730.00,Центральна виборча комісія,21661450,юридична особа
ОПЗЖ,"Київ, площа Лесі Українки, 1",59,2019-06-18,п/д № 268 від 2019-06-14,Грошова застава,Грошова застава,274499,Центральний офіс,21709375,Україна,"Грошова застава кандидата у народні депутати України Кінщак Володимир Андрійович, висунутого ПП ""Опозиційна Платформа-ЗАЖИТТЯ"" в одномандатному виборчому окрузі № 14. Без ПДВ. у загальнодержавному окрузі. Без ПДВ.",26003700467179,current,41730.00,Центральна виборча комісія,21661450,юридична особа
ОПЗЖ,"Київ, площа Лесі Українки, 1",59,2019-06-18,п/д № 280 від 2019-06-14,Грошова застава,Грошова застава,274498,Центральний офіс,21709375,Україна,"Грошова застава кандидата у народні депутати України Нікітін Сергій Михайлович, висунутого ПП ""Опозиційна Платформа-ЗАЖИТТЯ"" в одномандатному виборчому окрузі № 27. Без ПДВ. у загальнодержавному окрузі. Без ПДВ",26003700467179,current,41730.00,Центральна виборча комісія,21661450,юридична особа
ОПЗЖ,"Київ, площа Лесі Українки, 1",59,2019-06-18,п/д № 367 від 2019-06-14,Грошова застава,Грошова застава,274497,Центральний офіс,21709375,Україна,"Грошова застава кандидата у народні депутати України Бернацський Олег Васильович, висунутого ПП ""Опозиційна Платформа-ЗАЖИТТЯ"" в одномандатному виборчому окрузі № 154. Без ПДВ. у загальнодержавному окрузі. Без ПДВ.",26003700467179,current,41730.00,Центральна виборча комісія,21661450,юридична особа
ОПЗЖ,"Київ, площа Лесі Українки, 1",59,2019-06-18,п/д № 368 від 2019-06-14,Грошова застава,Грошова застава,274496,Центральний офіс,21709375,Україна,"Грошова застава кандидата у народні депутати України Лозян Олексій Михайлович, висунутого ПП ""Опозиційна Платформа-ЗАЖИТТЯ"" в одномандатному виборчому окрузі № 155. Без ПДВ. у загальнодержавному окрузі. Без ПДВ.",26003700467179,current,41730.00,Центральна виборча комісія,21661450,юридична особа
ОПЗЖ,"Київ, площа Лесі Українки, 1",59,2019-06-18,п/д № 406 від 2019-06-14,Грошова застава,Грошова застава,274495,Центральний офіс,21709375,Україна,"Грошова застава кандидата у народні депутати України Овчаренко Олексій Миколайович, висунутого ПП ""Опозиційна Платформа-ЗАЖИТТЯ"" в одномандатному виборчому окрузі № 207. Без ПДВ. у загальнодержавному окрузі. Без ПДВ.",26003700467179,current,41730.00,Центральна виборча комісія,21661450,юридична особа
ОПЗЖ,"Київ, площа Лесі Українки, 1",59,2019-06-18,п/д № 287 від 2019-06-14,Грошова застава,Грошова застава,274494,Центральний офіс,21709375,Україна,"Грошова застава кандидата у народні депутати України Ковальов Дмитро Анатолійович, висунутого ПП ""Опозиційна Платформа-ЗАЖИТТЯ"" в одномандатному виборчому окрузі № 34. Без ПДВ. у загальнодержавному окрузі. Без ПДВ.",26003700467179,current,41730.00,Центральна виборча комісія,21661450,юридична особа
ОПЗЖ,"Київ, площа Лесі Українки, 1",59,2019-06-18,п/д № 300 від 2019-06-14,Грошова застава,Грошова застава,274493,Центральний офіс,21709375,Україна,"Грошова застава кандидата у народні депутати України Погодін Олег Васильович, висунутого ПП ""Опозиційна Платформа-ЗАЖИТТЯ"" в одномандатному виборчому окрузі № 52. Без ПДВ. у загальнодержавному окрузі. Без ПДВ",26003700467179,current,41730.00,Центральна виборча комісія,21661450,юридична особа
ОПЗЖ,"Київ, площа Лесі Українки, 1",59,2019-06-18,п/д № 317 від 2019-06-14,Грошова застава,Грошова застава,274492,Центральний офіс,21709375,Україна,"Грошова застава кандидата у народні депутати України Зарва Валентин Михайлович, висунутого ПП ""Опозиційна Платформа-ЗАЖИТТЯ"" в одномандатному виборчому окрузі № 77. Без ПДВ. у загальнодержавному окрузі. Без ПДВ.",26003700467179,current,41730.00,Центральна виборча комісія,21661450,юридична особа
ОПЗЖ,"Київ, площа Лесі Українки, 1",59,2019-06-18,п/д № 294 від 2019-06-14,Грошова застава,Грошова застава,274491,Центральний офіс,21709375,Україна,"Грошова застава кандидата у народні депутати України Петренко Анастасія Леонідівна, висунутого ПП ""Опозиційна Платформа-ЗАЖИТТЯ"" в одномандатному виборчому окрузі № 45. Без ПДВ. у загальнодержавному окрузі. Без ПДВ.",26003700467179,current,41730.00,Центральна виборча комісія,21661450,юридична особа
ОПЗЖ,"Київ, площа Лесі Українки, 1",59,2019-06-18,п/д № 347 від 2019-06-14,Грошова застава,Грошова застава,274490,Центральний офіс,21709375,Україна,"Грошова застава кандидата у народні депутати України Сеник Роман Віталійович, висунутого ПП ""Опозиційна Платформа-ЗАЖИТТЯ"" в одномандатному виборчому окрузі № 134. Без ПДВ. у загальнодержавному окрузі. Без ПДВ.",26003700467179,current,41730.00,Центральна виборча комісія,21661450,юридична особа
ОПЗЖ,"Київ, площа Лесі Українки, 1",59,2019-06-18,п/д № 296 від 2019-06-14,Грошова застава,Грошова застава,274489,Центральний офіс,21709375,Україна,"Грошова застава кандидата у народні депутати України Шевченко Олександр Павлович, висунутого ПП ""Опозиційна Платформа-ЗАЖИТТЯ"" в одномандатному виборчому окрузі № 48. Без ПДВ. у загальнодержавному окрузі. Без ПДВ.",26003700467179,current,41730.00,Центральна виборча комісія,21661450,юридична особа
ОПЗЖ,"Київ, площа Лесі Українки, 1",59,2019-06-18,п/д № 299 від 2019-06-14,Грошова застава,Грошова застава,274488,Центральний офіс,21709375,Україна,"Грошова застава кандидата у народні депутати України Альоша Андрій Миколайович, висунутого ПП ""Опозиційна Платформа-ЗАЖИТТЯ"" в одномандатному виборчому окрузі № 51. Без ПДВ. у загальнодержавному окрузі. Без ПДВ.",26003700467179,current,41730.00,Центральна виборча комісія,21661450,юридична особа
ОПЗЖ,"Київ, площа Лесі Українки, 1",59,2019-06-18,п/д № 343 від 2019-06-14,Грошова застава,Грошова застава,274487,Центральний офіс,21709375,Україна,"Грошова застава кандидата у народні депутати України Невінчаний Максим Андрійович, висунутого ПП ""Опозиційна Платформа-ЗАЖИТТЯ"" в одномандатному виборчому окрузі № 129. Без ПДВ. у загальнодержавному окрузі. Без ПДВ.",26003700467179,current,41730.00,Центральна виборча комісія,21661450,юридична особа
ОПЗЖ,"Київ, площа Лесі Українки, 1",59,2019-06-18,п/д № 394 від 2019-06-14,Грошова застава,Грошова застава,274486,Центральний офіс,21709375,Україна,"Грошова застава кандидата у народні депутати України Васільев Олександр Володимирович, висунутого ПП ""Опозиційна Платформа- ЗАЖИТТЯ"" в одномандатному виборчому окрузі № 193. Без ПДВ. у загальнодержавному окрузі. Без ПДВ.",26003700467179,current,41730.00,Центральна виборча комісія,21661450,юридична особа
ОПЗЖ,"Київ, площа Лесі Українки, 1",59,2019-06-18,п/д № 345 від 2019-06-14,Грошова застава,Грошова застава,274485,Центральний офіс,21709375,Україна,"Грошова застава кандидата у народні депутати України Колесніков Валерій вікторович, висунутого ПП ""Опозиційна Платформа-ЗАЖИТТЯ"" в одномандатному виборчому окрузі № 131. Без ПДВ. у загальнодержавному окрузі. Без ПДВ.",26003700467179,current,41730.00,Центральна виборча комісія,21661450,юридична особа
ОПЗЖ,"Київ, площа Лесі Українки, 1",59,2019-06-18,п/д № 334 від 2019-06-14,Грошова застава,Грошова застава,274484,Центральний офіс,21709375,Україна,"Грошова застава кандидата у народні депутати України Сікорський Володимир Степанович, висунутого ПП ""Опозиційна Платформа-ЗАЖИТТЯ"" в одномандатному виборчому окрузі № 101. Без ПДВ. у загальнодержавному окрузі. Без ПДВ.",26003700467179,current,41730.00,Центральна виборча комісія,21661450,юридична особа
ОПЗЖ,"Київ, площа Лесі Українки, 1",59,2019-06-18,п/д № 265 від 2019-06-14,Грошова застава,Грошова застава,274483,Центральний офіс,21709375,Україна,"Грошова застава кандидата у народні депутати України Горлачов Ігор Ярославович, висунутого ПП ""Опозиційна Платформа-ЗАЖИТТЯ"" в одномандатному виборчому окрузі № 11. Без ПДВ. у загальнодержавному окрузі. Без ПДВ",26003700467179,current,41730.00,Центральна виборча комісія,21661450,юридична особа
ОПЗЖ,"Київ, площа Лесі Українки, 1",59,2019-06-18,п/д № 311 від 2019-06-14,Грошова застава,Грошова застава,274482,Центральний офіс,21709375,Україна,"Грошова застава кандидата у народні депутати України Гук Вячеслав Степанович, висунутого ПП ""Опозиційна Платформа-ЗАЖИТТЯ"" в одномандатному виборчому окрузі № 71. Без ПДВ. у загальнодержавному окрузі. Без ПДВ",26003700467179,current,41730.00,Центральна виборча комісія,21661450,юридична особа
ОПЗЖ,"Київ, площа Лесі Українки, 1",59,2019-06-18,п/д № 396 від 2019-06-14,Грошова застава,Грошова застава,274481,Центральний офіс,21709375,Україна,"Грошова застава кандидата у народні депутати України Романенко Володимир Олександрович, висунутого ПП ""Опозиційна Платформа- ЗАЖИТТЯ"" в одномандатному виборчому окрузі № 195. Без ПДВ. у загальнодержавному окрузі. Без ПДВ.",26003700467179,current,41730.00,Центральна виборча комісія,21661450,юридична особа
ОПЗЖ,"Київ, площа Лесі Українки, 1",59,2019-06-18,п/д № 396 від 2019-06-14,Грошова застава,Грошова застава,274480,Центральний офіс,21709375,Україна,"Грошова застава кандидата у народні депутати України Чорноморець Олександр Павлович, висунутого ПП ""Опозиційна Платформа-ЗАЖИТТЯ"" в одномандатному виборчому окрузі № 195. Без ПДВ. у загальнодержавному окрузі. Без ПДВ.",26003700467179,current,41730.00,Центральна виборча комісія,21661450,юридична особа
ОПЗЖ,"Київ, площа Лесі Українки, 1",59,2019-06-18,п/д № 330 від 2019-06-14,Грошова застава,Грошова застава,274479,Центральний офіс,21709375,Україна,"Грошова застава кандидата у народні депутати України Золотих Дмитро Володимирович, висунутого ПП ""Опозиційна Платформа-ЗАЖИТТЯ"" в одномандатному виборчому окрузі № 97. Без ПДВ. у загальнодержавному окрузі. Без ПДВ.",26003700467179,current,41730.00,Центральна виборча комісія,21661450,юридична особа
ОПЗЖ,"Київ, площа Лесі Українки, 1",59,2019-06-18,п/д № 421 від 2019-06-14,Грошова застава,Грошова застава,274478,Центральний офіс,21709375,Україна,"Грошова застава кандидата у народні депутати України Арканова-Чорна Ольга Юріївна, висунутого ПП ""Опозиційна Платформа-ЗАЖИТТЯ"" в одномандатному виборчому окрузі № 220. Без ПДВ. у загальнодержавному окрузі. Без ПДВ.",26003700467179,current,41730.00,Центральна виборча комісія,21661450,юридична особа
ОПЗЖ,"Київ, площа Лесі Українки, 1",59,2019-06-18,п/д № 309 від 2019-06-14,Грошова застава,Грошова застава,274477,Центральний офіс,21709375,Україна,"Грошова застава кандидата у народні депутати України Шутко Вячеслав Ласлович, висунутого ПП ""Опозиційна Платформа-ЗАЖИТТЯ"" в одномандатному виборчому окрузі № 69. Без ПДВ. у загальнодержавному окрузі. Без ПДВ.",26003700467179,current,41730.00,Центральна виборча комісія,21661450,юридична особа
ОПЗЖ,"Київ, площа Лесі Українки, 1",59,2019-06-18,п/д № 283 від 2019-06-14,Грошова застава,Грошова застава,274476,Центральний офіс,21709375,Україна,"Грошова застава кандидата у народні депутати України Саусь Костянтин Викторович, висунутого ПП ""Опозиційна Платформа-ЗАЖИТТЯ"" в одномандатному виборчому окрузі № 30. Без ПДВ. у загальнодержавному окрузі. Без ПДВ.",26003700467179,current,41730.00,Центральна виборча комісія,21661450,юридична особа
ОПЗЖ,"Київ, площа Лесі Українки, 1",59,2019-06-18,п/д № 420 від 2019-06-14,Грошова застава,Грошова застава,274475,Центральний офіс,21709375,Україна,"Грошова застава кандидата у народні депутати України Мягкий Олександр Степанович, висунутого ПП ""Опозиційна Платформа-ЗАЖИТТЯ"" в одномандатному виборчому окрузі № 219. Без ПДВ. у загальнодержавному окрузі. Без ПДВ.",26003700467179,current,41730.00,Центральна виборча комісія,21661450,юридична особа
ОПЗЖ,"Київ, площа Лесі Українки, 1",59,2019-06-18,п/д № 374 від 2019-06-14,Грошова застава,Грошова застава,274474,Центральний офіс,21709375,Україна,"Грошова застава кандидата у народні депутати України Святаш Дмитро Володимирович, висунутого ПП ""Опозиційна Платформа-ЗАЖИТТЯ"" в одномандатному виборчому окрузі № 170. Без ПДВ. у загальнодержавному окрузі. Без ПДВ.",26003700467179,current,41730.00,Центральна виборча комісія,21661450,юридична особа
ОПЗЖ,"Київ, площа Лесі Українки, 1",59,2019-06-18,п/д №284 від 2019-06-14,Грошова застава,Грошова застава,274473,Центральний офіс,21709375,Україна,"Грошова застава кандидата у народні депутати України Шаталов Владислав Володимирович, висунутого ПП ""Опозиційна Платформа- ЗАЖИТТЯ"" в одномандатному виборчому окрузі № 31. Без ПДВ. у загальнодержавному окрузі. Без ПДВ.",26003700467179,current,41730.00,Центральна виборча комісія,21661450,юридична особа
ОПЗЖ,"Київ, площа Лесі Українки, 1",59,2019-06-18,п/д № 423 від 2019-06-14,Грошова застава,Грошова застава,274472,Центральний офіс,21709375,Україна,"Грошова застава кандидата у народні депутати України Луцький Максим Георгійович, висунутого ПП ""Опозиційна Платформа-ЗАЖИТТЯ"" в одномандатному виборчому окрузі № 222. Без ПДВ. у загальнодержавному окрузі. Без ПДВ.",26003700467179,current,41730.00,Центральна виборча комісія,21661450,юридична особа
ОПЗЖ,"Київ, площа Лесі Українки, 1",59,2019-06-18,п/д № 375 від 2019-06-14,Грошова застава,Грошова застава,274471,Центральний офіс,21709375,Україна,"Грошова застава кандидата у народні депутати України Лесик Андрій Анатолійович, висунутого ПП ""Опозиційна Платформа-ЗАЖИТТЯ"" в одномандатному виборчому окрузі № 171. Без ПДВ. у загальнодержавному окрузі. Без ПДВ.",26003700467179,current,41730.00,Центральна виборча комісія,21661450,юридична особа
ОПЗЖ,"Київ, площа Лесі Українки, 1",59,2019-06-18,п/д № 340 від 2019-06-14,Грошова застава,Грошова застава,274470,Центральний офіс,21709375,Україна,"Грошова застава кандидата у народні депутати України Чернецов Олександр Іванович, висунутого ПП ""Опозиційна Платформа-ЗАЖИТТЯ"" в одномандатному виборчому окрузі № 112. Без ПДВ. у загальнодержавному окрузі. Без ПДВ.",26003700467179,current,41730.00,Центральна виборча комісія,21661450,юридична особа
ОПЗЖ,"Київ, площа Лесі Українки, 1",59,2019-06-18,п/д № 285 від 2019-06-14,Грошова застава,Грошова застава,274469,Центральний офіс,21709375,Україна,"Грошова застава кандидата у народні депутати України Глузман Михайло Борисович, висунутого ПП ""Опозиційна Платформа-ЗАЖИТТЯ"" в одномандатному виборчому окрузі № 32. Без ПДВ. у загальнодержавному окрузі. Без ПДВ.",26003700467179,current,41730.00,Центральна виборча комісія,21661450,юридична особа
